Workbook

Sheet 1. Information Sheet

Sheet Sheet1 (hidden)

Sheet 2. Current Tariff Schedule
AZ1: TRUE
J12: 8
P14: 42491
E33: 21.9379
E34: -0.14 | Q34: 42855
E35: 0.79 | Q35: 43404
E36: 0.93 | Q36: 42855
E37: 0.0139466
E38: 0.0005
E39: -0.003 | Q39: 42855
E40: -0.0001 | Q40: 42855
E41: 0.0071
E42: 0.0053
E46: 0.0036
E47: 0.0013
E48: 0.0011
E49: 0.25
E64: -30
E68: -34
E72: -38
E76: -42
E80: -45
E85: -50
E89: -55
E93: -60
E97: -75
E113: 38.05284
E114: -0.3 | Q114: 42855
E115: 0.79 | Q115: 43404
E116: 2.73 | Q116: 42855
E117: 0.0139466
E118: 0.0004
E119: -0.003 | Q119: 42855
E120: -0.0001 | Q120: 42855
E121: 0.0064
E122: 0.0046
E126: 0.0036
E127: 0.0013
E128: 0.0011
E129: 0.25
E145: 103.4288
E146: -0.57 | Q146: 42855
E147: 3.3808798
E148: 0.1612
E149: -1.1427 | Q149: 42855
E150: -0.0361 | Q150: 42855
E151: 2.6464
E152: 1.858
E156: 0.0036
E157: 0.0013
E158: 0.0011
E159: 0.25
E175: 19.6474
E176: -0.18 | Q176: 42855
E177: 0.013743
E178: 0.0004
E179: -0.003 | Q179: 42855
E180: -0.0001 | Q180: 42855
E181: 0.0064
E182: 0.0046
E186: 0.0036
E187: 0.0013
E188: 0.0011
E189: 0.25
E205: 17.09222
E206: -0.13 | Q206: 42855
E207: 21.3248604
E208: 0.1347
E209: -1.1122 | Q209: 42855
E210: -0.1612 | Q210: 42855
E211: 1.9593
E212: 1.5526
E216: 0.0036
E217: 0.0013
E218: 0.0011
E219: 0.25
E235: 1.21142
E236: -0.01 | Q236: 42855
E237: 4.7185318
E238: 0.1239
E239: -1.0585 | Q239: 42855
E240: -0.0493 | Q240: 42855
E241: 2.0005
E242: 1.4275
E246: 0.0036
E247: 0.0013
E248: 0.0011
E249: 0.25
E265: 5.4
E268: -0.6
E269: -1
E281: 20
E282: 15
E283: 30
E284: 30
E287: 1.5
E288: 19.56
E289: 30
E290: 165
E291: 65
E292: 185
E293: 185
E294: 415
E295: 65
E296: 185
E299: 30
E300: 165
E301: 500
E302: 300
E303: 1000
E304: 22.35
E321: 100
E322: 20
E323: 0.5
E324: 0.3
E325: -0.3
E327: 0.25
E328: 0.5
E333: 2
E338: 1.0479
E339: 1.0374

Sheet 3. Continuity Schedule
CA1: FALSE
C2: FALSE | CA2: FALSE
CA3: TRUE
CA4: FALSE
CA5: FALSE
CA6: TRUE
CA7: FALSE
CA8: FALSE
CA9: FALSE
CA10: TRUE
CA11: TRUE
E16: 2010 | O16: 2011 | Y16: 2012 | AI16: 2013 | AS16: 2014 | BC16: 2015 | BM16: 2016
D21: 1550 | I21: =E21+F21-G21+H21 -> 0 | N21: =J21+K21-L21+M21 -> 0 | O21: =I21 -> 0 | S21: =O21+P21-Q21+SUM(R21:R21) -> 0 | T21: =N21 -> 0 | X21: =T21+U21-V21+W21 -> 0 | Y21: =S21 -> 0 | AB21: ='[16]3. 2015 Continuity Schedule'!$R$24 -> -123432.39 | AC21: =Y21+Z21-AA21+SUM(AB21:AB21) -> -123432.39 | AD21: =X21 -> 0 | AG21: ='[16]3. 2015 Continuity Schedule'!$W$24 -> 1663.79 | AH21: =AD21+AE21-AF21+AG21 -> 1663.79 | AI21: =AC21 -> -123432.39 | AJ21: ='[16]3. 2015 Continuity Schedule'!$Z$24 -> 67738.54 | AM21: =AI21+AJ21-AK21+SUM(AL21:AL21) -> -55693.85 | AN21: =AH21 -> 1663.79 | AO21: ='[16]3. 2015 Continuity Schedule'!$AE$24 -> 3069.79 | AR21: =AN21+AO21-AP21+AQ21 -> 4733.58 | AS21: =AM21 -> -55693.85 | AT21: ='[16]3. 2015 Continuity Schedule'!$AJ$24 -> 99351.97 | AU21: ='[16]3. 2015 Continuity Schedule'!$AK$24 -> -123432.33 | AW21: =AS21+AT21-AU21+SUM(AV21:AV21) -> 167090.45 | AX21: =AR21 -> 4733.58 | AY21: ='[16]3. 2015 Continuity Schedule'!$AO$24 -> 1548.37 | AZ21: ='[16]3. 2015 Continuity Schedule'!$AP$24 -> -755.48 | BB21: =AX21+AY21-AZ21+BA21 -> 7037.43 | BC21: =AW21 -> 167090.45 | BD21: =408030.02+BE21 -> 475768.5 | BE21: ='[16]3. 2015 Continuity Schedule'!$AS$24 -> 67738.48 | BG21: =BC21+BD21-BE21+SUM(BF21:BF21) -> 575120.47 | BH21: =BB21 -> 7037.43 | BI21: =-2743.18+BJ21 -> 4073.554208 | BJ21: ='[16]3. 2015 Continuity Schedule'!$AT$24 -> 6816.734208 | BL21: =BH21+BI21-BJ21+BK21 -> 4294.25 | BO21: =BG21-BM21 -> 575120.47 | BP21: =BL21-BN21 -> 4294.25 | BQ21: =BO21*0.011 -> 6326.32517 | BR21: =BO21*0.011*(4/12) -> 2108.775057 | BS21: =BP21+BQ21+BR21 -> 12729.35023 | BT21: =SUM(BO21:BR21) -> 587849.8202 | BU21: 579415 | BV21: =BU21-SUM(BG21,BL21) -> 0.28
D22: 1551 | I22: =E22+F22-G22+H22 -> 0 | N22: =J22+K22-L22+M22 -> 0 | O22: =I22 -> 0 | S22: 0 | T22: 0 | X22: =T22+U22-V22+W22 -> 0 | Y22: 0 | AC22: =Y22+Z22-AA22+SUM(AB22:AB22) -> 0 | AD22: =X22 -> 0 | AH22: =AD22+AE22-AF22+AG22 -> 0 | AI22: 0 | AJ22: ='[16]3. 2015 Continuity Schedule'!$Z$25 -> 36447.16 | AM22: 36447.16 | AN22: 0 | AO22: ='[16]3. 2015 Continuity Schedule'!$AE$25 -> 509.07 | AR22: =AN22+AO22-AP22+AQ22 -> 509.07 | AS22: 36447.16 | AT22: ='[16]3. 2015 Continuity Schedule'!$AJ$25 -> -10120.41 | AW22: 26326.75 | AX22: 509.07 | AY22: ='[16]3. 2015 Continuity Schedule'!$AO$25 -> 483.24 | BB22: =AX22+AY22-AZ22+BA22 -> 992.31 | BC22: 26326.75 | BD22: =-57537.92+BE22 -> -21090.76 | BE22: ='[16]3. 2015 Continuity Schedule'!$AS$25 -> 36447.16 | BG22: -31211.17 | BH22: 992.31 | BI22: =-1140.64+BJ22 -> 82.794336 | BJ22: ='[16]3. 2015 Continuity Schedule'!$AT$25 -> 1223.434336 | BL22: =BH22+BI22-BJ22+BK22 -> -148.33 | BO22: =BG22-BM22 -> -31211.17 | BP22: =BL22-BN22 -> -148.33 | BQ22: =BO22*0.011 -> -343.32287 | BR22: =BO22*0.011*(4/12) -> -114.4409567 | BS22: =BP22+BQ22+BR22 -> -606.0938267 | BT22: =SUM(BO22:BR22) -> -31817.26383 | BU22: -31360 | BV22: =BU22-SUM(BG22,BL22) -> -0.5
D23: 1580 | I23: =E23+F23-G23+H23 -> 0 | N23: =J23+K23-L23+M23 -> 0 | O23: =I23 -> 0 | S23: 0 | T23: 0 | X23: =T23+U23-V23+W23 -> 0 | Y23: 0 | AB23: ='[16]3. 2015 Continuity Schedule'!$R$26 -> -3164721.78 | AC23: =Y23+Z23-AA23+SUM(AB23:AB23) -> -3164721.78 | AD23: 0 | AG23: ='[16]3. 2015 Continuity Schedule'!$W$26 -> -29963.11 | AH23: =AD23+AE23-AF23+AG23 -> -29963.11 | AI23: -3164721.78 | AJ23: ='[16]3. 2015 Continuity Schedule'!$Z$26 -> -916481.47 | AM23: -4081203.25 | AN23: -29963.11 | AO23: ='[16]3. 2015 Continuity Schedule'!$AE$26 -> -40247.65 | AR23: =AN23+AO23-AP23+AQ23 -> -70210.76 | AS23: -4081203.25 | AT23: ='[16]3. 2015 Continuity Schedule'!$AJ$26 -> -380378.52 | AU23: ='[16]3. 2015 Continuity Schedule'!$AK$26 -> -3164721.63 | AW23: -1296860.14 | AX23: -70210.76 | AY23: ='[16]3. 2015 Continuity Schedule'!$AO$26 -> -25477.45 | AZ23: ='[16]3. 2015 Continuity Schedule'!$AP$26 -> -91991.66 | BB23: =AX23+AY23-AZ23+BA23 -> -3696.55 | BC23: -1296860.14 | BD23: =-1782340.06+BE23 -> -2698821.68 | BE23: ='[16]3. 2015 Continuity Schedule'!$AS$26 -> -916481.62 | BG23: -3079200.2 | BH23: -3696.55 | BI23: =-16105.22+BJ23 -> -12287.35975 | BJ23: ='[16]3. 2015 Continuity Schedule'!$AT$26 -> 3817.860248 | BL23: =BH23+BI23-BJ23+BK23 -> -19801.77 | BO23: -3079200.2 | BP23: -19801.77 | BQ23: -33871.2022 | BR23: =BO23*0.011*(4/12) -> -11290.40073 | BS23: -64963.37293 | BT23: =SUM(BO23:BR23) -> -3144163.573 | BU23: -2759401 | BV23: =BU23-SUM(BG23,BL23) -> 339600.97
D24: 1580 | I24: 0 | N24: 0 | O24: 0 | S24: 0 | T24: 0 | X24: 0 | Y24: 0 | AC24: 0 | AD24: 0 | AH24: 0 | AI24: 0 | AM24: 0 | AN24: 0 | AR24: 0 | AS24: 0 | AW24: 0 | AX24: 0 | BB24: 0 | BC24: 0 | BG24: =BC24+BD24-BE24+SUM(BF24:BF24) -> 0 | BH24: 0 | BL24: 0 | BO24: 0 | BP24: 0 | BS24: 0 | BT24: =IF(CA5=TRUE, 0, 0) -> 0 | BU24: 0 | BV24: =BU24-SUM(BG24,BL24) -> 0
D25: 1580 | I25: 0 | N25: 0 | O25: 0 | S25: 0 | T25: 0 | X25: 0 | Y25: 0 | AC25: 0 | AD25: 0 | AH25: 0 | AI25: 0 | AM25: 0 | AN25: 0 | AR25: 0 | AS25: 0 | AW25: 0 | AX25: 0 | BB25: 0 | BC25: 0 | BD25: 338466.78 | BG25: 338466.78 | BH25: 0 | BI25: 1133.89 | BL25: 1133.89 | BO25: 338466.78 | BP25: 1133.89 | BQ25: 3723.13458 | BR25: =BO25*0.011*(4/12) -> 1241.04486 | BS25: 6098.06944 | BT25: =IF(CA6=TRUE, SUM(BO25:BR25), 0) -> 344564.8494 | BU25: 0 | BV25: =BU25-SUM(BG25,BL25) -> -339600.67
D26: 1584 | I26: 0 | N26: 0 | O26: 0 | S26: 0 | T26: 0 | X26: 0 | Y26: 0 | AB26: ='[16]3. 2015 Continuity Schedule'!$R$27 -> 876442.76 | AC26: 876442.76 | AD26: 0 | AG26: ='[16]3. 2015 Continuity Schedule'!$W$27 -> 10476.73 | AH26: 10476.73 | AI26: 876442.76 | AJ26: ='[16]3. 2015 Continuity Schedule'!$Z$27 -> 606068.4 | AM26: 1482511.16 | AN26: 10476.73 | AO26: ='[16]3. 2015 Continuity Schedule'!$AE$27 -> 10346.74 | AR26: 20823.47 | AS26: 1482511.16 | AT26: ='[16]3. 2015 Continuity Schedule'!$AJ$27 -> 376405.17 | AU26: ='[16]3. 2015 Continuity Schedule'!$AK$27 -> 876442.29 | AW26: 982474.04 | AX26: 20823.47 | AY26: ='[16]3. 2015 Continuity Schedule'!$AO$27 -> 17148.36 | AZ26: ='[16]3. 2015 Continuity Schedule'!$AP$27 -> 27655.01 | BB26: 10316.82 | BC26: 982474.04 | BD26: =-660186.9+BE26 -> -54118.03 | BE26: ='[16]3. 2015 Continuity Schedule'!$AS$27 -> 606068.87 | BG26: 322287.14 | BH26: 10316.82 | BI26: =4278.94+BJ26 -> 9326.349852 | BJ26: ='[16]3. 2015 Continuity Schedule'!$AT$27 -> 5047.409852 | BL26: 14595.76 | BO26: 322287.14 | BP26: 14595.76 | BQ26: 3545.15854 | BR26: =BO26*0.011*(4/12) -> 1181.719513 | BS26: 19322.63805 | BT26: =SUM(BO26:BR26) -> 341609.7781 | BU26: 336883 | BV26: =BU26-SUM(BG26,BL26) -> 0.09999999998
D27: 1586 | I27: 0 | N27: 0 | O27: 0 | S27: 0 | T27: 0 | X27: 0 | Y27: 0 | AB27: ='[16]3. 2015 Continuity Schedule'!$R$28 -> 650142.81 | AC27: 650142.81 | AD27: 0 | AG27: ='[16]3. 2015 Continuity Schedule'!$W$28 -> -849.65 | AH27: -849.65 | AI27: 650142.81 | AJ27: ='[16]3. 2015 Continuity Schedule'!$Z$28 -> 394499.5 | AM27: 1044642.31 | AN27: -849.65 | AO27: ='[16]3. 2015 Continuity Schedule'!$AE$28 -> 6818.99 | AR27: 5969.34 | AS27: 1044642.31 | AT27: ='[16]3. 2015 Continuity Schedule'!$AJ$28 -> 326751.82 | AU27: ='[16]3. 2015 Continuity Schedule'!$AK$28 -> 650142.65 | AW27: 721251.48 | AX27: 5969.34 | AY27: ='[16]3. 2015 Continuity Schedule'!$AO$28 -> 12517.64 | AZ27: ='[16]3. 2015 Continuity Schedule'!$AP$28 -> 11893.15 | BB27: 6593.83 | BC27: 721251.48 | BD27: =-1133337.29+BE27 -> -738837.63 | BE27: ='[16]3. 2015 Continuity Schedule'!$AS$28 -> 394499.66 | BG27: -412085.81 | BH27: 6593.83 | BI27: =5491.06+BJ27 -> 7299.443336 | BJ27: ='[16]3. 2015 Continuity Schedule'!$AT$28 -> 1808.383336 | BL27: 12084.89 | BO27: -412085.81 | BP27: 12084.89 | BQ27: -4532.94391 | BR27: =BO27*0.011*(4/12) -> -1510.981303 | BS27: 6040.964787 | BT27: =SUM(BO27:BR27) -> -406044.8452 | BU27: -400001 | BV27: -0.08000000007
D28: 1588 | I28: 0 | N28: 0 | O28: 0 | S28: 0 | T28: 0 | X28: 0 | Y28: 0 | AB28: ='[16]3. 2015 Continuity Schedule'!$R$29 -> -4719277.53 | AC28: -4719277.53 | AD28: 0 | AG28: ='[16]3. 2015 Continuity Schedule'!$W$29 -> -104523.97 | AH28: -104523.97 | AI28: -4719277.53 | AJ28: ='[16]3. 2015 Continuity Schedule'!$Z$29 -> -1550163.33 | AM28: -6269440.86 | AN28: -104523.97 | AO28: ='[16]3. 2015 Continuity Schedule'!$AE$29 -> -100262.72 | AR28: -204786.69 | AS28: -6269440.86 | AT28: ='[16]3. 2015 Continuity Schedule'!$AJ$29 -> -3109169.56 | AU28: ='[16]3. 2015 Continuity Schedule'!$AK$29 -> -4719277.99 | AV28: 1652047 | AW28: -3007285.43 | AX28: -204786.69 | AY28: ='[16]3. 2015 Continuity Schedule'!$AO$29 -> -74693.58 | AZ28: ='[16]3. 2015 Continuity Schedule'!$AP$29 -> -197021.81 | BA28: -10275 | BB28: -92733.46 | BC28: -3007285.43 | BD28: =1050814.48-1029274.87+BE28 -> -1528623.26 | BE28: ='[16]3. 2015 Continuity Schedule'!$AS$29 -> -1550162.87 | BF28: 254143 | BG28: -2731602.82 | BH28: -92733.46 | BI28: =-6174.76+BJ28 -> -44322.83225 | BJ28: ='[16]3. 2015 Continuity Schedule'!$AT$29 -> -38148.07225 | BK28: 12865 | BL28: -86043.22 | BO28: -2731602.82 | BP28: -86043.22 | BQ28: -30047.63102 | BR28: =BO28*0.011*(4/12) -> -10015.87701 | BS28: -126106.728 | BT28: =SUM(BO28:BR28) -> -2857709.548 | BU28: -4726427 | BV28: -1908780.96
D29: 1589 | I29: 0 | N29: 0 | O29: 0 | S29: 0 | T29: 0 | X29: 0 | Y29: 0 | AB29: ='[16]3. 2015 Continuity Schedule'!$R$30 -> 3681340.18 | AC29: 3681340.18 | AD29: 0 | AG29: ='[16]3. 2015 Continuity Schedule'!$W$30 -> 42784.26 | AH29: 42784.26 | AI29: 3681340.18 | AJ29: ='[16]3. 2015 Continuity Schedule'!$Z$30 -> 1610240.76 | AM29: 5291580.94 | AN29: 42784.26 | AO29: ='[16]3. 2015 Continuity Schedule'!$AE$30 -> 12814.17 | AR29: 55598.43 | AS29: 5291580.94 | AT29: ='[16]3. 2015 Continuity Schedule'!$AJ$30 -> 2828516.78 | AU29: ='[16]3. 2015 Continuity Schedule'!$AK$30 -> 3681340.6 | AV29: -1652047 | AW29: 2786710.12 | AX29: 55598.43 | AY29: ='[16]3. 2015 Continuity Schedule'!$AO$30 -> 45733.48 | AZ29: ='[16]3. 2015 Continuity Schedule'!$AP$30 -> 114938.53 | BA29: 10275 | BB29: -3331.62 | BC29: 2786710.12 | BD29: =-1614466.64+BE29 -> -4226.3 | BE29: ='[16]3. 2015 Continuity Schedule'!$AS$30 -> 1610240.34 | BF29: -254143 | BG29: 918100.48 | BH29: -3331.62 | BI29: =51657.73+BJ29 -> 23878.34066 | BJ29: ='[16]3. 2015 Continuity Schedule'!$AT$30 -> -27779.38934 | BK29: -12865 | BL29: 35461.11 | BO29: 918100.48 | BP29: 35461.11 | BQ29: 10099.10528 | BR29: =BO29*0.011*(4/12) -> 3366.368427 | BS29: 48926.58371 | BT29: =SUM(BO29:BR29) -> 967027.0637 | BU29: 2862342 | BV29: 1908780.41
D30: 1595 | I30: 0 | N30: 0 | O30: 0 | S30: 0 | T30: 0 | X30: 0 | Y30: 0 | AC30: 0 | AD30: 0 | AH30: 0 | AI30: 0 | AM30: 0 | AN30: 0 | AR30: 0 | AS30: 0 | AW30: 0 | AX30: 0 | BB30: 0 | BC30: 0 | BG30: 0 | BH30: 0 | BL30: 0 | BO30: 0 | BP30: 0 | BS30: 0 | BT30: =IF(CA7=TRUE, SUM(BO30:BR30), 0) -> 0 | BU30: 0 | BV30: 0
D31: 1595 | I31: 0 | N31: 0 | O31: 0 | S31: 0 | T31: 0 | X31: 0 | Y31: 0 | AB31: ='[16]3. 2015 Continuity Schedule'!$R$33 -> -1776570.13 | AC31: -1776570.13 | AD31: 0 | AG31: ='[16]3. 2015 Continuity Schedule'!$W$33 -> 1695251.43 | AH31: 1695251.43 | AI31: -1776570.13 | AJ31: ='[16]3. 2015 Continuity Schedule'!$Z$33 -> 4441.92 | AM31: -1772128.21 | AN31: 1695251.43 | AO31: ='[16]3. 2015 Continuity Schedule'!$AE$33 -> -39697.18 | AR31: 1655554.25 | AS31: -1772128.21 | AT31: -4442 | AU31: -1776570 | AW31: -0.2100000002 | AX31: 1655554.25 | AY31: 17934 | AZ31: 1673488 | BB31: 0.2500000002 | BC31: -0.2100000002 | BG31: -0.2100000002 | BH31: 0.2500000002 | BL31: 0.2500000002 | BO31: -0.2100000002 | BP31: 0.2500000002 | BS31: 0.2500000002 | BT31: =IF(CA8=TRUE, SUM(BO31:BR31), 0) -> 0 | BU31: 0 | BV31: -0.04000000004
D32: 1595 | I32: 0 | N32: 0 | O32: 0 | S32: =O32+P32-Q32+SUM(R32:R32) -> 0 | T32: 0 | X32: 0 | Y32: 0 | AB32: ='[16]3. 2015 Continuity Schedule'!$R$34 -> -43770.42 | AC32: =Y32+Z32-AA32+SUM(AB32:AB32) -> -43770.42 | AD32: =X32 -> 0 | AG32: ='[16]3. 2015 Continuity Schedule'!$W$34 -> -64405.03 | AH32: -64405.03 | AI32: -43770.42 | AJ32: ='[16]3. 2015 Continuity Schedule'!$Z$34 -> -2160.73 | AM32: -45931.15 | AN32: -64405.03 | AO32: ='[16]3. 2015 Continuity Schedule'!$AE$34 -> 822.37 | AR32: -63582.66 | AS32: -45931.15 | AT32: 2161 | AU32: -43770 | AW32: -0.15 | AX32: -63582.66 | AY32: -1358 | AZ32: -64941 | BB32: 0.34 | BC32: -0.15 | BG32: -0.15 | BH32: 0.34 | BL32: 0.34 | BO32: -0.15 | BP32: 0.34 | BS32: 0.34 | BT32: =IF(CA9=TRUE, SUM(BO32:BR32), 0) -> 0 | BU32: 0 | BV32: -0.19
D33: 1595 | I33: 0 | N33: 0 | O33: 0 | S33: =O33+P33-Q33+SUM(R33:R33) -> 0 | T33: 0 | X33: 0 | Y33: 0 | AC33: =Y33+Z33-AA33+SUM(AB33:AB33) -> 0 | AD33: =X33 -> 0 | AH33: 0 | AI33: 0 | AM33: 0 | AN33: 0 | AR33: 0 | AS33: 0 | AW33: 0 | AX33: 0 | BB33: 0 | BC33: 0 | BG33: 0 | BH33: 0 | BL33: 0 | BO33: 0 | BP33: 0 | BS33: 0 | BT33: =IF(CA1=TRUE, SUM(BO33:BR33), 0) -> 0 | BU33: 0 | BV33: 0
D34: 1595 | I34: 0 | N34: 0 | O34: 0 | S34: =O34+P34-Q34+SUM(R34:R34) -> 0 | T34: 0 | X34: 0 | Y34: 0 | AC34: =Y34+Z34-AA34+SUM(AB34:AB34) -> 0 | AD34: =X34 -> 0 | AH34: 0 | AI34: 0 | AM34: 0 | AN34: 0 | AR34: 0 | AS34: 0 | AW34: 0 | AX34: 0 | BB34: 0 | BC34: 0 | BG34: 0 | BH34: 0 | BL34: 0 | BO34: 0 | BP34: 0 | BS34: 0 | BT34: =IF(CA2=TRUE, SUM(BO34:BR34), 0) -> 0 | BU34: 0 | BV34: 0
D35: 1595 | I35: 0 | N35: 0 | O35: 0 | S35: =O35+P35-Q35+SUM(R35:R35) -> 0 | T35: 0 | X35: 0 | Y35: 0 | AC35: =Y35+Z35-AA35+SUM(AB35:AB35) -> 0 | AD35: =X35 -> 0 | AH35: 0 | AI35: 0 | AM35: 0 | AN35: 0 | AR35: 0 | AS35: 0 | AT35: ='[16]3. 2015 Continuity Schedule'!$AJ$37 -> 1993399.96 | AU35: ='[16]3. 2015 Continuity Schedule'!$AK$37 -> 4619846.78 | AW35: -2626446.82 | AX35: 0 | AY35: ='[16]3. 2015 Continuity Schedule'!$AO$37 -> -31874.73 | AZ35: ='[16]3. 2015 Continuity Schedule'!$AP$37 -> -1473264.97 | BB35: 1441390.24 | BC35: -2626446.82 | BD35: =2089832.05-1059883.55 -> 1029948.5 | BG35: -1596498.32 | BH35: 1441390.24 | BI35: =-27052.51+6310.04 -> -20742.47 | BL35: 1420647.77 | BO35: -1596498.32 | BP35: 1420647.77 | BQ35: -17561.48152 | BR35: =BO35*0.011*(4/12) -> -5853.827173 | BS35: 1397232.461 | BT35: =IF(CA3=TRUE, SUM(BO35:BR35), 0) -> -199265.8587 | BU35: -175851 | BV35: -0.4500000007
D36: 1595 | I36: 0 | N36: 0 | O36: 0 | S36: =O36+P36-Q36+SUM(R36:R36) -> 0 | T36: 0 | X36: 0 | Y36: 0 | AC36: =Y36+Z36-AA36+SUM(AB36:AB36) -> 0 | AD36: =X36 -> 0 | AH36: 0 | AI36: 0 | AM36: 0 | AN36: 0 | AR36: 0 | AS36: 0 | AW36: 0 | AX36: 0 | BB36: 0 | BC36: 0 | BD36: =665656.82-916807.05 -> -251150.23 | BE36: =1064547.64-1610240.76 -> -545693.12 | BG36: 294542.89 | BH36: 0 | BI36: =-22438.67-22579.68+BJ36 -> 1918.65 | BJ36: =19158+27779 -> 46937 | BL36: -45018.35 | BO36: 294542.89 | BP36: -45018.35 | BS36: -45018.35 | BT36: =IF(CA4=TRUE, SUM(BO36:BR36), 0) -> 0 | BU36: 249525 | BV36: 0.46
C38: =C29 -> RSVA - Global Adjustment | D38: 1589 | E38: =E29 -> 0 | F38: 0 | G38: 0 | H38: 0 | I38: 0 | J38: 0 | K38: 0 | L38: 0 | M38: 0 | N38: 0 | O38: 0 | P38: 0 | Q38: 0 | R38: 0 | S38: 0 | T38: 0 | U38: 0 | V38: 0 | W38: 0 | X38: 0 | Y38: 0 | Z38: 0 | AA38: 0 | AB38: 3681340.18 | AC38: 3681340.18 | AD38: 0 | AE38: 0 | AF38: 0 | AG38: 42784.26 | AH38: 42784.26 | AI38: 3681340.18 | AJ38: 1610240.76 | AK38: 0 | AL38: 0 | AM38: 5291580.94 | AN38: 42784.26 | AO38: 12814.17 | AP38: 0 | AQ38: 0 | AR38: 55598.43 | AS38: 5291580.94 | AT38: 2828516.78 | AU38: 3681340.6 | AV38: -1652047 | AW38: 2786710.12 | AX38: 55598.43 | AY38: 45733.48 | AZ38: 114938.53 | BA38: 10275 | BB38: -3331.62 | BC38: 2786710.12 | BD38: -4226.3 | BE38: 1610240.34 | BF38: -254143 | BG38: 918100.48 | BH38: -3331.62 | BI38: 23878.34066 | BJ38: -27779.38934 | BK38: -12865 | BL38: 35461.11 | BM38: 0 | BN38: 0 | BO38: 918100.48 | BP38: 35461.11 | BQ38: =BQ29 -> 10099.10528 | BR38: =BR29 -> 3366.368427 | BS38: =BS29 -> 48926.58371 | BT38: =BT29 -> 967027.0637 | BU38: =BU29 -> 2862342 | BV38: =BU38-SUM(BG38,BL38) -> 1908780.41
E39: =SUM(E21:E36)-E29 -> 0 | F39: =SUM(F21:F36)-F29 -> 0 | G39: =SUM(G21:G36)-G29 -> 0 | H39: =SUM(H21:H36)-H29 -> 0 | I39: 0 | J39: 0 | K39: 0 | L39: 0 | M39: 0 | N39: =SUM(N21:N36)-N29 -> 0 | O39: 0 | P39: 0 | Q39: 0 | R39: 0 | S39: 0 | T39: 0 | U39: 0 | V39: 0 | W39: 0 | X39: 0 | Y39: 0 | Z39: 0 | AA39: 0 | AB39: -8301186.68 | AC39: -8301186.68 | AD39: 0 | AE39: 0 | AF39: 0 | AG39: 1507650.19 | AH39: 1507650.19 | AI39: -8301186.68 | AJ39: -1359610.01 | AK39: =SUM(AK21:AK36)-AK29 -> 0 | AL39: 0 | AM39: -9660796.69 | AN39: 1507650.19 | AO39: -158640.59 | AP39: 0 | AQ39: 0 | AR39: 1349009.6 | AS39: -9660796.69 | AT39: -706040.57 | AU39: -3681340.23 | AV39: 1652047 | AW39: -5033450.03 | AX39: 1349009.6 | AY39: -83772.15 | AZ39: -114938.76 | BA39: -10275 | BB39: 1369901.21 | BC39: -5033450.03 | BD39: -3448457.81 | BE39: -1907583.44 | BF39: 254143 | BG39: -6320181.4 | BH39: 1369901.21 | BI39: -53517.98027 | BJ39: 27502.74973 | BK39: 12865 | BL39: 1301745.48 | BM39: 0 | BN39: 0 | BO39: -6320181.4 | BP39: 1301745.48 | BQ39: -72761.96323 | BR39: -24253.98774 | BS39: =SUM(BS21:BS36)-BS29 -> 1204729.529 | BT39: =SUM(BT21:BT36)-BT29 -> -5364976.641 | BU39: =SUM(BU21:BU36)-BU29-BU24-BU25 -> -6927217 | BV39: =BU39-SUM(BG39,BL39) -> -1908781.08
E40: =SUM(E38,E39) -> 0 | F40: =SUM(F38,F39) -> 0 | G40: 0 | H40: 0 | I40: 0 | J40: 0 | K40: 0 | L40: 0 | M40: 0 | N40: 0 | O40: 0 | P40: =SUM(P38,P39) -> 0 | Q40: =SUM(Q38,Q39) -> 0 | R40: 0 | S40: 0 | T40: 0 | U40: 0 | V40: 0 | W40: 0 | X40: 0 | Y40: 0 | Z40: 0 | AA40: 0 | AB40: -4619846.5 | AC40: -4619846.5 | AD40: 0 | AE40: 0 | AF40: 0 | AG40: 1550434.45 | AH40: 1550434.45 | AI40: -4619846.5 | AJ40: 250630.75 | AK40: 0 | AL40: 0 | AM40: -4369215.75 | AN40: 1550434.45 | AO40: -145826.42 | AP40: 0 | AQ40: 0 | AR40: 1404608.03 | AS40: -4369215.75 | AT40: 2122476.21 | AU40: 0.3699999992 | AV40: 0 | AW40: -2246739.91 | AX40: 1404608.03 | AY40: -38038.67 | AZ40: -0.23 | BA40: 0 | BB40: 1366569.59 | BC40: -2246739.91 | BD40: -3452684.11 | BE40: -297343.1 | BF40: 0 | BG40: -5402080.92 | BH40: 1366569.59 | BI40: -29639.63961 | BJ40: -276.639608 | BK40: 0 | BL40: 1337206.59 | BM40: 0 | BN40: 0 | BO40: -5402080.92 | BP40: 1337206.59 | BQ40: -62662.85795 | BR40: -20887.61932 | BS40: 1253656.113 | BT40: =SUM(BT38,BT39) -> -4397949.577 | BU40: =SUM(BU38,BU39) -> -4064875 | BV40: =SUM(BV38,BV39) -> -0.6699999971
A42: 29 | D42: 1568 | S42: =O42+P42-Q42+SUM(R42:R42) -> 0 | X42: =T42+U42-V42+W42 -> 0 | Y42: =S42 -> 0 | AC42: =Y42+Z42-AA42+SUM(AB42:AB42) -> 0 | AD42: =X42 -> 0 | AH42: =AD42+AE42-AF42+AG42 -> 0 | AI42: =AC42 -> 0 | AM42: =AI42+AJ42-AK42+SUM(AL42:AL42) -> 0 | AN42: =AH42 -> 0 | AR42: =AN42+AO42-AP42+AQ42 -> 0 | AS42: =AM42 -> 0 | AW42: =AS42+AT42-AU42+SUM(AV42:AV42) -> 0 | AX42: =AR42 -> 0 | BB42: =AX42+AY42-AZ42+BA42 -> 0 | BC42: =AW42 -> 0 | BD42: =[17]Reconciliation!$F$10 -> 477113.746 | BE42: 0 | BG42: =BC42+BD42-BE42+SUM(BF42:BF42) -> 477113.746 | BH42: =BB42 -> 0 | BI42: =[17]Reconciliation!$K$10 -> 12822.37181 | BL42: =BH42+BI42-BJ42+BK42 -> 12822.37181 | BO42: =BG42-BM42 -> 477113.746 | BP42: =BL42-BN42 -> 12822.37181 | BQ42: =BO42*0.011 -> 5248.251206 | BR42: =BO42*0.011*(4/12) -> 1749.417069 | BS42: =BP42+BQ42+BR42 -> 19820.04009 | BT42: =SUM(BO42:BR42) -> 496933.7861 | BU42: 481097 | BV42: =BU42-SUM(BG42,BL42) -> -8839.117837
E44: =SUM(E40,E42) -> 0 | F44: =SUM(F40,F42) -> 0 | G44: 0 | H44: 0 | I44: 0 | J44: 0 | K44: 0 | L44: 0 | M44: 0 | N44: 0 | O44: 0 | P44: 0 | Q44: 0 | R44: 0 | S44: 0 | T44: 0 | U44: 0 | V44: 0 | W44: 0 | X44: 0 | Y44: 0 | Z44: 0 | AA44: 0 | AB44: -4619846.5 | AC44: -4619846.5 | AD44: 0 | AE44: 0 | AF44: 0 | AG44: 1550434.45 | AH44: 1550434.45 | AI44: -4619846.5 | AJ44: 250630.75 | AK44: 0 | AL44: 0 | AM44: -4369215.75 | AN44: 1550434.45 | AO44: -145826.42 | AP44: 0 | AQ44: 0 | AR44: 1404608.03 | AS44: -4369215.75 | AT44: 2122476.21 | AU44: 0.3699999992 | AV44: 0 | AW44: -2246739.91 | AX44: 1404608.03 | AY44: -38038.67 | AZ44: -0.23 | BA44: 0 | BB44: 1366569.59 | BC44: -2246739.91 | BD44: -2975570.364 | BE44: -297343.1 | BF44: 0 | BG44: -4924967.174 | BH44: 1366569.59 | BI44: -16817.26779 | BJ44: -276.639608 | BK44: 0 | BL44: 1350028.962 | BM44: 0 | BN44: 0 | BO44: -4924967.174 | BP44: 1350028.962 | BQ44: -57414.60674 | BR44: =SUM(BR40,BR42) -> -19138.20225 | BS44: =SUM(BS40,BS42) -> 1273476.153 | BT44: =SUM(BT40,BT42) -> -3901015.791 | BU44: =SUM(BU40,BU42) -> -3583778 | BV44: =SUM(BV40,BV42) -> -8839.787837
B50: 1
B51: 2
B52: 3
B53: 4

Sheet 2016 List (hidden)
X1: 8 | Y1: 0

Sheet 4. Billing Det. for Def-Var
B2: FALSE
C17: 424304413 | D17: 0 | E17: 27150258 | F17: 0 | I17: =C17-G17 -> 424304413 | J17: 0 | P17: 0.7009188842 | R17: 83739.87 | S17: 47518
C18: 125782373 | D18: 0 | E18: 18705558 | F18: 0 | I18: 125782373 | J18: 0 | P18: 0.1851766365 | R18: 150772.06 | S18: 4471
C19: 644165900 | D19: 1640396 | E19: 581251576 | F19: 1495147 | I19: 644165900 | J19: 1640396 | P19: 0.09970344364 | R19: 262421.86
C20: 1583365 | D20: 0 | E20: 0 | F20: 0 | I20: 1583365 | J20: 0 | P20: 0.002074333717
C21: 255688 | D21: 672 | E21: 22409 | F21: 58 | I21: 255688 | J21: 672 | P21: 0.0003224325561
C22: 7092580 | D22: 20270 | E22: 7030180 | F22: 19789 | I22: 7092580 | J22: 20270 | P22: 0.01180426933
C23: =SUM($C$17:$C$22) -> 1203184319 | D23: =SUM($D$17:$D$22) -> 1661338 | E23: =SUM($E$17:$E$22) -> 634159981 | F23: =SUM($F$17:$F$22) -> 1514994 | G23: =SUM($G$17:$G$22) -> 0 | H23: =SUM($H$17:$H$22) -> 0 | I23: =SUM($I$17:$I$22) -> 1203184319 | J23: =SUM($J$17:$J$22) -> 1661338 | K23: =SUM($K$17:$K$22) -> 0 | L23: =SUM($L$17:$L$22) -> 0 | M23: =SUM($M$17:$M$22) -> 0 | N23: =SUM($N$17:$N$22) -> 0 | O23: =SUM($O$17:$O$22) -> 0 | P23: =SUM($P$17:$P$22) -> 1 | Q23: =SUM($Q$17:$Q$22) -> 0 | R23: =SUM($R$17:$R$22) -> 496933.79 | S23: =SUM($S$17:$S$22) -> 51989
T25: ='3. Continuity Schedule'!BT42 -> 496933.7861
C26: -3901015.791 | R26: =IF(T25=R23,"Total Balance of Account 1568 in Column R matches the amount entered on the Continuity Schedule","Total Balance of Account 1568 in Column R DOES NOT MATCH the amount entered on the Continuity Schedule") -> Total Balance of Account 1568 in Column R DOES NOT MATCH the amount entered on the Continuity Schedule
C27: -4397949.577
C28: -0.00365525839

Sheet 2 1 5 TotalConsumptionData_Dist (hidden)
A5: 2016 | F5: 2692519.29 | G5: 6416 | H5: 4531153.17 | I5: 15176.17 | J5: 79305311.22 | K5: 186669.1 | L5: 83836464.39 | M5: 201845.27 | N5: 86528983.68 | O5: 208261.27
A6: 2016 | F6: 3333837.04 | G6: 0 | H6: 103672663.2 | I6: 0 | J6: 0 | K6: 0 | L6: 103672663.2 | M6: 0 | N6: 107006500.3 | O6: 0
A7: 2016 | F7: 49561.54 | G7: 0 | H7: 6818828.66 | I7: 0 | J7: 0 | K7: 0 | L7: 6818828.66 | M7: 0 | N7: 6868390.2 | O7: 0
A8: 2016 | F8: 253883.5 | G8: 0 | H8: 0 | I8: 0 | J8: 488812.8 | K8: 0 | L8: 488812.8 | M8: 0 | N8: 742696.3 | O8: 0
A9: 2016 | F9: 668520 | G9: 2044 | H9: 0 | I9: 0 | J9: 16902580 | K9: 48855 | L9: 16902580 | M9: 48855 | N9: 17571100 | O9: 50899
A10: 2016 | F10: 110276 | G10: 0 | H10: 4999955 | I10: 0 | J10: 0 | K10: 0 | L10: 4999955 | M10: 0 | N10: 5110231 | O10: 0
A11: 2016 | F11: 170206 | G11: 0 | H11: 9055158 | I11: 0 | J11: 0 | K11: 0 | L11: 9055158 | M11: 0 | N11: 9225364 | O11: 0
A12: 2016 | F12: 0 | G12: 0 | H12: 0 | I12: 0 | J12: 463596 | K12: 1436 | L12: 463596 | M12: 1436 | N12: 463596 | O12: 1436
A13: 2016 | F13: 17432080 | G13: 31612 | H13: 0 | I13: 0 | J13: 141892363 | K13: 315190 | L13: 141892363 | M13: 315190 | N13: 159324443 | O13: 346802
A14: 2016 | F14: 29923789 | G14: 98192 | H14: 43867520 | I14: 116644 | J14: 131550596 | K14: 358466 | L14: 175418116 | M14: 475110 | N14: 205341905 | O14: 573302
A15: 2016 | F15: 0 | G15: 0 | H15: 0 | I15: 0 | J15: 4861852 | K15: 9171 | L15: 4861852 | M15: 9171 | N15: 4861852 | O15: 9171
A16: 2016 | F16: =SUM(F14:F15) -> 29923789 | G16: =SUM(G14:G15) -> 98192 | H16: 43867520 | I16: 116644 | J16: 136412448 | K16: 367637 | L16: 180279968 | M16: 484281 | N16: 210203757 | O16: 582473
A17: 2016 | F17: 14944265 | G17: 0 | H17: 90053335 | I17: 0 | J17: 0 | K17: 0 | L17: 90053335 | M17: 0 | N17: 104997600 | O17: 0 | T17: =E17-G17-L17 ->  | U17: -75109070 | V17: =T17/T21 -> 
A18: 2016 | F18: 0 | G18: 0 | H18: 0 | I18: 0 | J18: 142415629 | K18: 203770 | L18: 142415629 | M18: 203770 | N18: 142415629 | O18: 203770 | U18: -203770 | V18: =T18/T21 -> 
A19: 2016 | F19: 0 | G19: 0 | H19: 0 | I19: 0 | J19: 116073155 | K19: 196881 | L19: 116073155 | M19: 196881 | N19: 116073155 | O19: 196881 | U19: -196881 | V19: =T19/T21 -> 
A20: 2016 | F20: =SUM(F18:F19) -> 0 | G20: 0 | H20: 0 | I20: 0 | J20: 258488784 | K20: 400651 | L20: 258488784 | M20: 400651 | N20: 258488784 | O20: 400651 | U20: -400651 | V20: =T20/T21 -> 
A21: 2016 | F21: 13995887 | G21: 0 | H21: 233535927 | I21: 0 | J21: 0 | K21: 0 | L21: 233535927 | M21: 0 | N21: 247531814 | O21: 0
A22: 2016 | F22: 24216.96 | G22: 29 | H22: 0 | I22: 0 | J22: 483163 | K22: 1225 | L22: 483163 | M22: 1225 | N22: 507379.96 | O22: 1254
A23: 2016 | F23: 0 | G23: 0 | H23: 0 | I23: 0 | J23: 6427057 | K23: 17287 | L23: 6427057 | M23: 17287 | N23: 6427057 | O23: 17287
A24: 2016 | F24: 0 | G24: 0 | H24: 2211250 | I24: 0 | J24: 0 | K24: 0 | L24: 2211250 | M24: 0 | N24: 2211250 | O24: 0
A25: 2016 | F25: 0 | G25: 0 | H25: 0 | I25: 0 | J25: 0 | K25: 0 | L25: 0 | M25: 0 | N25: 0 | O25: 0
A26: 2016 | F26: 33636347 | G26: 99504 | H26: 0 | I26: 0 | J26: 124170242 | K26: 250435 | L26: 124170242 | M26: 250435 | N26: 157806589 | O26: 349939
A27: 2016 | F27: 5918267 | G27: 0 | H27: 27917188 | I27: 407.48 | J27: 0 | K27: 0 | L27: 27917188 | M27: 407.48 | N27: 33835455 | O27: 407.48
A28: 2016 | F28: 3215849 | G28: 0 | H28: 78091679 | I28: 0 | J28: 0 | K28: 0 | L28: 78091679 | M28: 0 | N28: 81307528 | O28: 0
A29: 2016 | F29: 26588 | G29: 0 | H29: 103263 | I29: 379.35 | J29: 0 | K29: 0 | L29: 103263 | M29: 379.35 | N29: 129851 | O29: 379.35
A30: 2016 | F30: 1696635 | G30: 4770 | H30: 0 | I30: 0 | J30: 997 | K30: 0 | L30: 997 | M30: 0 | N30: 1697632 | O30: 4770
A31: 2016 | F31: 222815 | G31: 0 | H31: 240491 | I31: 0 | J31: 0 | K31: 0 | L31: 240491 | M31: 0 | N31: 463306 | O31: 0
A32: 2016 | F32: 0 | G32: 0 | H32: 0 | I32: 0 | J32: 68321609 | K32: 142203.4 | L32: 68321609 | M32: 142203.4 | N32: 68321609 | O32: 142203.4
A33: 2016 | F33: 113832476.1 | G33: 303092 | H33: 34798942 | I33: 131694 | J33: 362421097 | K33: 954360 | L33: 397220039 | M33: 1086054 | N33: 511052515.1 | O33: 1389146
A34: 2016 | F34: 13633043.86 | G34: 0 | H34: 85601145 | I34: 0 | J34: 29552 | K34: 0 | L34: 85630697 | M34: 0 | N34: 99263740.86 | O34: 0
A35: 2016 | F35: 19368894.09 | G35: 0 | H35: 266108385 | I35: 0 | J35: 0 | K35: 0 | L35: 266108385 | M35: 0 | N35: 285477279.1 | O35: 0
A36: 2016 | F36: 18163.96 | G36: 55 | H36: 365091 | I36: 1115 | J36: 59864 | K36: 183 | L36: 424955 | M36: 1298 | N36: 443118.96 | O36: 1353
A37: 2016 | F37: 0 | G37: 0 | H37: 0 | I37: 0 | J37: 7101494 | K37: 21707 | L37: 7101494 | M37: 21707 | N37: 7101494 | O37: 21707
A38: 2016 | F38: 0 | G38: 0 | H38: 1506118 | I38: 0 | J38: 0 | K38: 0 | L38: 1506118 | M38: 0 | N38: 1506118 | O38: 0
A39: 2016 | F39: 191716972 | G39: 473779 | H39: 118023444 | I39: 349266 | J39: 591950400 | K39: 1567289 | L39: 709973844 | M39: 1916555 | N39: 901690816 | O39: 2390334
A40: 2016 | F40: 26241201 | G40: 567 | H40: 141834540 | I40: 543 | J40: 307818 | K40: 505 | L40: 142142358 | M40: 1048 | N40: 168383559 | O40: 1615
A41: 2016 | F41: 16766066 | G41: 0 | H41: 512664885 | I41: 0 | J41: 0 | K41: 0 | L41: 512664885 | M41: 0 | N41: 529430951 | O41: 0
A42: 2016 | F42: 0 | G42: 0 | H42: 46550 | I42: 131 | J42: 9872218 | K42: 27536 | L42: 9918768 | M42: 27667 | N42: 9918768 | O42: 27667
A43: 2016 | F43: 0 | G43: 0 | H43: 3091043 | I43: 0 | J43: 0 | K43: 0 | L43: 3091043 | M43: 0 | N43: 3091043 | O43: 0
A44: 2016 | F44: 0 | G44: 0 | H44: 0 | I44: 0 | J44: 13548203 | K44: 28843.22 | L44: 13548203 | M44: 28843.22 | N44: 13548203 | O44: 28843.22
A45: 2016 | F45: 0 | G45: 0 | H45: 0 | I45: 0 | J45: 0 | K45: 108928.8 | L45: 0 | M45: 108928.8 | N45: 0 | O45: 108928.8
A46: 2016 | F46: =SUM(F44:F45) -> 0 | G46: =SUM(G44:G45) -> 0 | H46: 0 | I46: 0 | J46: 13548203 | K46: 137772.02 | L46: 13548203 | M46: 137772.02 | N46: 13548203 | O46: 137772.02
A47: 2016 | F47: 68969295 | G47: 0 | H47: 0 | I47: 0 | J47: 188789212 | K47: 391367 | L47: 188789212 | M47: 391367 | N47: 257758507 | O47: 391367
A48: 2016 | F48: 85818807 | G48: 0 | H48: 134435481 | I48: 0 | J48: 202613461 | K48: 1071817 | L48: 337048942 | M48: 1071817 | N48: 422867749 | O48: 1071817
A49: 2016 | F49: 24701976 | G49: 0 | H49: 142389060 | I49: 0 | J49: 60468 | K49: 0 | L49: 142449528 | M49: 0 | N49: 167151504 | O49: 0
A50: 2016 | F50: 0 | G50: 0 | H50: 0 | I50: 0 | J50: 207374362 | K50: 430087 | L50: 207374362 | M50: 430087 | N50: 207374362 | O50: 430087
A51: 2016 | F51: 18707073 | G51: 0 | H51: 382624949 | I51: 0 | J51: 0 | K51: 0 | L51: 382624949 | M51: 0 | N51: 401332022 | O51: 0
A52: 2016 | F52: 6859394 | G52: 0 | H52: 0 | I52: 0 | J52: 2837239 | K52: 7928 | L52: 2837239 | M52: 7928 | N52: 9696633 | O52: 7928
A53: 2016 | F53: 4020 | G53: 0 | H53: 1963575 | I53: 0 | J53: 5944 | K53: 0 | L53: 1969519 | M53: 0 | N53: 1973539 | O53: 0
A54: 2016 | F54: 370740.31 | G54: 900 | H54: 1956051.3 | I54: 4863.5 | J54: 14132925.88 | K54: 38309.12 | L54: 16088977.18 | M54: 43172.62 | N54: 16459717.49 | O54: 44072.62
A55: 2016 | F55: 3877741.37 | G55: 13068 | H55: 9209908.27 | I55: 31641.44 | J55: 85075228.75 | K55: 225993.87 | L55: 94285137.02 | M55: 257635.31 | N55: 98162878.39 | O55: 270703.31
A56: 2016 | F56: 9103852.59 | G56: 44985 | H56: 7253948.3 | I56: 21997.03 | J56: 68866316.82 | K56: 247130.13 | L56: 76120265.12 | M56: 269127.16 | N56: 85224117.71 | O56: 314112.16
A57: 2016 | F57: 1300972.52 | G57: 0 | H57: 10688901.53 | I57: 0 | J57: 0 | K57: 0 | L57: 10688901.53 | M57: 0 | N57: 11989874.05 | O57: 0
A58: 2016 | F58: 5033014.55 | G58: 0 | H58: 27282739.36 | I58: 0 | J58: 0 | K58: 0 | L58: 27282739.36 | M58: 0 | N58: 32315753.91 | O58: 0
A59: 2016 | F59: 4293030.84 | G59: 0 | H59: 19889039.79 | I59: 0 | J59: 0 | K59: 0 | L59: 19889039.79 | M59: 0 | N59: 24182070.63 | O59: 0
A60: 2016 | F60: 1692162.77 | G60: 0 | H60: 25990712.98 | I60: 0 | J60: 0 | K60: 0 | L60: 25990712.98 | M60: 0 | N60: 27682875.75 | O60: 0
A61: 2016 | F61: 6741333.73 | G61: 0 | H61: 103951331 | I61: 0 | J61: 0 | K61: 0 | L61: 103951331 | M61: 0 | N61: 110692664.8 | O61: 0
A62: 2016 | F62: 3826314.05 | G62: 0 | H62: 57537814.52 | I62: 0 | J62: 0 | K62: 0 | L62: 57537814.52 | M62: 0 | N62: 61364128.57 | O62: 0
A63: 2016 | F63: 0 | G63: 0 | H63: 34817.5 | I63: 115.9 | J63: 0 | K63: 0 | L63: 34817.5 | M63: 115.9 | N63: 34817.5 | O63: 115.9
A64: 2016 | F64: 0 | G64: 0 | H64: 642135.22 | I64: 2106 | J64: 0 | K64: 0 | L64: 642135.22 | M64: 2106 | N64: 642135.22 | O64: 2106
A65: 2016 | F65: 0 | G65: 0 | H65: 13703.95 | I65: 46.12 | J65: 0 | K65: 0 | L65: 13703.95 | M65: 46.12 | N65: 13703.95 | O65: 46.12
A66: 2016 | F66: 0 | G66: 0 | H66: 15789.72 | I66: 48 | J66: 523881.82 | K66: 1594.74 | L66: 539671.54 | M66: 1642.74 | N66: 539671.54 | O66: 1642.74
A67: 2016 | F67: 16767.78 | G67: 51 | H67: 62525.7 | I67: 187.68 | J67: 2105278.88 | K67: 6408.36 | L67: 2167804.58 | M67: 6596.04 | N67: 2184572.36 | O67: 6647.04
A68: 2016 | F68: 0 | G68: 0 | H68: 26756.74 | I68: 81.72 | J68: 946574.29 | K68: 2837.14 | L68: 973331.03 | M68: 2918.86 | N68: 973331.03 | O68: 2918.86
A69: 2016 | F69: 0 | G69: 0 | H69: 158150.5 | I69: 0 | J69: 0 | K69: 0 | L69: 158150.5 | M69: 0 | N69: 158150.5 | O69: 0
A70: 2016 | F70: 600.03 | G70: 0 | H70: 788522.7 | I70: 0 | J70: 0 | K70: 0 | L70: 788522.7 | M70: 0 | N70: 789122.73 | O70: 0
A71: 2016 | F71: 3960.01 | G71: 0 | H71: 549309.08 | I71: 0 | J71: 0 | K71: 0 | L71: 549309.08 | M71: 0 | N71: 553269.09 | O71: 0
A72: 2016 | F72: 0 | G72: 0 | H72: 0 | I72: 0 | J72: 17295612 | K72: 41432.5 | L72: 17295612 | M72: 41432.5 | N72: 17295612 | O72: 41432.5
A73: 2016 | F73: 9878416 | G73: 26083 | H73: 754224 | I73: 3028.85 | J73: 45012605.65 | K73: 119864.87 | L73: 45766829.65 | M73: 122893.72 | N73: 55645245.65 | O73: 148976.72
A74: 2016 | F74: 4422972 | G74: 0 | H74: 16980621 | I74: 0 | J74: 5089 | K74: 0 | L74: 16985710 | M74: 0 | N74: 21408682 | O74: 0
A75: 2016 | F75: 2576311 | G75: 0 | H75: 42520616.6 | I75: 0 | J75: 0 | K75: 0 | L75: 42520616.6 | M75: 0 | N75: 45096927.6 | O75: 0
A76: 2016 | F76: 12918 | G76: 36 | H76: 26352 | I76: 73.2 | J76: 0 | K76: 0 | L76: 26352 | M76: 73.2 | N76: 39270 | O76: 109.2
A77: 2016 | F77: 0 | G77: 0 | H77: 0 | I77: 0 | J77: 976129 | K77: 2727.2 | L77: 976129 | M77: 2727.2 | N77: 976129 | O77: 2727.2
A78: 2016 | F78: 22368 | G78: 0 | H78: 541471 | I78: 0 | J78: 0 | K78: 0 | L78: 541471 | M78: 0 | N78: 563839 | O78: 0
A79: 2016 | F79: 728749 | G79: 1659 | H79: 0 | I79: 0 | J79: 6138854 | K79: 16402 | L79: 6138854 | M79: 16402 | N79: 6867603 | O79: 18061
A80: 2016 | F80: 127178 | G80: 0 | H80: 4780409 | I80: 0 | J80: 0 | K80: 0 | L80: 4780409 | M80: 0 | N80: 4907587 | O80: 0
A81: 2016 | F81: 78296 | G81: 0 | H81: 13648992 | I81: 0 | J81: 0 | K81: 0 | L81: 13648992 | M81: 0 | N81: 13727288 | O81: 0
A82: 2016 | F82: 0 | G82: 0 | H82: 23735 | I82: 58.92 | J82: 0 | K82: 0 | L82: 23735 | M82: 58.92 | N82: 23735 | O82: 58.92
A83: 2016 | F83: 0 | G83: 0 | H83: 274259 | I83: 768 | J83: 0 | K83: 0 | L83: 274259 | M83: 768 | N83: 274259 | O83: 768
A84: 2016 | F84: 0 | G84: 0 | H84: 2892 | I84: 0 | J84: 0 | K84: 0 | L84: 2892 | M84: 0 | N84: 2892 | O84: 0
A85: 2016 | F85: 20401156 | G85: 52098 | H85: 9040610.3 | I85: 29901.57 | J85: 96056222.61 | K85: 220976 | L85: 105096832.9 | M85: 250877.57 | N85: 125497988.9 | O85: 302975.57
A86: 2016 | F86: 8328216 | G86: 459 | H86: 37520762.26 | I86: 729.5 | J86: 555426.2 | K86: 3062.88 | L86: 38076188.46 | M86: 3792.38 | N86: 46404404.46 | O86: 4251.38
A87: 2016 | F87: 7832983 | G87: 0 | H87: 113744317.3 | I87: 0 | J87: 0 | K87: 0 | L87: 113744317.3 | M87: 0 | N87: 121577300.3 | O87: 0
A88: 2016 | F88: 251976 | G88: 708 | H88: 0 | I88: 0 | J88: 1932379.94 | K88: 5430.48 | L88: 1932379.94 | M88: 5430.48 | N88: 2184355.94 | O88: 6138.48
A89: 2016 | F89: 24519 | G89: 0 | H89: 374931.51 | I89: 0 | J89: 0 | K89: 0 | L89: 374931.51 | M89: 0 | N89: 399450.51 | O89: 0
A90: 2016 | F90: 1290279 | G90: 0 | H90: 0 | I90: 0 | J90: 3026090 | K90: 12238 | L90: 3026090 | M90: 12238 | N90: 4316369 | O90: 12238
A91: 2016 | F91: 331436 | G91: 0 | H91: 4262761 | I91: 0 | J91: 0 | K91: 0 | L91: 4262761 | M91: 0 | N91: 4594197 | O91: 0
A92: 2016 | F92: 517654 | G92: 0 | H92: 18859886 | I92: 0 | J92: 0 | K92: 0 | L92: 18859886 | M92: 0 | N92: 19377540 | O92: 0
A93: 2016 | F93: 373174 | G93: 0 | H93: 0 | I93: 0 | J93: 0 | K93: 1045 | L93: 0 | M93: 1045 | N93: 373174 | O93: 1045
A94: 2016 | F94: 12998 | G94: 0 | H94: 81286 | I94: 0 | J94: 0 | K94: 0 | L94: 81286 | M94: 0 | N94: 94284 | O94: 0
A95: 2016 | F95: 0 | G95: 0 | H95: 0 | I95: 0 | J95: 62245251 | K95: 135969 | L95: 62245251 | M95: 135969 | N95: 62245251 | O95: 135969
A96: 2016 | F96: 0 | G96: 0 | H96: 2335086 | I96: 7813 | J96: 56042062 | K96: 187515 | L96: 58377148 | M96: 195328 | N96: 58377148 | O96: 195328
A97: 2016 | F97: 0 | G97: 0 | H97: 25473582 | I97: 0 | J97: 3148420 | K97: 0 | L97: 28622002 | M97: 0 | N97: 28622002 | O97: 0
A98: 2016 | F98: 1 | G98: 1 | H98: 85294090 | I98: 0 | J98: 5444303 | K98: 0 | L98: 90738393 | M98: 0 | N98: 90738394 | O98: 1
A99: 2016 | F99: 0 | G99: 0 | H99: 0 | I99: 0 | J99: 165452 | K99: 437 | L99: 165452 | M99: 437 | N99: 165452 | O99: 437
A100: 2016 | F100: 0 | G100: 0 | H100: 0 | I100: 0 | J100: 2263158 | K100: 6398 | L100: 2263158 | M100: 6398 | N100: 2263158 | O100: 6398
A101: 2016 | F101: 0 | G101: 0 | H101: 0 | I101: 0 | J101: 259607 | K101: 0 | L101: 259607 | M101: 0 | N101: 259607 | O101: 0
A102: 2016 | F102: 61681994.76 | G102: 142274 | H102: 22240156 | I102: 49031.59 | J102: 147967916 | K102: 369467.7 | L102: 170208072 | M102: 418499.29 | N102: 231890066.8 | O102: 560773.29
A103: 2016 | F103: 321688708.9 | G103: 990349 | H103: 323634734 | I103: 893170.84 | J103: 1233871085 | K103: 3574747.38 | L103: 1557505819 | M103: 4467918.22 | N103: 1879194528 | O103: 5458267.22
A104: 2016 | F104: =SUM(F102:F103) -> 383370703.7 | G104: =SUM(G102:G103) -> 1132623 | H104: 345874890 | I104: 942202.43 | J104: 1381839001 | K104: 3944215.08 | L104: 1727713891 | M104: 4886417.51 | N104: 2111084595 | O104: 6019040.51
A105: 2016 | F105: 430881491.5 | G105: 880399 | H105: 69463330 | I105: 147396.18 | J105: 1019039521 | K105: 2306857.91 | L105: 1088502851 | M105: 2454254.09 | N105: 1519384343 | O105: 3334653.09
A106: 2016 | F106: 52532123.48 | G106: 125298 | H106: 97513004 | I106: 207783.18 | J106: 328830618 | K106: 875780.65 | L106: 426343622 | M106: 1083563.83 | N106: 478875745.5 | O106: 1208861.83
A107: 2016 | F107: =SUM(F105:F106) -> 483413615 | G107: =SUM(G105:G106) -> 1005697 | H107: 166976334 | I107: 355179.36 | J107: 1347870139 | K107: 3182638.56 | L107: 1514846473 | M107: 3537817.92 | N107: 1998260088 | O107: 4543514.92
A108: 2016 | F108: 109960337.6 | G108: 0 | H108: 540980684 | I108: 0 | J108: 0 | K108: 0 | L108: 540980684 | M108: 0 | N108: 650941021.6 | O108: 0
A109: 2016 | F109: 356754141.8 | G109: 669070 | H109: 0 | I109: 0 | J109: 525307049 | K109: 966474.61 | L109: 525307049 | M109: 966474.61 | N109: 882061190.8 | O109: 1635544.61
A110: 2016 | F110: 0 | G110: 0 | H110: 0 | I110: 0 | J110: 49828833 | K110: 97086.31 | L110: 49828833 | M110: 97086.31 | N110: 49828833 | O110: 97086.31
A111: 2016 | F111: =SUM(F109:F110) -> 356754141.8 | G111: =SUM(G109:G110) -> 669070 | H111: 0 | I111: 0 | J111: 575135882 | K111: 1063560.92 | L111: 575135882 | M111: 1063560.92 | N111: 931890023.8 | O111: 1732630.92
A112: 2016 | F112: 82426794.57 | G112: 0 | H112: 1393242590 | I112: 0 | J112: 0 | K112: 0 | L112: 1393242590 | M112: 0 | N112: 1475669385 | O112: 0
A113: 2016 | F113: 0 | G113: 0 | H113: 0 | I113: 0 | J113: 25086656 | K113: 71868.66 | L113: 25086656 | M113: 71868.66 | N113: 25086656 | O113: 71868.66
A114: 2016 | F114: 512004.52 | G114: 0 | H114: 10240932 | I114: 0 | J114: 0 | K114: 0 | L114: 10240932 | M114: 0 | N114: 10752936.52 | O114: 0
A115: 2016 | F115: 953822.42 | G115: 1910 | H115: 58232.32 | I115: 175.4 | J115: 517713.26 | K115: 1462.95 | L115: 575945.58 | M115: 1638.35 | N115: 1529768 | O115: 3548.35
A116: 2016 | F116: 11969320.88 | G116: 29079 | H116: 6172522.55 | I116: 17256.76 | J116: 86323011.61 | K116: 188865.29 | L116: 92495534.16 | M116: 206122.05 | N116: 104464855 | O116: 235201.05
A117: 2016 | F117: 54682160.99 | G117: 160156 | H117: 41399755.34 | I117: 115964.79 | J117: 144885581.3 | K117: 394694.87 | L117: 186285336.6 | M117: 510659.66 | N117: 240967497.6 | O117: 670815.66
A118: 2016 | F118: 38837452.83 | G118: 82157 | H118: 0 | I118: 0 | J118: 81493051.98 | K118: 207120.58 | L118: 81493051.98 | M118: 207120.58 | N118: 120330504.8 | O118: 289277.58
A119: 2016 | F119: =SUM(F115:F118) -> 106442757.1 | G119: =SUM(G115:G118) -> 273302 | H119: 47630510.21 | I119: 133396.95 | J119: 313219358.2 | K119: 792143.69 | L119: 360849868.4 | M119: 925540.64 | N119: 467292625.5 | O119: 1198842.64
A120: 2016 | F120: 0 | G120: 0 | H120: 0 | I120: 0 | J120: 27688080.21 | K120: 86830 | L120: 27688080.21 | M120: 86830 | N120: 27688080.21 | O120: 86830
A121: 2016 | F121: 14347259.97 | G121: 0 | H121: 74992835.68 | I121: 0 | J121: 0 | K121: 0 | L121: 74992835.68 | M121: 0 | N121: 89340095.65 | O121: 0
A122: 2016 | F122: 133334.36 | G122: 0 | H122: 3195549.64 | I122: 0 | J122: 0 | K122: 0 | L122: 3195549.64 | M122: 0 | N122: 3328884 | O122: 0
A123: 2016 | F123: 22997.65 | G123: 0 | H123: 570116.35 | I123: 0 | J123: 0 | K123: 0 | L123: 570116.35 | M123: 0 | N123: 593114 | O123: 0
A124: 2016 | F124: 3742300.32 | G124: 0 | H124: 14895973.08 | I124: 0 | J124: 0 | K124: 0 | L124: 14895973.08 | M124: 0 | N124: 18638273.4 | O124: 0
A125: 2016 | F125: =SUM(F121:F124) -> 18245892.3 | G125: =SUM(G121:G124) -> 0 | H125: 93654474.75 | I125: 0 | J125: 0 | K125: 0 | L125: 93654474.75 | M125: 0 | N125: 111900367.1 | O125: 0
A126: 2016 | F126: 0 | G126: 0 | H126: 0 | I126: 0 | J126: 30928749.49 | K126: 62210 | L126: 30928749.49 | M126: 62210 | N126: 30928749.49 | O126: 62210
A127: 2016 | F127: =F120+F126 -> 0 | G127: =G120+G126 -> 0 | H127: 0 | I127: 0 | J127: 58616829.7 | K127: 149040 | L127: 58616829.7 | M127: 149040 | N127: 58616829.7 | O127: 149040
A128: 2016 | F128: 16860541.2 | G128: 0 | H128: 202217668.3 | I128: 0 | J128: 0 | K128: 0 | L128: 202217668.3 | M128: 0 | N128: 219078209.5 | O128: 0
A129: 2016 | F129: 419902.43 | G129: 0 | H129: 4039081.57 | I129: 0 | J129: 0 | K129: 0 | L129: 4039081.57 | M129: 0 | N129: 4458984 | O129: 0
A130: 2016 | F130: 147250.48 | G130: 0 | H130: 1167882.52 | I130: 0 | J130: 0 | K130: 0 | L130: 1167882.52 | M130: 0 | N130: 1315133 | O130: 0
A131: 2016 | F131: 5232594.36 | G131: 0 | H131: 50660529.4 | I131: 0 | J131: 0 | K131: 0 | L131: 50660529.4 | M131: 0 | N131: 55893123.76 | O131: 0
A132: 2016 | F132: =SUM(F128:F131) -> 22660288.47 | G132: =SUM(G128:G131) -> 0 | H132: 258085161.8 | I132: 0 | J132: 0 | K132: 0 | L132: 258085161.8 | M132: 0 | N132: 280745450.3 | O132: 0
A133: 2016 | F133: 6209.02 | G133: 0 | H133: 347478.98 | I133: 983.24 | J133: 0 | K133: 0 | L133: 347478.98 | M133: 983.24 | N133: 353688 | O133: 983.24
A134: 2016 | F134: 0 | G134: 0 | H134: 881 | I134: 2 | J134: 0 | K134: 0 | L134: 881 | M134: 2 | N134: 881 | O134: 2
A135: 2016 | F135: 277.4 | G135: 0 | H135: 43479.58 | I135: 120.9 | J135: 0 | K135: 0 | L135: 43479.58 | M135: 120.9 | N135: 43756.98 | O135: 120.9
A136: 2016 | F136: =SUM(F133:F135) -> 6486.42 | G136: =SUM(G133:G135) -> 0 | H136: 391839.56 | I136: 1106.14 | J136: 0 | K136: 0 | L136: 391839.56 | M136: 1106.14 | N136: 398325.98 | O136: 1106.14
A137: 2016 | F137: 0 | G137: 0 | H137: 0 | I137: 0 | J137: 5926383.7 | K137: 17520.12 | L137: 5926383.7 | M137: 17520.12 | N137: 5926383.7 | O137: 17520.12
A138: 2016 | F138: 0 | G138: 0 | H138: 0 | I138: 0 | J138: 116024 | K138: 343.4 | L138: 116024 | M138: 343.4 | N138: 116024 | O138: 343.4
A139: 2016 | F139: 0 | G139: 0 | H139: 0 | I139: 0 | J139: 55093 | K139: 163.1 | L139: 55093 | M139: 163.1 | N139: 55093 | O139: 163.1
A140: 2016 | F140: 96717.37 | G140: 270 | H140: 0 | I140: 0 | J140: 1235616.33 | K140: 3696.82 | L140: 1235616.33 | M140: 3696.82 | N140: 1332333.7 | O140: 3966.82
A141: 2016 | F141: =SUM(F137:F140) -> 96717.37 | G141: =SUM(G137:G140) -> 270 | H141: 0 | I141: 0 | J141: 7333117.03 | K141: 21723.44 | L141: 7333117.03 | M141: 21723.44 | N141: 7429834.4 | O141: 21993.44
A142: 2016 | F142: 0 | G142: 0 | H142: 922042.96 | I142: 0 | J142: 0 | K142: 0 | L142: 922042.96 | M142: 0 | N142: 922042.96 | O142: 0
A143: 2016 | F143: 0 | G143: 0 | H143: 325760 | I143: 0 | J143: 0 | K143: 0 | L143: 325760 | M143: 0 | N143: 325760 | O143: 0
A144: 2016 | F144: =SUM(F142:F143) -> 0 | G144: =SUM(G142:G143) -> 0 | H144: 1247802.96 | I144: 0 | J144: 0 | K144: 0 | L144: 1247802.96 | M144: 0 | N144: 1247802.96 | O144: 0
A145: 2016 | F145: 0 | G145: 0 | H145: 0 | I145: 0 | J145: 44363940.88 | K145: 128585.57 | L145: 44363940.88 | M145: 128585.57 | N145: 44363940.88 | O145: 128585.57
A146: 2016 | F146: 174752141.2 | G146: 468512 | H146: 191415995.8 | I146: 490048.72 | J146: 577037480.6 | K146: 1454493.73 | L146: 768453476.5 | M146: 1944542.45 | N146: 943205617.7 | O146: 2413054.45
A147: 2016 | F147: 34745536.8 | G147: 0 | H147: 174375677.2 | I147: 0 | J147: 0 | K147: 0 | L147: 174375677.2 | M147: 0 | N147: 209121214 | O147: 0
A148: 2016 | F148: 0 | G148: 0 | H148: 0 | I148: 0 | J148: 241052438.8 | K148: 487724.93 | L148: 241052438.8 | M148: 487724.93 | N148: 241052438.8 | O148: 487724.93
A149: 2016 | F149: 0 | G149: 0 | H149: 0 | I149: 0 | J149: 47202925.82 | K149: 82844.53 | L149: 47202925.82 | M149: 82844.53 | N149: 47202925.82 | O149: 82844.53
A150: 2016 | F150: 24214121.3 | G150: 73464 | H150: 0 | I150: 0 | J150: 276980348 | K150: 485855.81 | L150: 276980348 | M150: 485855.81 | N150: 301194469.3 | O150: 559319.81
A151: 2016 | F151: 30900103.9 | G151: 0 | H151: 568006955.2 | I151: 0 | J151: 0 | K151: 0 | L151: 568006955.2 | M151: 0 | N151: 598907059.1 | O151: 0
A152: 2016 | F152: 58012 | G152: 157 | H152: 823714.68 | I152: 2293.64 | J152: 0 | K152: 0 | L152: 823714.68 | M152: 2293.64 | N152: 881726.68 | O152: 2450.64
A153: 2016 | F153: 0 | G153: 0 | H153: 10890.8 | I153: 31.89 | J153: 17151516.73 | K153: 49113.48 | L153: 17162407.53 | M153: 49145.37 | N153: 17162407.53 | O153: 49145.37
A154: 2016 | F154: 363906 | G154: 0 | H154: 240196.8 | I154: 0 | J154: 1689700.2 | K154: 0 | L154: 1929897 | M154: 0 | N154: 2293803 | O154: 0
A155: 2016 | F155: 0 | G155: 0 | H155: 0 | I155: 0 | J155: 16862049 | K155: 36700.7 | L155: 16862049 | M155: 36700.7 | N155: 16862049 | O155: 36700.7
A156: 2016 | F156: 0 | G156: 0 | H156: 0 | I156: 0 | J156: 0 | K156: 0 | L156: 0 | M156: 0 | N156: 0 | O156: 0
A157: 2016 | F157: 0 | G157: 0 | H157: 0 | I157: 0 | J157: 79838715 | K157: 216209 | L157: 79838715 | M157: 216209 | N157: 79838715 | O157: 216209
A158: 2016 | F158: 0 | G158: 0 | H158: 0 | I158: 0 | J158: 0 | K158: 0 | L158: 0 | M158: 0 | N158: 0 | O158: 0
A159: 2016 | F159: 41214007.07 | G159: 124951 | H159: 52477287.48 | I159: 45503.5 | J159: 21437537.45 | K159: 18588.65 | L159: 73914824.93 | M159: 64092.15 | N159: 115128832 | O159: 189043.15
A160: 2016 | F160: 0 | G160: 0 | H160: 0 | I160: 0 | J160: 0 | K160: 0 | L160: 0 | M160: 0 | N160: 0 | O160: 0
A161: 2016 | F161: 0 | G161: 0 | H161: 0 | I161: 0 | J161: 0 | K161: 0 | L161: 0 | M161: 0 | N161: 0 | O161: 0
A162: 2016 | F162: 11218433.04 | G162: 29859 | H162: 23190364.1 | I162: 26814.6 | J162: 143833.92 | K162: 166.31 | L162: 23334198.02 | M162: 26980.91 | N162: 34552631.06 | O162: 56839.91
A163: 2016 | F163: 0 | G163: 0 | H163: 0 | I163: 0 | J163: 0 | K163: 0 | L163: 0 | M163: 0 | N163: 0 | O163: 0
A164: 2016 | F164: 0 | G164: 0 | H164: 0 | I164: 0 | J164: 0 | K164: 0 | L164: 0 | M164: 0 | N164: 0 | O164: 0
A165: 2016 | F165: 0 | G165: 0 | H165: 0 | I165: 0 | J165: 100247112 | K165: 185866 | L165: 100247112 | M165: 185866 | N165: 100247112 | O165: 185866
A166: 2016 | F166: 0 | G166: 0 | H166: 0 | I166: 0 | J166: 0 | K166: 0 | L166: 0 | M166: 0 | N166: 0 | O166: 0
A167: 2016 | F167: 13939301.86 | G167: 0 | H167: 122954160 | I167: 0 | J167: 0 | K167: 0 | L167: 122954160 | M167: 0 | N167: 136893461.9 | O167: 0
A168: 2016 | F168: 0 | G168: 0 | H168: 0 | I168: 0 | J168: 0 | K168: 0 | L168: 0 | M168: 0 | N168: 0 | O168: 0
A169: 2016 | F169: 0 | G169: 0 | H169: 0 | I169: 0 | J169: 0 | K169: 0 | L169: 0 | M169: 0 | N169: 0 | O169: 0
A170: 2016 | F170: 36344.98 | G170: 0 | H170: 247578 | I170: 0 | J170: 0 | K170: 0 | L170: 247578 | M170: 0 | N170: 283922.98 | O170: 0
A171: 2016 | F171: 0 | G171: 0 | H171: 0 | I171: 0 | J171: 0 | K171: 0 | L171: 0 | M171: 0 | N171: 0 | O171: 0
A172: 2016 | F172: 0 | G172: 0 | H172: 0 | I172: 0 | J172: 0 | K172: 0 | L172: 0 | M172: 0 | N172: 0 | O172: 0
A173: 2016 | F173: 750026.65 | G173: 2214 | H173: 577257.45 | I173: 1477.15 | J173: 731428.93 | K173: 1867.17 | L173: 1308686.38 | M173: 3344.32 | N173: 2058713.03 | O173: 5558.32
A174: 2016 | F174: 0 | G174: 0 | H174: 0 | I174: 0 | J174: 0 | K174: 0 | L174: 0 | M174: 0 | N174: 0 | O174: 0
A175: 2016 | F175: 0 | G175: 0 | H175: 0 | I175: 0 | J175: 0 | K175: 0 | L175: 0 | M175: 0 | N175: 0 | O175: 0
A176: 2016 | F176: 55152 | G176: 0 | H176: 488540 | I176: 0 | J176: 0 | K176: 0 | L176: 488540 | M176: 0 | N176: 543692 | O176: 0
A177: 2016 | F177: 0 | G177: 0 | H177: 0 | I177: 0 | J177: 0 | K177: 0 | L177: 0 | M177: 0 | N177: 0 | O177: 0
A178: 2016 | F178: 0 | G178: 0 | H178: 0 | I178: 0 | J178: 0 | K178: 0 | L178: 0 | M178: 0 | N178: 0 | O178: 0
A179: 2016 | F179: 6861106.97 | G179: 16428 | H179: 1223832.26 | I179: 3357.84 | J179: 8538397.45 | K179: 21429.24 | L179: 9762229.71 | M179: 24787.08 | N179: 16623336.68 | O179: 41215.08
A180: 2016 | F180: 1656804.7 | G180: 3382 | H180: 8703355.28 | I180: 11013.64 | J180: 0 | K180: 0 | L180: 8703355.28 | M180: 11013.64 | N180: 10360159.98 | O180: 14395.64
A181: 2016 | F181: 1482942.24 | G181: 0 | H181: 29382015.21 | I181: 0 | J181: 0 | K181: 0 | L181: 29382015.21 | M181: 0 | N181: 30864957.45 | O181: 0
A182: 2016 | F182: 0 | G182: 0 | H182: 24718 | I182: 0 | J182: 0 | K182: 0 | L182: 24718 | M182: 0 | N182: 24718 | O182: 0
A183: 2016 | F183: 192677.09 | G183: 543 | H183: 0 | I183: 0 | J183: 176757.3 | K183: 496.8 | L183: 176757.3 | M183: 496.8 | N183: 369434.39 | O183: 1039.8
A184: 2016 | F184: 10735.13 | G184: 0 | H184: 112568.89 | I184: 0 | J184: 0 | K184: 0 | L184: 112568.89 | M184: 0 | N184: 123304.02 | O184: 0
A185: 2016 | F185: 0 | G185: 0 | H185: 0 | I185: 0 | J185: 0 | K185: 0 | L185: 0 | M185: 0 | N185: 0 | O185: 0
A186: 2016 | F186: 31917523.5 | G186: 94559 | H186: 18047401.7 | I186: 52720.99 | J186: 121127285.5 | K186: 357795.94 | L186: 139174687.2 | M186: 410516.93 | N186: 171092210.8 | O186: 505075.93
A187: 2016 | F187: 14667783.29 | G187: 0 | H187: 49036035.22 | I187: 0 | J187: 2156790.88 | K187: 0 | L187: 51192826.1 | M187: 0 | N187: 65860609.39 | O187: 0
A188: 2016 | F188: 13725748.86 | G188: 0 | H188: 232839201.3 | I188: 0 | J188: 3779.98 | K188: 0 | L188: 232842981.3 | M188: 0 | N188: 246568730.1 | O188: 0
A189: 2016 | F189: 28782 | G189: 77 | H189: 292982.83 | I189: 819.01 | J189: 0 | K189: 0 | L189: 292982.83 | M189: 819.01 | N189: 321764.83 | O189: 896.01
A190: 2016 | F190: 3593540.5 | G190: 10936 | H190: 0 | I190: 0 | J190: 2774114.59 | K190: 0 | L190: 2774114.59 | M190: 0 | N190: 6367655.09 | O190: 10936
A191: 2016 | F191: 469298 | G191: 0 | H191: 1096642.07 | I191: 0 | J191: 0 | K191: 0 | L191: 1096642.07 | M191: 0 | N191: 1565940.07 | O191: 0
A192: 2016 | F192: 68865557.8 | G192: 175825 | H192: 9852698.86 | I192: 25156 | J192: 294618242.2 | K192: 752223 | L192: 304470941 | M192: 777379 | N192: 373336498.8 | O192: 953204
A193: 2016 | F193: 16435776.8 | G193: 0 | H193: 47119887.3 | I193: 0 | J193: 0 | K193: 0 | L193: 47119887.3 | M193: 0 | N193: 63555664.1 | O193: 0
A194: 2016 | F194: 24639647.6 | G194: 39140 | H194: 0 | I194: 0 | J194: 0 | K194: 0 | L194: 0 | M194: 0 | N194: 24639647.6 | O194: 39140
A195: 2016 | F195: 11631368.4 | G195: 0 | H195: 127285427.1 | I195: 0 | J195: 0 | K195: 0 | L195: 127285427.1 | M195: 0 | N195: 138916795.5 | O195: 0
A196: 2016 | F196: 0 | G196: 0 | H196: 0 | I196: 0 | J196: 0 | K196: 0 | L196: 0 | M196: 0 | N196: 0 | O196: 0
A197: 2016 | F197: 0 | G197: 0 | H197: 130859.43 | I197: 363.5 | J197: 0 | K197: 0 | L197: 130859.43 | M197: 363.5 | N197: 130859.43 | O197: 363.5
A198: 2016 | F198: 4001878.5 | G198: 10315 | H198: 305392.5 | I198: 787.61 | J198: 0 | K198: 0 | L198: 305392.5 | M198: 787.61 | N198: 4307271 | O198: 11102.61
A199: 2016 | F199: 62685.7 | G199: 0 | H199: 265611.49 | I199: 0 | J199: 334915.81 | K199: 0 | L199: 600527.3 | M199: 0 | N199: 663213 | O199: 0
A200: 2016 | F200: 433800 | G200: 0 | H200: 3461107 | I200: 0 | J200: 19696144 | K200: 0 | L200: 23157251 | M200: 0 | N200: 23591051 | O200: 0
A201: 2016 | F201: 380754.29 | G201: 0 | H201: 12927617 | I201: 0 | J201: 0 | K201: 0 | L201: 12927617 | M201: 0 | N201: 13308371.29 | O201: 0
A202: 2016 | F202: 245928.49 | G202: 0 | H202: 35792874 | I202: 0 | J202: 0 | K202: 0 | L202: 35792874 | M202: 0 | N202: 36038802.49 | O202: 0
A203: 2016 | F203: 0 | G203: 0 | H203: 418422 | I203: 0 | J203: 418422 | K203: 1159 | L203: 836844 | M203: 1159 | N203: 836844 | O203: 1159
A204: 2016 | F204: 0 | G204: 0 | H204: 62628 | I204: 0 | J204: 0 | K204: 0 | L204: 62628 | M204: 0 | N204: 62628 | O204: 0
... 378 more rows

Sheet 5. Allocating Def-Var Balances
V14: 1568
G15: 1550 | H15: 1551 | I15: 1580 | L15: 1584 | M15: 1586 | N15: 1588
C17: 0.3526512159 | D17: 0.04281294754 | E17: 0.9140010387 | F17: 0.3526512159 | V17: 83739.87
C18: 0.1045412336 | D18: 0.02949659165 | E18: 0.08599896132 | F18: 0.1045412336 | V18: 150772.06
C19: 0.5353842215 | D19: 0.9165693097 | E19: 0 | F19: 0.5353842215 | V19: 262421.86
C20: 0.001315978753 | D20: 0 | E20: 0 | F20: 0.001315978753 | V20: 0
C21: 0.0002125094185 | D21: 3.53365092e-05 | E21: 0 | F21: 0.0002125094185 | V21: 0
C22: 0.005894840789 | D22: 0.01108581464 | E22: 0 | F22: 0.005894840789 | V22: 0
C24: =SUM($C$17:$C$22) -> 1 | D24: =SUM($D$17:$D$22) -> 1 | E24: =SUM($E$17:$E$22) -> 1 | F24: =SUM($F$17:$F$22) -> 1 | G24: =SUM($G$17:$G$22) -> 0 | H24: =SUM($H$17:$H$22) -> 0 | I24: =SUM($I$17:$I$22) -> 0 | J24: =SUM($J$17:$J$22) -> 0 | K24: =SUM($K$17:$K$22) -> 0 | L24: =SUM($L$17:$L$22) -> 0 | M24: =SUM($M$17:$M$22) -> 0 | N24: =SUM($N$17:$N$22) -> 0 | O24: =SUM($O$17:$O$22) -> 0 | P24: =SUM($P$17:$P$22) -> 0 | Q24: =SUM($Q$17:$Q$22) -> 0 | R24: =SUM($R$17:$R$22) -> 0 | S24: =SUM($S$17:$S$22) -> 0 | T24: =SUM($T$17:$T$22) -> 0 | U24: =SUM($U$17:$U$22) -> 0 | V24: =SUM($V$17:$V$22) -> 496933.79

Sheet 6. GA calculation
B2: FALSE
C17: 27150258 | D17: 0 | I17: =(C17-E17-G17) -> 27150258 | J17: =(D17-F17-H17) -> 0 | K17: =(I17/I23) -> 0.04281294754 | L17: =(967027.0637*K17) -> 41401.27895 | M17: 0
C18: 18705558 | D18: 0 | I18: =(C18-E18-G18) -> 18705558 | J18: =(D18-F18-H18) -> 0 | K18: =(I18/I23) -> 0.02949659165 | L18: =(967027.0637*K18) -> 28524.00241 | M18: 0
C19: 581251576 | D19: 1495147 | I19: =(C19-E19-G19) -> 581251576 | J19: =(D19-F19-H19) -> 1495147 | K19: =(I19/I23) -> 0.9165693097 | L19: =(967027.0637*K19) -> 886347.3282 | M19: 0
C20: 0 | D20: 0 | I20: =(C20-E20-G20) -> 0 | J20: =(D20-F20-H20) -> 0 | K20: =(I20/I23) -> 0 | L20: =(967027.0637*K20) -> 0 | M20: 0
C21: 22409 | D21: 58 | I21: =(C21-E21-G21) -> 22409 | J21: =(D21-F21-H21) -> 58 | K21: =(I21/I23) -> 3.53365092e-05 | L21: =(967027.0637*K21) -> 34.17136073 | M21: 0
C22: 7030180 | D22: 19789 | I22: =(C22-E22-G22) -> 7030180 | J22: =(D22-F22-H22) -> 19789 | K22: =(I22/I23) -> 0.01108581464 | L22: =(967027.0637*K22) -> 10720.28278 | M22: 0
C23: 634159981 | D23: 1514994 | E23: =SUM(E17:E22) -> 0 | F23: =SUM(F17:F22) -> 0 | G23: =SUM(G17:G22) -> 0 | H23: =SUM(H17:H22) -> 0 | I23: =SUM(I17:I22) -> 634159981 | J23: =SUM(J17:J22) -> 1514994 | K23: =SUM(K17:K22) -> 1 | L23: =SUM(L17:L22) -> 967027.0637

Sheet 6.a GA allocation_Class A (hidden)
D19: 2015 | E19: 2014 | F19: 2013 | G19: 2012
C20: =SUM(D20:G20) -> 0
C21: =SUM(D21:G21) -> 0 | D21: =D59 -> 0 | E21: =E59 -> 0 | F21: =F59 -> 0 | G21: =G59 -> 0
C22: =IFERROR(+C21/C20,0) -> 0
C27: ='3. Continuity Schedule'!BT29 -> 967027.0637
C28: =+C22*C27 -> 0
C29: =+C27-C28 -> 967027.0637

Sheet 7. Calculation of Def-Var RR
C12: 12
C13: 12 | D13: =IF(C13>0, "Rate Rider Recovery to be used below", "If no rate rider recovery period is proposed then the default recovery period of 12 months will be used") -> Rate Rider Recovery to be used below
C17: 424304413 | D17: 0 | E17: 424304413 | F17: 0 | G17: 0 | I17: =IF(ISERROR(G17/C17),0,IF(OR(ISBLANK(C13), OR(C13=0, C13="")), G17/C17/(C12/12), G17/C17/(C13/12))) -> 0 | K17: =IF(ISERROR(83739.87/C17), 0, IF(OR(ISBLANK(C13), OR(C13=0, C13="")), (83739.87/C17)/(C12/12), (83739.87/C17)/(C13/12))) -> 0.0001973579992 | L17: =C17*I17 -> 0 | M17: =E17*J17 -> 0
C18: 125782373 | D18: 0 | E18: 125782373 | F18: 0 | G18: 0 | I18: =IF(ISERROR(G18/C18),0,IF(OR(ISBLANK(C13), OR(C13=0, C13="")), G18/C18/(C12/12), G18/C18/(C13/12))) -> 0 | K18: =IF(ISERROR(150772.06/C18), 0, IF(OR(ISBLANK(C13), OR(C13=0, C13="")), (150772.06/C18)/(C12/12), (150772.06/C18)/(C13/12))) -> 0.001198673999 | L18: =C18*I18 -> 0 | M18: =E18*J18 -> 0
C19: 644165900 | D19: 1640396 | E19: 644165900 | F19: 1640396 | G19: 0 | I19: =IF(ISERROR(G19/D19),0,IF(OR(ISBLANK(C13), OR(C13=0, C13="")), G19/D19/(C12/12), G19/D19/(C13/12))) -> 0 | K19: =IF(ISERROR(262421.86/D19), 0, IF(OR(ISBLANK(C13), OR(C13=0, C13="")), (262421.86/D19)/(C12/12), (262421.86/D19)/(C13/12))) -> 0.1599747012 | L19: =D19*I19 -> 0 | M19: =F19*J19 -> 0
C20: 1583365 | D20: 0 | E20: 1583365 | F20: 0 | G20: 0 | I20: =IF(ISERROR(G20/C20),0,IF(OR(ISBLANK(C13), OR(C13=0, C13="")), G20/C20/(C12/12), G20/C20/(C13/12))) -> 0 | K20: =IF(ISERROR(0/C20), 0, IF(OR(ISBLANK(C13), OR(C13=0, C13="")), (0/C20)/(C12/12), (0/C20)/(C13/12))) -> 0 | L20: =C20*I20 -> 0 | M20: =E20*J20 -> 0
C21: 255688 | D21: 672 | E21: 255688 | F21: 672 | G21: 0 | I21: =IF(ISERROR(G21/D21),0,IF(OR(ISBLANK(C13), OR(C13=0, C13="")), G21/D21/(C12/12), G21/D21/(C13/12))) -> 0 | K21: =IF(ISERROR(0/D21), 0, IF(OR(ISBLANK(C13), OR(C13=0, C13="")), (0/D21)/(C12/12), (0/D21)/(C13/12))) -> 0 | L21: =D21*I21 -> 0 | M21: =F21*J21 -> 0
C22: 7092580 | D22: 20270 | E22: 7092580 | F22: 20270 | G22: 0 | I22: =IF(ISERROR(G22/D22),0,IF(OR(ISBLANK(C13), OR(C13=0, C13="")), G22/D22/(C12/12), G22/D22/(C13/12))) -> 0 | K22: =IF(ISERROR(0/D22), 0, IF(OR(ISBLANK(C13), OR(C13=0, C13="")), (0/D22)/(C12/12), (0/D22)/(C13/12))) -> 0 | L22: =D22*I22 -> 0 | M22: =F22*J22 -> 0
L23: =SUM(L17:L22) -> 0 | M23: =SUM(M17:M22) -> 0 | N23: =SUM(L23:M23) -> 0

Sheet 8. STS - Tax Change
U2: 42370
U5: 0.38
U6: -0.1
U7: =SUM(U5:U6) -> 0.28
U8: -0.13
U9: =U7+U8 -> 0.15
U10: 0.115
U12: =U9+U10 -> 0.265
A15: ="For the " & '1. Information Sheet'!F32 & " year, enter any Tax Credits from the Cost of Service Tax Calculation (Positive #)" -> For the 2015 year, enter any Tax Credits from the Cost of Service Tax Calculation (Positive #) | U15: 500000
U16: 500000
L18: ='1. Information Sheet'!F32 -> 2015 | N18: 2017 | U18: 0.105
N19: =L19 -> 0
U20: 0.045
N21: =L21 -> 0
L23: =L19-L21 -> 0 | N23: =N19-N21 -> 0
N25: 0
L27: =IF(L23>0, L23*L25, 0)*181/365 -> 0 | N27: 0
N30: =L30 -> 0
N32: =IF(ratebase>15000000, 26.5%, IF(ratebase<10000000, 15%, 15%+11.5%*((ratebase-10000000)/5000000))) -> 0.15
N34: =N30*N32-L15 -> 0
N36: =N34/(1-N32) -> 0
L38: =L27 -> 0 | N38: =N27 -> 0
L40: =L36 -> 0 | N40: =N36 -> 0
L42: =SUM(L40,L38) -> 0 | N42: =SUM(N40,N38) -> 0
N44: =N42-L42 -> 0
N46: =0.5*N44 -> 0

Sheet 9. Shared Tax - Rate Rider
I17: =F17*C17*12 -> 0 | J17: =D17*G17 -> 0 | K17: =E17*H17 -> 0 | L17: =I17+J17+K17 -> 0 | M17: =IF(ISERROR(I17/L17),0,I17/L17) -> 0 | N17: =IF(ISERROR(J17/L17),0,J17/L17) -> 0 | O17: =IF(ISERROR(K17/L17),0,K17/L17) -> 0 | P17: =IF(ISERROR(L17/L23),0,L17/L23) -> 0
I18: =F18*C18*12 -> 0 | J18: =D18*G18 -> 0 | K18: =E18*H18 -> 0 | L18: =I18+J18+K18 -> 0 | M18: =IF(ISERROR(I18/L18),0,I18/L18) -> 0 | N18: =IF(ISERROR(J18/L18),0,J18/L18) -> 0 | O18: =IF(ISERROR(K18/L18),0,K18/L18) -> 0 | P18: =IF(ISERROR(L18/L23),0,L18/L23) -> 0
I19: =F19*C19*12 -> 0 | J19: =D19*G19 -> 0 | K19: =E19*H19 -> 0 | L19: =I19+J19+K19 -> 0 | M19: =IF(ISERROR(I19/L19),0,I19/L19) -> 0 | N19: =IF(ISERROR(J19/L19),0,J19/L19) -> 0 | O19: =IF(ISERROR(K19/L19),0,K19/L19) -> 0 | P19: =IF(ISERROR(L19/L23),0,L19/L23) -> 0
I20: =F20*C20*12 -> 0 | J20: =D20*G20 -> 0 | K20: =E20*H20 -> 0 | L20: =I20+J20+K20 -> 0 | M20: =IF(ISERROR(I20/L20),0,I20/L20) -> 0 | N20: =IF(ISERROR(J20/L20),0,J20/L20) -> 0 | O20: =IF(ISERROR(K20/L20),0,K20/L20) -> 0 | P20: =IF(ISERROR(L20/L23),0,L20/L23) -> 0
I21: =F21*C21*12 -> 0 | J21: =D21*G21 -> 0 | K21: =E21*H21 -> 0 | L21: =I21+J21+K21 -> 0 | M21: =IF(ISERROR(I21/L21),0,I21/L21) -> 0 | N21: =IF(ISERROR(J21/L21),0,J21/L21) -> 0 | O21: =IF(ISERROR(K21/L21),0,K21/L21) -> 0 | P21: =IF(ISERROR(L21/L23),0,L21/L23) -> 0
I22: =F22*C22*12 -> 0 | J22: =D22*G22 -> 0 | K22: =E22*H22 -> 0 | L22: =I22+J22+K22 -> 0 | M22: =IF(ISERROR(I22/L22),0,I22/L22) -> 0 | N22: =IF(ISERROR(J22/L22),0,J22/L22) -> 0 | O22: =IF(ISERROR(K22/L22),0,K22/L22) -> 0 | P22: =IF(ISERROR(L22/L23),0,L22/L23) -> 0
C23: =SUM(C17:C22) -> 0 | D23: =SUM(D17:D22) -> 0 | E23: =SUM(E17:E22) -> 0 | I23: =SUM(I17:I22) -> 0 | J23: =SUM(J17:J22) -> 0 | K23: =SUM(K17:K22) -> 0 | L23: =SUM(L17:L22) -> 0 | P23: =SUM(P17:P22) -> 0
C27: 424304413 | D27: 0 | E27: =P17*E33 -> 0 | F27: 0
C28: 125782373 | D28: 0 | E28: =P18*E33 -> 0 | F28: 0
C29: 644165900 | D29: 1640396 | E29: =P19*E33 -> 0 | F29: 0
C30: 1583365 | D30: 0 | E30: =P20*E33 -> 0 | F30: 0
C31: 255688 | D31: 672 | E31: =P21*E33 -> 0 | F31: 0
C32: 7092580 | D32: 20270 | E32: =P22*E33 -> 0 | F32: 0
C33: =SUM(C27:C32) -> 1203184319 | D33: =SUM(D27:D32) -> 1661338 | E33: =ROUND('8. STS - Tax Change'!N46,2) -> 0

Sheet 10. RTSR Current Rates
AZ1: 1
D17: 0.0071 | E17: 424304413 | F17: 0 | G17: 1.0479 | H17: =E17*G17 -> 444628594.4
D18: 0.0053 | E18: 424304413 | F18: 0 | G18: 1.0479 | H18: =E18*G18 -> 444628594.4
D19: 0.0064 | E19: 125782373 | F19: 0 | G19: 1.0479 | H19: =E19*G19 -> 131807348.7
D20: 0.0046 | E20: 125782373 | F20: 0 | G20: 1.0479 | H20: =E20*G20 -> 131807348.7
D21: 2.6464 | E21: 644165900 | F21: 1640396
D22: 1.858 | E22: 644165900 | F22: 1640396
D23: 0.0064 | E23: 1583365 | F23: 0 | G23: 1.0479 | H23: =E23*G23 -> 1659208.184
D24: 0.0046 | E24: 1583365 | F24: 0 | G24: 1.0479 | H24: =E24*G24 -> 1659208.184
D25: 1.9593 | E25: 255688 | F25: 672
D26: 1.5526 | E26: 255688 | F26: 672
D27: 2.0005 | E27: 7092580 | F27: 20270
D28: 1.4275 | E28: 7092580 | F28: 20270

Sheet 11. RTSR - UTRs & Sub-Tx
E18: 2015 | H18: 2016 | J18: 2017
E22: 3.78 | H22: 3.66 | J22: =H22 -> 3.66
E24: 0.86 | H24: 0.87 | J24: =H24 -> 0.87
E26: 2 | H26: 2.02 | J26: =H26 -> 2.02
H29: 2016 | J29: 2017
E35: 3.23 | F35: 3.4121 | H35: 3.3396 | J35: 3.1942
E37: 0.65 | F37: 0.7879 | H37: 0.7791 | J37: 0.771
E39: 1.62 | F39: 1.8018 | H39: 1.7713 | J39: 1.7493
E41: =E39+E37 -> 2.27 | F41: =SUM(F39,F37) -> 2.5897 | H41: =SUM(H39,H37) -> 2.5504 | J41: =J37+J39 -> 2.5203
E44: 2015 | H44: 2016 | J44: 2017
H50: 2.8107 | J50: 2.809
H52: 0.5033 | J52: 0.5083
E54: 1.77 | H54: 1.77
E56: =E54+E52 -> 1.77 | J56: =J54+J52 -> 0.5083
E59: 2015 | H59: 2016 | J59: 2017
E71: =E69+E67 -> 0 | H71: =H69+H67 -> 0 | J71: =J69+J67 -> 0

Sheet 12. RTSR - Historical Wholesale
D19: ='[18]Data for RTSR Model'!D5+'[18]Data for RTSR Model'!D22 -> 153281.0291 | E19: =IF(D19<>0,F19/D19,0) -> 3.78 | F19: ='[19]12. RTSR - Historical Wholesale'!F19 -> 579402.29 | H19: ='[18]Data for RTSR Model'!H5+'[18]Data for RTSR Model'!H22 -> 156905.0349 | I19: =IF(H19<>0,J19/H19,0) -> 0.86 | J19: ='[19]12. RTSR - Historical Wholesale'!J19 -> 134938.33 | L19: ='[20]Data for RTSR Model'!L5 -> 120241 | M19: =IF(L19<>0,N19/L19,0) -> 2 | N19: ='[20]Data for RTSR Model'!N5 -> 240482 | P19: =J19+N19 -> 375420.33
D20: ='[18]Data for RTSR Model'!D6+'[18]Data for RTSR Model'!D23 -> 170327.4312 | E20: 3.78 | F20: ='[19]12. RTSR - Historical Wholesale'!F20 -> 643837.69 | H20: ='[18]Data for RTSR Model'!H6+'[18]Data for RTSR Model'!H23 -> 172204.4302 | I20: 0.86 | J20: ='[19]12. RTSR - Historical Wholesale'!J20 -> 148095.81 | L20: ='[20]Data for RTSR Model'!L6 -> 129518 | M20: 2 | N20: ='[20]Data for RTSR Model'!N6 -> 259036 | P20: 407131.81
D21: ='[18]Data for RTSR Model'!D7+'[18]Data for RTSR Model'!D24 -> 146475.2804 | E21: 3.78 | F21: ='[19]12. RTSR - Historical Wholesale'!F21 -> 553676.56 | H21: ='[18]Data for RTSR Model'!H7+'[18]Data for RTSR Model'!H24 -> 157590.7093 | I21: 0.86 | J21: ='[19]12. RTSR - Historical Wholesale'!J21 -> 135528.01 | L21: ='[20]Data for RTSR Model'!L7 -> 119537 | M21: 2 | N21: ='[20]Data for RTSR Model'!N7 -> 239074 | P21: 374602.01
D22: ='[18]Data for RTSR Model'!D8+'[18]Data for RTSR Model'!D25 -> 126462.4444 | E22: 3.78 | F22: ='[19]12. RTSR - Historical Wholesale'!F22 -> 478028.04 | H22: ='[18]Data for RTSR Model'!H8+'[18]Data for RTSR Model'!H25 -> 128520.3023 | I22: 0.86 | J22: ='[19]12. RTSR - Historical Wholesale'!J22 -> 110527.46 | L22: ='[20]Data for RTSR Model'!L8 -> 98181 | M22: 2 | N22: ='[20]Data for RTSR Model'!N8 -> 196362 | P22: 306889.46
D23: ='[18]Data for RTSR Model'!D9+'[18]Data for RTSR Model'!D26 -> 148833.3492 | E23: 3.78 | F23: ='[19]12. RTSR - Historical Wholesale'!F23 -> 562590.06 | H23: ='[18]Data for RTSR Model'!H9+'[18]Data for RTSR Model'!H26 -> 163065.4651 | I23: 0.86 | J23: ='[19]12. RTSR - Historical Wholesale'!J23 -> 140236.3 | L23: ='[20]Data for RTSR Model'!L9 -> 123670 | M23: 2 | N23: ='[20]Data for RTSR Model'!N9 -> 247340 | P23: 387576.3
D24: ='[18]Data for RTSR Model'!D10+'[18]Data for RTSR Model'!D27 -> 156028.9392 | E24: 3.78 | F24: ='[19]12. RTSR - Historical Wholesale'!F24 -> 589789.39 | H24: ='[18]Data for RTSR Model'!H10+'[18]Data for RTSR Model'!H27 -> 158002.7791 | I24: 0.86 | J24: ='[19]12. RTSR - Historical Wholesale'!J24 -> 135882.39 | L24: ='[20]Data for RTSR Model'!L10 -> 118829 | M24: 2 | N24: ='[20]Data for RTSR Model'!N10 -> 237658 | P24: 373540.39
D25: ='[18]Data for RTSR Model'!D11+'[18]Data for RTSR Model'!D28 -> 202862.3016 | E25: 3.78 | F25: ='[19]12. RTSR - Historical Wholesale'!F25 -> 766819.5 | H25: ='[18]Data for RTSR Model'!H11+'[18]Data for RTSR Model'!H28 -> 191672.5349 | I25: 0.86 | J25: ='[19]12. RTSR - Historical Wholesale'!J25 -> 164838.38 | L25: ='[20]Data for RTSR Model'!L11 -> 145030.875 | M25: 2 | N25: ='[20]Data for RTSR Model'!N11 -> 290061.75 | P25: 454900.13
D26: ='[18]Data for RTSR Model'!D12+'[18]Data for RTSR Model'!D29 -> 193295.2487 | E26: 3.78 | F26: ='[19]12. RTSR - Historical Wholesale'!F26 -> 730656.04 | H26: ='[18]Data for RTSR Model'!H12+'[18]Data for RTSR Model'!H29 -> 194457.686 | I26: 0.86 | J26: ='[19]12. RTSR - Historical Wholesale'!J26 -> 167233.61 | L26: ='[20]Data for RTSR Model'!L12 -> 145582 | M26: 2 | N26: ='[20]Data for RTSR Model'!N12 -> 291164 | P26: 458397.61
D27: ='[18]Data for RTSR Model'!D13+'[18]Data for RTSR Model'!D30 -> 185842.7989 | E27: 3.78 | F27: ='[19]12. RTSR - Historical Wholesale'!F27 -> 702485.78 | H27: ='[18]Data for RTSR Model'!H13+'[18]Data for RTSR Model'!H30 -> 196840.907 | I27: 0.86 | J27: ='[19]12. RTSR - Historical Wholesale'!J27 -> 169283.18 | L27: ='[20]Data for RTSR Model'!L13 -> 148701 | M27: 2 | N27: ='[20]Data for RTSR Model'!N13 -> 297402 | P27: 466685.18
D28: ='[18]Data for RTSR Model'!D14+'[18]Data for RTSR Model'!D31 -> 115620.336 | E28: 3.78 | F28: ='[19]12. RTSR - Historical Wholesale'!F28 -> 437044.87 | H28: ='[18]Data for RTSR Model'!H14+'[18]Data for RTSR Model'!H31 -> 123925.7674 | I28: 0.86 | J28: ='[19]12. RTSR - Historical Wholesale'!J28 -> 106576.16 | L28: ='[20]Data for RTSR Model'!L14 -> 94998 | M28: 2 | N28: ='[20]Data for RTSR Model'!N14 -> 189996 | P28: 296572.16
D29: ='[18]Data for RTSR Model'!D15+'[18]Data for RTSR Model'!D32 -> 126190.4603 | E29: 3.78 | F29: ='[19]12. RTSR - Historical Wholesale'!F29 -> 476999.94 | H29: ='[18]Data for RTSR Model'!H15+'[18]Data for RTSR Model'!H32 -> 133003.6047 | I29: 0.86 | J29: ='[19]12. RTSR - Historical Wholesale'!J29 -> 114383.1 | L29: ='[20]Data for RTSR Model'!L15 -> 99818 | M29: 2 | N29: ='[20]Data for RTSR Model'!N15 -> 199636 | P29: 314019.1
D30: ='[18]Data for RTSR Model'!D16+'[18]Data for RTSR Model'!D33 -> 125952.4101 | E30: 3.78 | F30: ='[19]12. RTSR - Historical Wholesale'!F30 -> 476100.11 | H30: ='[18]Data for RTSR Model'!H16+'[18]Data for RTSR Model'!H33 -> 139559.2093 | I30: 0.86 | J30: ='[19]12. RTSR - Historical Wholesale'!J30 -> 120020.92 | L30: ='[20]Data for RTSR Model'!L16 -> 104676 | M30: 2 | N30: ='[20]Data for RTSR Model'!N16 -> 209352 | P30: 329372.92
D32: =SUM(D19:D30) -> 1851172.029 | E32: =IF(D32<>0,F32/D32,0) -> 3.78 | F32: =SUM(F19:F30) -> 6997430.27 | H32: =SUM(H19:H30) -> 1915748.43 | I32: =IF(H32<>0,J32/H32,0) -> 0.86 | J32: =SUM(J19:J30) -> 1647543.65 | L32: =SUM(L19:L30) -> 1448781.875 | M32: =IF(L32<>0,N32/L32,0) -> 2 | N32: =SUM(N19:N30) -> 2897563.75 | P32: =SUM(P19:P30) -> 4545107.4
D38: ='[20]Data for RTSR Model'!D40 -> 41846.75851 | E38: =IF(D38<>0,F38/D38,0) -> 3.23 | F38: ='[20]Data for RTSR Model'!F40 -> 135165.03 | H38: ='[20]Data for RTSR Model'!H40 -> 42314.44108 | I38: =IF(H38<>0,J38/H38,0) -> 0.65 | J38: ='[20]Data for RTSR Model'!J40 -> 27504.38671 | L38: ='[20]Data for RTSR Model'!L40 -> 24799.94648 | M38: =IF(L38<>0,N38/L38,0) -> 1.62 | N38: ='[20]Data for RTSR Model'!N40 -> 40175.91329 | P38: =J38+N38 -> 67680.3
D39: ='[20]Data for RTSR Model'!D41 -> 43193.91022 | E39: =IF(D39<>0,F39/D39,0) -> 3.23 | F39: ='[20]Data for RTSR Model'!F41 -> 139516.33 | H39: ='[20]Data for RTSR Model'!H41 -> 43607.35385 | I39: 0.65 | J39: ='[20]Data for RTSR Model'!J41 -> 28344.78 | L39: ='[20]Data for RTSR Model'!L41 -> 26705.7037 | M39: 1.62 | N39: ='[20]Data for RTSR Model'!N41 -> 43263.24 | P39: =J39+N39 -> 71608.02
D40: ='[20]Data for RTSR Model'!D42 -> 35824.08978 | E40: 3.23 | F40: ='[20]Data for RTSR Model'!F42 -> 115711.81 | H40: ='[20]Data for RTSR Model'!H42 -> 35985.32308 | I40: 0.65 | J40: ='[20]Data for RTSR Model'!J42 -> 23390.46 | L40: ='[20]Data for RTSR Model'!L42 -> 21518.41975 | M40: 1.62 | N40: ='[20]Data for RTSR Model'!N42 -> 34859.84 | P40: 58250.3
D41: ='[20]Data for RTSR Model'!D43 -> 31753.77709 | E41: 3.23 | F41: ='[20]Data for RTSR Model'!F43 -> 102564.7 | H41: ='[20]Data for RTSR Model'!H43 -> 33176.49231 | I41: 0.65 | J41: ='[20]Data for RTSR Model'!J43 -> 21564.72 | L41: ='[20]Data for RTSR Model'!L43 -> 18699.54938 | M41: 1.62 | N41: ='[20]Data for RTSR Model'!N43 -> 30293.27 | P41: 51857.99
D42: ='[20]Data for RTSR Model'!D44 -> 36280.0211 | E42: 3.4121 | F42: ='[20]Data for RTSR Model'!F44 -> 123791.06 | H42: ='[20]Data for RTSR Model'!H44 -> 36519.07602 | I42: 0.7879 | J42: ='[20]Data for RTSR Model'!J44 -> 28773.38 | L42: ='[20]Data for RTSR Model'!L44 -> 20931.55178 | M42: 1.8018 | N42: ='[20]Data for RTSR Model'!N44 -> 37714.47 | P42: 66487.85
D43: ='[20]Data for RTSR Model'!D45 -> 40669.09821 | E43: 3.4121 | F43: ='[20]Data for RTSR Model'!F45 -> 138767.03 | H43: ='[20]Data for RTSR Model'!H45 -> 40677.45907 | I43: 0.7879 | J43: ='[20]Data for RTSR Model'!J45 -> 32049.77 | L43: ='[20]Data for RTSR Model'!L45 -> 23133.78843 | M43: 1.8018 | N43: ='[20]Data for RTSR Model'!N45 -> 41682.46 | P43: 73732.23
D44: ='[20]Data for RTSR Model'!D46 -> 48400.50995 | E44: 3.4121 | F44: ='[20]Data for RTSR Model'!F46 -> 165147.38 | H44: ='[20]Data for RTSR Model'!H46 -> 48408.87168 | I44: 0.7879 | J44: ='[20]Data for RTSR Model'!J46 -> 38141.35 | L44: ='[20]Data for RTSR Model'!L46 -> 26695.3491 | M44: 1.8018 | N44: ='[20]Data for RTSR Model'!N46 -> 48099.68 | P44: 86241.03
D45: ='[20]Data for RTSR Model'!D47 -> 47664.59365 | E45: 3.4121 | F45: ='[20]Data for RTSR Model'!F47 -> 162636.36 | H45: ='[20]Data for RTSR Model'!H47 -> 47735.72788 | I45: 0.7879 | J45: ='[20]Data for RTSR Model'!J47 -> 37610.98 | L45: ='[20]Data for RTSR Model'!L47 -> 26093.29559 | M45: 1.8018 | N45: ='[20]Data for RTSR Model'!N47 -> 47014.9 | P45: 84625.88
D46: ='[20]Data for RTSR Model'!D48 -> 47949.21896 | E46: 3.4121 | F46: ='[20]Data for RTSR Model'!F48 -> 163607.53 | H46: ='[20]Data for RTSR Model'!H48 -> 47960.95951 | I46: 0.7879 | J46: ='[20]Data for RTSR Model'!J48 -> 37788.44 | L46: ='[20]Data for RTSR Model'!L48 -> 26788.18959 | M46: 1.8018 | N46: ='[20]Data for RTSR Model'!N48 -> 48266.96 | P46: 86055.4
D47: ='[20]Data for RTSR Model'!D49 -> 33954.92805 | E47: 3.4121 | F47: ='[20]Data for RTSR Model'!F49 -> 115857.61 | H47: ='[20]Data for RTSR Model'!H49 -> 33996.34471 | I47: 0.7879 | J47: ='[20]Data for RTSR Model'!J49 -> 26785.72 | L47: ='[20]Data for RTSR Model'!L49 -> 19666.63337 | M47: 1.8018 | N47: ='[20]Data for RTSR Model'!N49 -> 35435.34 | P47: 62221.06
D48: ='[20]Data for RTSR Model'!D50 -> 36664.52038 | E48: 3.4121 | F48: ='[20]Data for RTSR Model'!F50 -> 125103.01 | H48: ='[20]Data for RTSR Model'!H50 -> 36664.50057 | I48: 0.7879 | J48: ='[20]Data for RTSR Model'!J50 -> 28887.96 | L48: ='[20]Data for RTSR Model'!L50 -> 21115.31802 | M48: 1.8018 | N48: ='[20]Data for RTSR Model'!N50 -> 38045.58 | P48: 66933.54
D49: ='[20]Data for RTSR Model'!D51 -> 37969.36784 | E49: 3.4121 | F49: ='[20]Data for RTSR Model'!F51 -> 129555.28 | H49: ='[20]Data for RTSR Model'!H51 -> 38089.42759 | I49: 0.7879 | J49: ='[20]Data for RTSR Model'!J51 -> 30010.66 | L49: ='[20]Data for RTSR Model'!L51 -> 22088.74459 | M49: 1.8018 | N49: ='[20]Data for RTSR Model'!N51 -> 39799.5 | P49: 69810.16
D51: =SUM(D38:D49) -> 482170.7937 | E51: =IF(D51<>0,F51/D51,0) -> 3.354461015 | F51: =SUM(F38:F49) -> 1617423.13 | H51: =SUM(H38:H49) -> 485135.9774 | I51: =IF(H51<>0,J51/H51,0) -> 0.7438174523 | J51: =SUM(J38:J49) -> 360852.6067 | L51: =SUM(L38:L49) -> 278236.4898 | M51: =IF(L51<>0,N51/L51,0) -> 1.741867696 | N51: =SUM(N38:N49) -> 484651.1533 | P51: =SUM(P38:P49) -> 845503.76
L57: ='[20]Data for RTSR Model'!L58 -> 8979.135593 | M57: =IF(L57<>0,N57/L57,0) -> 1.77 | N57: ='[20]Data for RTSR Model'!N58 -> 15893.07 | P57: =J57+N57 -> 15893.07
L58: ='[20]Data for RTSR Model'!L59 -> 15198.42938 | M58: 1.77 | N58: ='[20]Data for RTSR Model'!N59 -> 26901.22 | P58: 26901.22
L59: ='[20]Data for RTSR Model'!L60 -> 11364.71186 | M59: 1.77 | N59: ='[20]Data for RTSR Model'!N60 -> 20115.54 | P59: 20115.54
L60: ='[20]Data for RTSR Model'!L61 -> 8288.299435 | M60: 1.77 | N60: ='[20]Data for RTSR Model'!N61 -> 14670.29 | P60: 14670.29
L61: ='[20]Data for RTSR Model'!L62 -> 7065.457627 | M61: 1.77 | N61: ='[20]Data for RTSR Model'!N62 -> 12505.86 | P61: 12505.86
L62: ='[20]Data for RTSR Model'!L63 -> 9220.779661 | M62: 1.77 | N62: ='[20]Data for RTSR Model'!N63 -> 16320.78 | P62: 16320.78
L63: ='[20]Data for RTSR Model'!L64 -> 13210.9322 | M63: 1.77 | N63: ='[20]Data for RTSR Model'!N64 -> 23383.35 | P63: 23383.35
L64: ='[20]Data for RTSR Model'!L65 -> 10645.68927 | M64: 1.77 | N64: ='[20]Data for RTSR Model'!N65 -> 18842.87 | P64: 18842.87
L65: ='[20]Data for RTSR Model'!L66 -> 11214.9096 | M65: 1.77 | N65: ='[20]Data for RTSR Model'!N66 -> 19850.39 | P65: 19850.39
L66: ='[20]Data for RTSR Model'!L67 -> 8263.768362 | M66: 1.77 | N66: ='[20]Data for RTSR Model'!N67 -> 14626.87 | P66: 14626.87
L67: ='[20]Data for RTSR Model'!L68 -> 9501.59887 | M67: 1.77 | N67: ='[20]Data for RTSR Model'!N68 -> 16817.83 | P67: 16817.83
L68: ='[20]Data for RTSR Model'!L69 -> 9600.259887 | M68: 1.77 | N68: ='[20]Data for RTSR Model'!N69 -> 16992.46 | P68: 16992.46
D70: =SUM(D57:D68) -> 0 | E70: =IF(D70<>0,F70/D70,0) -> 0 | F70: =SUM(F57:F68) -> 0 | H70: =SUM(H57:H68) -> 0 | I70: =IF(H70<>0,J70/H70,0) -> 0 | J70: =SUM(J57:J68) -> 0 | L70: =SUM(L57:L68) -> 122553.9718 | M70: =IF(L70<>0,N70/L70,0) -> 1.77 | N70: =SUM(N57:N68) -> 216920.53 | P70: =SUM(P57:P68) -> 216920.53
E76: =IF(D76<>0,F76/D76,0) -> 0 | I76: =IF(H76<>0,J76/H76,0) -> 0 | M76: =IF(L76<>0,N76/L76,0) -> 0 | P76: =J76+N76 -> 0
E77: 0 | I77: 0 | M77: 0 | P77: 0
E78: 0 | I78: 0 | M78: 0 | P78: 0
E79: 0 | I79: 0 | M79: 0 | P79: 0
E80: 0 | I80: 0 | M80: 0 | P80: 0
E81: 0 | I81: 0 | M81: 0 | P81: 0
E82: 0 | I82: 0 | M82: 0 | P82: 0
E83: 0 | I83: 0 | M83: 0 | P83: 0
E84: 0 | I84: 0 | M84: 0 | P84: 0
E85: 0 | I85: 0 | M85: 0 | P85: 0
E86: 0 | I86: 0 | M86: 0 | P86: 0
E87: 0 | I87: 0 | M87: 0 | P87: 0
D89: =SUM(D76:D87) -> 0 | E89: =IF(D89<>0,F89/D89,0) -> 0 | F89: =SUM(F76:F87) -> 0 | H89: =SUM(H76:H87) -> 0 | I89: =IF(H89<>0,J89/H89,0) -> 0 | J89: =SUM(J76:J87) -> 0 | L89: =SUM(L76:L87) -> 0 | M89: =IF(L89<>0,N89/L89,0) -> 0 | N89: =SUM(N76:N87) -> 0 | P89: =SUM(P76:P87) -> 0
D95: =D19+D38+D57+D76 -> 195127.7876 | E95: =IF(D95<>0,F95/D95,0) -> 3.662047978 | F95: =F19+F38+F57+F76 -> 714567.32 | H95: =H19+H38+H57+H76 -> 199219.476 | I95: =IF(H95<>0,J95/H95,0) -> 0.8153957635 | J95: =J19+J38+J57+J76 -> 162442.7167 | L95: =L19+L38+L57+L76 -> 154020.0821 | M95: =IF(L95<>0,N95/L95,0) -> 1.925404657 | N95: =N19+N38+N57+N76 -> 296550.9833 | P95: =J95+N95 -> 458993.7
D96: =D20+D39+D58+D77 -> 213521.3414 | E96: 3.668738753 | F96: =F20+F39+F58+F77 -> 783354.02 | H96: =H20+H39+H58+H77 -> 215811.7841 | I96: 0.8175669867 | J96: =J20+J39+J58+J77 -> 176440.59 | L96: =L20+L39+L58+L77 -> 171422.1331 | M96: 1.920408141 | N96: =N20+N39+N58+N77 -> 329200.46 | P96: 505641.05
D97: 182299.3702 | E97: 3.671918171 | F97: 669388.37 | H97: 193576.0324 | I97: 0.8209615005 | J97: 158918.47 | L97: 152420.1316 | M97: 1.929203032 | N97: 294049.38 | P97: 452967.85
D98: 158216.2215 | E98: 3.66961576 | F98: 580592.74 | H98: 161696.7946 | I98: 0.8169127922 | J98: 132092.18 | L98: 125168.8488 | M98: 1.928000156 | N98: 241325.56 | P98: 373417.74
D99: 185113.3703 | E99: 3.707895971 | F99: 686381.12 | H99: 199584.5411 | I99: 0.8468074683 | J99: 169009.68 | L99: 151667.0094 | M99: 1.961931808 | N99: 297560.33 | P99: 466570.01
D100: 196698.0374 | E100: 3.703933348 | F100: 728556.42 | H100: 198680.2381 | I100: 0.8452383668 | J100: 167932.16 | L100: 151183.5681 | M100: 1.955644014 | N100: 295661.24 | P100: 463593.4
D101: 251262.8115 | E101: 3.709131782 | F101: 931966.88 | H101: 240081.4066 | I101: 0.8454620993 | J101: 202979.73 | L101: 184937.1563 | M101: 1.9549602 | N101: 361544.78 | P101: 564524.51
D102: 240959.8423 | E102: 3.707225201 | F102: 893292.4 | H102: 242193.4139 | I102: 0.8457892668 | J102: 204844.59 | L102: 182320.9849 | M102: 1.958204484 | N102: 357021.77 | P102: 561866.36
D103: 233792.0179 | E103: 3.704546108 | F103: 866093.31 | H103: 244801.8665 | I103: 0.8458743512 | J103: 207071.62 | L103: 186704.0992 | M103: 1.957746785 | N103: 365519.35 | P103: 572590.97
D104: 149575.264 | E104: 3.696483396 | F104: 552902.48 | H104: 157922.1122 | I104: 0.8444788268 | J104: 133361.88 | L104: 122928.4017 | M104: 1.952829506 | N104: 240058.21 | P104: 373420.09
D105: 162854.9807 | E105: 3.697172462 | F105: 602102.95 | H105: 169668.1052 | I105: 0.8444195202 | J105: 143271.06 | L105: 130434.9169 | M105: 1.951160135 | N105: 254499.41 | P105: 397770.47
D106: 163921.7779 | E106: 3.694782949 | F106: 605655.39 | H106: 177648.6369 | I106: 0.8445411269 | J106: 150031.58 | L106: 136365.0045 | M106: 1.951702792 | N106: 266143.96 | P106: 416175.54
D108: =SUM(D95:D106) -> 2333342.823 | E108: =IF(D108<>0,F108/D108,0) -> 3.692065013 | F108: =SUM(F95:F106) -> 8614853.4 | H108: =SUM(H95:H106) -> 2400884.408 | I108: =IF(H108<>0,J108/H108,0) -> 0.8365235121 | J108: =SUM(J95:J106) -> 2008396.257 | L108: =SUM(L95:L106) -> 1849572.337 | M108: =IF(L108<>0,N108/L108,0) -> 1.945928452 | N108: =SUM(N95:N106) -> 3599135.433 | P108: =SUM(P95:P106) -> 5607531.69
P110: ='11. RTSR - UTRs & Sub-Tx'!E74 -> 0
P112: =P108+P110 -> 5607531.69

Sheet 13. RTSR - Current Wholesale
D20: ='12. RTSR - Historical Wholesale'!D19 -> 153281.0291 | E20: ='11. RTSR - UTRs & Sub-Tx'!H22 -> 3.66 | F20: =D20*E20 -> 561008.5665 | H20: ='12. RTSR - Historical Wholesale'!H19 -> 156905.0349 | I20: ='11. RTSR - UTRs & Sub-Tx'!H24 -> 0.87 | J20: =H20*I20 -> 136507.3803 | L20: ='12. RTSR - Historical Wholesale'!L19 -> 120241 | M20: ='11. RTSR - UTRs & Sub-Tx'!H26 -> 2.02 | N20: =L20*M20 -> 242886.82 | P20: =J20+N20 -> 379394.2003
D21: ='12. RTSR - Historical Wholesale'!D20 -> 170327.4312 | E21: =E20 -> 3.66 | F21: =D21*E21 -> 623398.3983 | H21: ='12. RTSR - Historical Wholesale'!H20 -> 172204.4302 | I21: =I20 -> 0.87 | J21: =H21*I21 -> 149817.8543 | L21: ='12. RTSR - Historical Wholesale'!L20 -> 129518 | M21: =M20 -> 2.02 | N21: =L21*M21 -> 261626.36 | P21: 411444.2143
D22: ='12. RTSR - Historical Wholesale'!D21 -> 146475.2804 | E22: =E21 -> 3.66 | F22: 536099.5263 | H22: ='12. RTSR - Historical Wholesale'!H21 -> 157590.7093 | I22: =I21 -> 0.87 | J22: 137103.9171 | L22: ='12. RTSR - Historical Wholesale'!L21 -> 119537 | M22: =M21 -> 2.02 | N22: 241464.74 | P22: 378568.6571
D23: ='12. RTSR - Historical Wholesale'!D22 -> 126462.4444 | E23: 3.66 | F23: 462852.5467 | H23: ='12. RTSR - Historical Wholesale'!H22 -> 128520.3023 | I23: 0.87 | J23: 111812.663 | L23: ='12. RTSR - Historical Wholesale'!L22 -> 98181 | M23: 2.02 | N23: 198325.62 | P23: 310138.283
D24: ='12. RTSR - Historical Wholesale'!D23 -> 148833.3492 | E24: 3.66 | F24: 544730.0581 | H24: ='12. RTSR - Historical Wholesale'!H23 -> 163065.4651 | I24: 0.87 | J24: 141866.9547 | L24: ='12. RTSR - Historical Wholesale'!L23 -> 123670 | M24: 2.02 | N24: 249813.4 | P24: 391680.3547
D25: ='12. RTSR - Historical Wholesale'!D24 -> 156028.9392 | E25: 3.66 | F25: 571065.9173 | H25: ='12. RTSR - Historical Wholesale'!H24 -> 158002.7791 | I25: 0.87 | J25: 137462.4178 | L25: ='12. RTSR - Historical Wholesale'!L24 -> 118829 | M25: 2.02 | N25: 240034.58 | P25: 377496.9978
D26: ='12. RTSR - Historical Wholesale'!D25 -> 202862.3016 | E26: 3.66 | F26: 742476.0238 | H26: ='12. RTSR - Historical Wholesale'!H25 -> 191672.5349 | I26: 0.87 | J26: 166755.1053 | L26: ='12. RTSR - Historical Wholesale'!L25 -> 145030.875 | M26: 2.02 | N26: 292962.3675 | P26: 459717.4728
D27: ='12. RTSR - Historical Wholesale'!D26 -> 193295.2487 | E27: 3.66 | F27: 707460.6102 | H27: ='12. RTSR - Historical Wholesale'!H26 -> 194457.686 | I27: 0.87 | J27: 169178.1869 | L27: ='12. RTSR - Historical Wholesale'!L26 -> 145582 | M27: 2.02 | N27: 294075.64 | P27: 463253.8269
D28: ='12. RTSR - Historical Wholesale'!D27 -> 185842.7989 | E28: 3.66 | F28: 680184.6441 | H28: ='12. RTSR - Historical Wholesale'!H27 -> 196840.907 | I28: 0.87 | J28: 171251.5891 | L28: ='12. RTSR - Historical Wholesale'!L27 -> 148701 | M28: 2.02 | N28: 300376.02 | P28: 471627.6091
D29: ='12. RTSR - Historical Wholesale'!D28 -> 115620.336 | E29: 3.66 | F29: 423170.4297 | H29: ='12. RTSR - Historical Wholesale'!H28 -> 123925.7674 | I29: 0.87 | J29: 107815.4177 | L29: ='12. RTSR - Historical Wholesale'!L28 -> 94998 | M29: 2.02 | N29: 191895.96 | P29: 299711.3777
D30: ='12. RTSR - Historical Wholesale'!D29-D68 -> 118114.1003 | E30: 3.66 | F30: 432297.6072 | H30: ='12. RTSR - Historical Wholesale'!H29-H68 -> 123502.0058 | I30: 0.87 | J30: 107446.745 | L30: ='12. RTSR - Historical Wholesale'!L29 -> 99818 | M30: 2.02 | N30: 201632.36 | P30: 309079.105
D31: ='12. RTSR - Historical Wholesale'!D30-D69 -> 117879.0001 | E31: 3.66 | F31: 431437.1402 | H31: ='12. RTSR - Historical Wholesale'!H30-H69 -> 129958.9494 | I31: 0.87 | J31: 113064.286 | L31: ='12. RTSR - Historical Wholesale'!L30 -> 104676 | M31: 2.02 | N31: 211445.52 | P31: 324509.806
D33: =SUM(D20:D31) -> 1835022.259 | E33: =IF(D33<>0,F33/D33,0) -> 3.66 | F33: =SUM(F20:F31) -> 6716181.468 | H33: =SUM(H20:H31) -> 1896646.571 | I33: =IF(H33<>0,J33/H33,0) -> 0.87 | J33: =SUM(J20:J31) -> 1650082.517 | L33: =SUM(L20:L31) -> 1448781.875 | M33: =IF(L33<>0,N33/L33,0) -> 2.02 | N33: =SUM(N20:N31) -> 2926539.387 | P33: =SUM(P20:P31) -> 4576621.905
D39: ='12. RTSR - Historical Wholesale'!D38 -> 41846.75851 | E39: ='11. RTSR - UTRs & Sub-Tx'!F35 -> 3.4121 | F39: =D39*E39 -> 142785.3247 | H39: ='12. RTSR - Historical Wholesale'!H38 -> 42314.44108 | I39: ='11. RTSR - UTRs & Sub-Tx'!F37 -> 0.7879 | J39: =H39*I39 -> 33339.54813 | L39: ='12. RTSR - Historical Wholesale'!L38 -> 24799.94648 | M39: ='11. RTSR - UTRs & Sub-Tx'!F39 -> 1.8018 | N39: =L39*M39 -> 44684.54356 | P39: =J39+N39 -> 78024.0917
D40: ='12. RTSR - Historical Wholesale'!D39 -> 43193.91022 | E40: ='11. RTSR - UTRs & Sub-Tx'!H35 -> 3.3396 | F40: =D40*E40 -> 144250.3826 | H40: ='12. RTSR - Historical Wholesale'!H39 -> 43607.35385 | I40: ='11. RTSR - UTRs & Sub-Tx'!H37 -> 0.7791 | J40: =H40*I40 -> 33974.48938 | L40: ='12. RTSR - Historical Wholesale'!L39 -> 26705.7037 | M40: ='11. RTSR - UTRs & Sub-Tx'!H39 -> 1.7713 | N40: =L40*M40 -> 47303.81297 | P40: 81278.30235
D41: ='12. RTSR - Historical Wholesale'!D40 -> 35824.08978 | E41: =E40 -> 3.3396 | F41: 119638.1302 | H41: ='12. RTSR - Historical Wholesale'!H40 -> 35985.32308 | I41: =I40 -> 0.7791 | J41: 28036.16521 | L41: ='12. RTSR - Historical Wholesale'!L40 -> 21518.41975 | M41: =M40 -> 1.7713 | N41: 38115.57691 | P41: 66151.74212
D42: ='12. RTSR - Historical Wholesale'!D41 -> 31753.77709 | E42: 3.3396 | F42: 106044.914 | H42: ='12. RTSR - Historical Wholesale'!H41 -> 33176.49231 | I42: 0.7791 | J42: 25847.80516 | L42: ='12. RTSR - Historical Wholesale'!L41 -> 18699.54938 | M42: =M41 -> 1.7713 | N42: 33122.51182 | P42: 58970.31698
D43: ='12. RTSR - Historical Wholesale'!D42 -> 36280.0211 | E43: 3.3396 | F43: 121160.7585 | H43: ='12. RTSR - Historical Wholesale'!H42 -> 36519.07602 | I43: 0.7791 | J43: 28452.01213 | L43: ='12. RTSR - Historical Wholesale'!L42 -> 20931.55178 | M43: 1.7713 | N43: 37076.05767 | P43: 65528.0698
D44: ='12. RTSR - Historical Wholesale'!D43 -> 40669.09821 | E44: 3.3396 | F44: 135818.5204 | H44: ='12. RTSR - Historical Wholesale'!H43 -> 40677.45907 | I44: 0.7791 | J44: 31691.80836 | L44: ='12. RTSR - Historical Wholesale'!L43 -> 23133.78843 | M44: 1.7713 | N44: 40976.87945 | P44: 72668.68781
D45: ='12. RTSR - Historical Wholesale'!D44 -> 48400.50995 | E45: 3.3396 | F45: 161638.343 | H45: ='12. RTSR - Historical Wholesale'!H44 -> 48408.87168 | I45: 0.7791 | J45: 37715.35193 | L45: ='12. RTSR - Historical Wholesale'!L44 -> 26695.3491 | M45: 1.7713 | N45: 47285.47185 | P45: 85000.82378
D46: ='12. RTSR - Historical Wholesale'!D45 -> 47664.59365 | E46: 3.3396 | F46: 159180.677 | H46: ='12. RTSR - Historical Wholesale'!H45 -> 47735.72788 | I46: 0.7791 | J46: 37190.90559 | L46: ='12. RTSR - Historical Wholesale'!L45 -> 26093.29559 | M46: 1.7713 | N46: 46219.05448 | P46: 83409.96008
D47: ='12. RTSR - Historical Wholesale'!D46 -> 47949.21896 | E47: 3.3396 | F47: 160131.2116 | H47: ='12. RTSR - Historical Wholesale'!H46 -> 47960.95951 | I47: 0.7791 | J47: 37366.38356 | L47: ='12. RTSR - Historical Wholesale'!L46 -> 26788.18959 | M47: 1.7713 | N47: 47449.92022 | P47: 84816.30377
D48: ='12. RTSR - Historical Wholesale'!D47 -> 33954.92805 | E48: 3.3396 | F48: 113395.8777 | H48: ='12. RTSR - Historical Wholesale'!H47 -> 33996.34471 | I48: 0.7791 | J48: 26486.55217 | L48: ='12. RTSR - Historical Wholesale'!L47 -> 19666.63337 | M48: 1.7713 | N48: 34835.50768 | P48: 61322.05985
D49: ='12. RTSR - Historical Wholesale'!D48 -> 36664.52038 | E49: 3.3396 | F49: 122444.8323 | H49: ='12. RTSR - Historical Wholesale'!H48 -> 36664.50057 | I49: 0.7791 | J49: 28565.31239 | L49: ='12. RTSR - Historical Wholesale'!L48 -> 21115.31802 | M49: 1.7713 | N49: 37401.5628 | P49: 65966.8752
D50: ='12. RTSR - Historical Wholesale'!D49 -> 37969.36784 | E50: 3.3396 | F50: 126802.5008 | H50: ='12. RTSR - Historical Wholesale'!H49 -> 38089.42759 | I50: 0.7791 | J50: 29675.47304 | L50: ='12. RTSR - Historical Wholesale'!L49 -> 22088.74459 | M50: 1.7713 | N50: 39125.79329 | P50: 68801.26633
D52: =SUM(D39:D50) -> 482170.7937 | E52: =IF(D52<>0,F52/D52,0) -> 3.345892148 | F52: =SUM(F39:F50) -> 1613291.473 | H52: =SUM(H39:H50) -> 485135.9774 | I52: =IF(H52<>0,J52/H52,0) -> 0.779867552 | J52: =SUM(J39:J50) -> 378341.807 | L52: =SUM(L39:L50) -> 278236.4898 | M52: =IF(L52<>0,N52/L52,0) -> 1.774018545 | N52: =SUM(N39:N50) -> 493596.6927 | P52: =SUM(P39:P50) -> 871938.4998
B54: ='12. RTSR - Historical Wholesale'!B53 -> Add Extra Host Here (I)
D58: ='12. RTSR - Historical Wholesale'!D57 -> 0 | E58: ='11. RTSR - UTRs & Sub-Tx'!H50 -> 2.8107 | F58: =D58*E58 -> 0 | H58: ='12. RTSR - Historical Wholesale'!H57 -> 0 | I58: ='11. RTSR - UTRs & Sub-Tx'!H52 -> 0.5033 | J58: =H58*I58 -> 0 | L58: ='12. RTSR - Historical Wholesale'!L57 -> 8979.135593 | M58: ='11. RTSR - UTRs & Sub-Tx'!H54 -> 1.77 | N58: =L58*M58 -> 15893.07 | P58: =J58+N58 -> 15893.07
D59: ='12. RTSR - Historical Wholesale'!D58 -> 0 | E59: =E58 -> 2.8107 | F59: =D59*E59 -> 0 | H59: ='12. RTSR - Historical Wholesale'!H58 -> 0 | I59: =I58 -> 0.5033 | J59: =H59*I59 -> 0 | L59: ='12. RTSR - Historical Wholesale'!L58 -> 15198.42938 | M59: =M58 -> 1.77 | N59: =L59*M59 -> 26901.22 | P59: 26901.22
D60: ='12. RTSR - Historical Wholesale'!D59 -> 0 | E60: =E59 -> 2.8107 | F60: 0 | H60: ='12. RTSR - Historical Wholesale'!H59 -> 0 | I60: =I59 -> 0.5033 | J60: 0 | L60: ='12. RTSR - Historical Wholesale'!L59 -> 11364.71186 | M60: =M59 -> 1.77 | N60: 20115.54 | P60: 20115.54
D61: ='12. RTSR - Historical Wholesale'!D60 -> 0 | E61: 2.8107 | F61: 0 | H61: ='12. RTSR - Historical Wholesale'!H60 -> 0 | I61: 0.5033 | J61: 0 | L61: ='12. RTSR - Historical Wholesale'!L60 -> 8288.299435 | M61: =M60 -> 1.77 | N61: 14670.29 | P61: 14670.29
D62: ='12. RTSR - Historical Wholesale'!D61 -> 0 | E62: 2.8107 | F62: 0 | H62: ='12. RTSR - Historical Wholesale'!H61 -> 0 | I62: 0.5033 | J62: 0 | L62: ='12. RTSR - Historical Wholesale'!L61 -> 7065.457627 | M62: 1.77 | N62: 12505.86 | P62: 12505.86
D63: ='12. RTSR - Historical Wholesale'!D62 -> 0 | E63: 2.8107 | F63: 0 | H63: ='12. RTSR - Historical Wholesale'!H62 -> 0 | I63: 0.5033 | J63: 0 | L63: ='12. RTSR - Historical Wholesale'!L62 -> 9220.779661 | M63: 1.77 | N63: 16320.78 | P63: 16320.78
D64: ='12. RTSR - Historical Wholesale'!D63 -> 0 | E64: 2.8107 | F64: 0 | H64: ='12. RTSR - Historical Wholesale'!H63 -> 0 | I64: 0.5033 | J64: 0 | L64: ='12. RTSR - Historical Wholesale'!L63 -> 13210.9322 | M64: 1.77 | N64: 23383.35 | P64: 23383.35
D65: ='12. RTSR - Historical Wholesale'!D64 -> 0 | E65: 2.8107 | F65: 0 | H65: ='12. RTSR - Historical Wholesale'!H64 -> 0 | I65: 0.5033 | J65: 0 | L65: ='12. RTSR - Historical Wholesale'!L64 -> 10645.68927 | M65: 1.77 | N65: 18842.87 | P65: 18842.87
D66: ='12. RTSR - Historical Wholesale'!D65 -> 0 | E66: 2.8107 | F66: 0 | H66: ='12. RTSR - Historical Wholesale'!H65 -> 0 | I66: 0.5033 | J66: 0 | P66: 0
D67: ='12. RTSR - Historical Wholesale'!D66 -> 0 | E67: 2.8107 | F67: 0 | H67: ='12. RTSR - Historical Wholesale'!H66 -> 0 | I67: 0.5033 | J67: 0 | P67: 0
D68: 8076.36 | E68: 2.8107 | F68: 22700.22505 | H68: 9501.59887 | I68: 0.5033 | J68: 4782.154711 | P68: 4782.154711
D69: 8073.41 | E69: 2.8107 | F69: 22691.93349 | H69: 9600.259887 | I69: 0.5033 | J69: 4831.810801 | P69: 4831.810801
D71: =SUM(D58:D69) -> 16149.77 | E71: =IF(D71<>0,F71/D71,0) -> 2.8107 | F71: =SUM(F58:F69) -> 45392.15854 | H71: =SUM(H58:H69) -> 19101.85876 | I71: =IF(H71<>0,J71/H71,0) -> 0.5033 | J71: =SUM(J58:J69) -> 9613.965512 | L71: =SUM(L58:L69) -> 83973.43503 | M71: =IF(L71<>0,N71/L71,0) -> 1.77 | N71: =SUM(N58:N69) -> 148632.98 | P71: =SUM(P58:P69) -> 158246.9455
B73: ='12. RTSR - Historical Wholesale'!B72 -> Add Extra Host Here (II)
D77: ='12. RTSR - Historical Wholesale'!D76 -> 0 | E77: ='11. RTSR - UTRs & Sub-Tx'!H65 -> 0 | F77: =D77*E77 -> 0 | H77: ='12. RTSR - Historical Wholesale'!H76 -> 0 | I77: ='11. RTSR - UTRs & Sub-Tx'!H67 -> 0 | J77: =H77*I77 -> 0 | L77: ='12. RTSR - Historical Wholesale'!L76 -> 0 | M77: ='11. RTSR - UTRs & Sub-Tx'!H69 -> 0 | N77: =L77*M77 -> 0 | P77: =J77+N77 -> 0
D78: ='12. RTSR - Historical Wholesale'!D77 -> 0 | E78: =E77 -> 0 | F78: =D78*E78 -> 0 | H78: ='12. RTSR - Historical Wholesale'!H77 -> 0 | I78: =I77 -> 0 | J78: =H78*I78 -> 0 | L78: ='12. RTSR - Historical Wholesale'!L77 -> 0 | M78: =M77 -> 0 | N78: =L78*M78 -> 0 | P78: 0
D79: ='12. RTSR - Historical Wholesale'!D78 -> 0 | E79: =E78 -> 0 | F79: 0 | H79: ='12. RTSR - Historical Wholesale'!H78 -> 0 | I79: =I78 -> 0 | J79: 0 | L79: ='12. RTSR - Historical Wholesale'!L78 -> 0 | M79: =M78 -> 0 | N79: 0 | P79: 0
D80: ='12. RTSR - Historical Wholesale'!D79 -> 0 | E80: 0 | F80: 0 | H80: ='12. RTSR - Historical Wholesale'!H79 -> 0 | I80: 0 | J80: 0 | L80: ='12. RTSR - Historical Wholesale'!L79 -> 0 | M80: =M79 -> 0 | N80: 0 | P80: 0
D81: ='12. RTSR - Historical Wholesale'!D80 -> 0 | E81: 0 | F81: 0 | H81: ='12. RTSR - Historical Wholesale'!H80 -> 0 | I81: 0 | J81: 0 | L81: ='12. RTSR - Historical Wholesale'!L80 -> 0 | M81: 0 | N81: 0 | P81: 0
D82: ='12. RTSR - Historical Wholesale'!D81 -> 0 | E82: 0 | F82: 0 | H82: ='12. RTSR - Historical Wholesale'!H81 -> 0 | I82: 0 | J82: 0 | L82: ='12. RTSR - Historical Wholesale'!L81 -> 0 | M82: 0 | N82: 0 | P82: 0
D83: ='12. RTSR - Historical Wholesale'!D82 -> 0 | E83: 0 | F83: 0 | H83: ='12. RTSR - Historical Wholesale'!H82 -> 0 | I83: 0 | J83: 0 | L83: ='12. RTSR - Historical Wholesale'!L82 -> 0 | M83: 0 | N83: 0 | P83: 0
D84: ='12. RTSR - Historical Wholesale'!D83 -> 0 | E84: 0 | F84: 0 | H84: ='12. RTSR - Historical Wholesale'!H83 -> 0 | I84: 0 | J84: 0 | L84: ='12. RTSR - Historical Wholesale'!L83 -> 0 | M84: 0 | N84: 0 | P84: 0
D85: ='12. RTSR - Historical Wholesale'!D84 -> 0 | E85: 0 | F85: 0 | H85: ='12. RTSR - Historical Wholesale'!H84 -> 0 | I85: 0 | J85: 0 | L85: ='12. RTSR - Historical Wholesale'!L84 -> 0 | M85: 0 | N85: 0 | P85: 0
D86: ='12. RTSR - Historical Wholesale'!D85 -> 0 | E86: 0 | F86: 0 | H86: ='12. RTSR - Historical Wholesale'!H85 -> 0 | I86: 0 | J86: 0 | L86: ='12. RTSR - Historical Wholesale'!L85 -> 0 | M86: 0 | N86: 0 | P86: 0
D87: ='12. RTSR - Historical Wholesale'!D86 -> 0 | E87: 0 | F87: 0 | H87: ='12. RTSR - Historical Wholesale'!H86 -> 0 | I87: 0 | J87: 0 | L87: ='12. RTSR - Historical Wholesale'!L86 -> 0 | M87: 0 | N87: 0 | P87: 0
D88: ='12. RTSR - Historical Wholesale'!D87 -> 0 | E88: 0 | F88: 0 | H88: ='12. RTSR - Historical Wholesale'!H87 -> 0 | I88: 0 | J88: 0 | L88: ='12. RTSR - Historical Wholesale'!L87 -> 0 | M88: 0 | N88: 0 | P88: 0
D90: =SUM(D77:D88) -> 0 | E90: =IF(D90<>0,F90/D90,0) -> 0 | F90: =SUM(F77:F88) -> 0 | H90: =SUM(H77:H88) -> 0 | I90: =IF(H90<>0,J90/H90,0) -> 0 | J90: =SUM(J77:J88) -> 0 | L90: =SUM(L77:L88) -> 0 | M90: =IF(L90<>0,N90/L90,0) -> 0 | N90: =SUM(N77:N88) -> 0 | P90: =SUM(P77:P88) -> 0
D96: =D20+D39+D58+D77 -> 195127.7876 | E96: =IF(D96<>0,F96/D96,0) -> 3.606835807 | F96: =F20+F39+F58+F77 -> 703793.8912 | H96: =H20+H39+H58+H77 -> 199219.476 | I96: =IF(H96<>0,J96/H96,0) -> 0.8525618675 | J96: =J20+J39+J58+J77 -> 169846.9285 | L96: =L20+L39+L58+L77 -> 154020.0821 | M96: =IF(L96<>0,N96/L96,0) -> 1.970291338 | N96: =N20+N39+N58+N77 -> 303464.4336 | P96: =J96+N96 -> 473311.362
D97: =D21+D40+D59+D78 -> 213521.3414 | E97: 3.595185267 | F97: =F21+F40+F59+F78 -> 767648.7808 | H97: =H21+H40+H59+H78 -> 215811.7841 | I97: 0.8516325671 | J97: =J21+J40+J59+J78 -> 183792.3437 | L97: =L21+L40+L59+L78 -> 171422.1331 | M97: 1.959090037 | N97: =N21+N40+N59+N78 -> 335831.393 | P97: 519623.7367
D98: 182299.3702 | E98: 3.597037422 | F98: 655737.6566 | H98: 193576.0324 | I98: 0.8531019066 | J98: 165140.0823 | L98: 152420.1316 | M98: 1.966248511 | N98: 299695.8569 | P98: 464835.9392
D99: 158216.2215 | E99: 3.595696163 | F99: 568897.4606 | H99: 161696.7946 | I99: 0.8513493944 | J99: 137660.4682 | L99: 125168.8488 | M99: 1.966291327 | N99: 246118.4218 | P99: 383778.89
D100: 185113.3703 | E100: 3.597205407 | F100: 665890.8166 | H100: 199584.5411 | I100: 0.8533675294 | J100: 170318.9668 | L100: 151667.0094 | M100: 1.974030601 | N100: 299395.3177 | P100: 469714.2845
D101: 196698.0374 | E101: 3.593754402 | F101: 706884.4377 | H101: 198680.2381 | I101: 0.8513892863 | J101: 169154.2262 | L101: 151183.5681 | M101: 1.966696799 | N101: 297332.2395 | P101: 466486.4656
D102: 251262.8115 | E102: 3.598281661 | F102: 904114.3668 | H102: 240081.4066 | I102: 0.8516713568 | J102: 204470.4573 | L102: 184937.1563 | M102: 1.96624192 | N102: 363631.1894 | P102: 568101.6466
D103: 240959.8423 | E103: 3.596621241 | F103: 866641.2871 | H103: 242193.4139 | I103: 0.8520838329 | J103: 206369.0925 | L103: 182320.9849 | M103: 1.969809261 | N103: 359137.5645 | P103: 565506.6569
D104: 233792.0179 | E104: 3.594288048 | F104: 840315.8558 | H104: 244801.8665 | I104: 0.852191103 | J104: 208617.9726 | L104: 175489.1896 | M104: 1.982036278 | N104: 347825.9402 | P104: 556443.9128
D105: 149575.264 | E105: 3.587266323 | F105: 536566.3074 | H105: 157922.1122 | I105: 0.850431697 | J105: 134301.9698 | L105: 114664.6334 | M105: 1.977344374 | N105: 226731.4677 | P105: 361033.4375
D106: 162854.9807 | E106: 3.545747646 | F106: 577442.6645 | H106: 169668.1052 | I106: 0.8298213265 | J106: 140794.2121 | L106: 120933.318 | M106: 1.976576238 | N106: 239033.9228 | P106: 379828.1349
D107: 163921.7779 | E107: 3.543956038 | F107: 580931.5745 | H107: 177648.6369 | I107: 0.8306935106 | J107: 147571.5698 | L107: 126764.7446 | M107: 1.976664049 | N107: 250571.3133 | P107: 398142.8831
D109: =SUM(D96:D107) -> 2333342.823 | E109: =IF(D109<>0,F109/D109,0) -> 3.589213303 | F109: =SUM(F96:F107) -> 8374865.1 | H109: =SUM(H96:H107) -> 2400884.408 | I109: =IF(H109<>0,J109/H109,0) -> 0.8488698095 | J109: =SUM(J96:J107) -> 2038038.29 | L109: =SUM(L96:L107) -> 1810991.8 | M109: =IF(L109<>0,N109/L109,0) -> 1.970615803 | N109: =SUM(N96:N107) -> 3568769.06 | P109: =SUM(P96:P107) -> 5606807.35
P111: ='11. RTSR - UTRs & Sub-Tx'!H74 -> 0
P113: =P109+P111 -> 5606807.35

Sheet 14. RTSR - Forecast Wholesale
D20: ='12. RTSR - Historical Wholesale'!D19-D58 -> 144447.9991 | E20: ='11. RTSR - UTRs & Sub-Tx'!J22 -> 3.66 | F20: =D20*E20 -> 528679.6767 | H20: ='12. RTSR - Historical Wholesale'!H19-H58 -> 147925.8993 | I20: ='11. RTSR - UTRs & Sub-Tx'!J24 -> 0.87 | J20: =H20*I20 -> 128695.5324 | L20: ='12. RTSR - Historical Wholesale'!L19 -> 120241 | M20: ='11. RTSR - UTRs & Sub-Tx'!J26 -> 2.02 | N20: =L20*M20 -> 242886.82 | P20: =J20+N20 -> 371582.3524
D21: ='12. RTSR - Historical Wholesale'!D20-D59 -> 155129.0012 | E21: =E20 -> 3.66 | F21: 567772.1445 | H21: ='12. RTSR - Historical Wholesale'!H20-H59 -> 157006.0009 | I21: =I20 -> 0.87 | J21: 136595.2207 | L21: ='12. RTSR - Historical Wholesale'!L20 -> 129518 | M21: =M20 -> 2.02 | N21: 261626.36 | P21: 398221.5807
D22: ='12. RTSR - Historical Wholesale'!D21-D60 -> 141416.0004 | E22: 3.66 | F22: 517582.5615 | H22: ='12. RTSR - Historical Wholesale'!H21-H60 -> 146225.9974 | I22: 0.87 | J22: 127216.6178 | L22: ='12. RTSR - Historical Wholesale'!L21 -> 119537 | M22: 2.02 | N22: 241464.74 | P22: 368681.3578
D23: ='12. RTSR - Historical Wholesale'!D22-D61 -> 119969.9944 | E23: 3.66 | F23: 439090.1797 | H23: ='12. RTSR - Historical Wholesale'!H22-H61 -> 120232.0029 | I23: 0.87 | J23: 104601.8425 | L23: ='12. RTSR - Historical Wholesale'!L22 -> 98181 | M23: 2.02 | N23: 198325.62 | P23: 302927.4625
D24: ='12. RTSR - Historical Wholesale'!D23-D62 -> 146290.9992 | E24: 3.66 | F24: 535425.0571 | H24: ='12. RTSR - Historical Wholesale'!H23-H62 -> 156000.0075 | I24: 0.87 | J24: 135720.0065 | L24: ='12. RTSR - Historical Wholesale'!L23 -> 123670 | M24: 2.02 | N24: 249813.4 | P24: 385533.4065
D25: ='12. RTSR - Historical Wholesale'!D24-D63 -> 147908.9992 | E25: 3.66 | F25: 541346.9369 | H25: ='12. RTSR - Historical Wholesale'!H24-H63 -> 148781.9994 | I25: 0.87 | J25: 129440.3395 | L25: ='12. RTSR - Historical Wholesale'!L24 -> 118829 | M25: 2.02 | N25: 240034.58 | P25: 369474.9195
D26: ='12. RTSR - Historical Wholesale'!D25-D64 -> 189651.3716 | E26: 3.66 | F26: 694124.02 | H26: ='12. RTSR - Historical Wholesale'!H25-H64 -> 178461.6027 | I26: 0.87 | J26: 155261.5943 | L26: ='12. RTSR - Historical Wholesale'!L25 -> 145030.875 | M26: 2.02 | N26: 292962.3675 | P26: 448223.9618
D27: ='12. RTSR - Historical Wholesale'!D26-D65 -> 183708.9987 | E27: 3.66 | F27: 672374.9352 | H27: ='12. RTSR - Historical Wholesale'!H26-H65 -> 183811.9968 | I27: 0.87 | J27: 159916.4372 | L27: ='12. RTSR - Historical Wholesale'!L26 -> 145582 | M27: 2.02 | N27: 294075.64 | P27: 453992.0772
D28: ='12. RTSR - Historical Wholesale'!D27-D66 -> 178919.9989 | E28: 3.66 | F28: 654847.1961 | H28: ='12. RTSR - Historical Wholesale'!H27-H66 -> 185625.9974 | I28: 0.87 | J28: 161494.6177 | L28: ='12. RTSR - Historical Wholesale'!L27 -> 148701 | M28: 2.02 | N28: 300376.02 | P28: 461870.6377
D29: ='12. RTSR - Historical Wholesale'!D28-D67 -> 108302.996 | E29: 3.66 | F29: 396388.9653 | H29: ='12. RTSR - Historical Wholesale'!H28-H67 -> 115661.9991 | I29: 0.87 | J29: 100625.9392 | L29: ='12. RTSR - Historical Wholesale'!L28 -> 94998 | M29: 2.02 | N29: 191895.96 | P29: 292521.8992
D30: ='12. RTSR - Historical Wholesale'!D29-D68 -> 118114.1003 | E30: 3.66 | F30: 432297.6072 | H30: ='12. RTSR - Historical Wholesale'!H29-H68 -> 123502.0058 | I30: 0.87 | J30: 107446.745 | L30: ='12. RTSR - Historical Wholesale'!L29 -> 99818 | M30: 2.02 | N30: 201632.36 | P30: 309079.105
D31: ='12. RTSR - Historical Wholesale'!D30-D69 -> 117879.0001 | E31: 3.66 | F31: 431437.1402 | H31: ='12. RTSR - Historical Wholesale'!H30-H69 -> 129958.9494 | I31: 0.87 | J31: 113064.286 | L31: ='12. RTSR - Historical Wholesale'!L30 -> 104676 | M31: 2.02 | N31: 211445.52 | P31: 324509.806
D33: =SUM(D20:D31) -> 1751739.459 | E33: =IF(D33<>0,F33/D33,0) -> 3.66 | F33: =SUM(F20:F31) -> 6411366.42 | H33: =SUM(H20:H31) -> 1793194.458 | I33: =IF(H33<>0,J33/H33,0) -> 0.87 | J33: =SUM(J20:J31) -> 1560079.179 | L33: =SUM(L20:L31) -> 1448781.875 | M33: =IF(L33<>0,N33/L33,0) -> 2.02 | N33: =SUM(N20:N31) -> 2926539.387 | P33: =SUM(P20:P31) -> 4486618.566
D39: ='12. RTSR - Historical Wholesale'!D38 -> 41846.75851 | E39: ='11. RTSR - UTRs & Sub-Tx'!J35 -> 3.1942 | F39: =D39*E39 -> 133666.916 | H39: ='12. RTSR - Historical Wholesale'!H38 -> 42314.44108 | I39: ='11. RTSR - UTRs & Sub-Tx'!J37 -> 0.771 | J39: =H39*I39 -> 32624.43408 | L39: ='12. RTSR - Historical Wholesale'!L38 -> 24799.94648 | M39: ='11. RTSR - UTRs & Sub-Tx'!J39 -> 1.7493 | N39: =L39*M39 -> 43382.54637 | P39: =J39+N39 -> 76006.98045
D40: ='12. RTSR - Historical Wholesale'!D39 -> 43193.91022 | E40: =E39 -> 3.1942 | F40: 137969.988 | H40: ='12. RTSR - Historical Wholesale'!H39 -> 43607.35385 | I40: =I39 -> 0.771 | J40: 33621.26982 | L40: ='12. RTSR - Historical Wholesale'!L39 -> 26705.7037 | M40: =M39 -> 1.7493 | N40: 46716.28749 | P40: 80337.5573
D41: ='12. RTSR - Historical Wholesale'!D40 -> 35824.08978 | E41: 3.1942 | F41: 114429.3076 | H41: ='12. RTSR - Historical Wholesale'!H40 -> 35985.32308 | I41: 0.771 | J41: 27744.68409 | L41: ='12. RTSR - Historical Wholesale'!L40 -> 21518.41975 | M41: 1.7493 | N41: 37642.17167 | P41: 65386.85577
D42: ='12. RTSR - Historical Wholesale'!D41 -> 31753.77709 | E42: 3.1942 | F42: 101427.9148 | H42: ='12. RTSR - Historical Wholesale'!H41 -> 33176.49231 | I42: 0.771 | J42: 25579.07557 | L42: ='12. RTSR - Historical Wholesale'!L41 -> 18699.54938 | M42: 1.7493 | N42: 32711.12174 | P42: 58290.1973
D43: ='12. RTSR - Historical Wholesale'!D42 -> 36280.0211 | E43: 3.1942 | F43: 115885.6434 | H43: ='12. RTSR - Historical Wholesale'!H42 -> 36519.07602 | I43: 0.771 | J43: 28156.20762 | L43: ='12. RTSR - Historical Wholesale'!L42 -> 20931.55178 | M43: 1.7493 | N43: 36615.56353 | P43: 64771.77115
D44: ='12. RTSR - Historical Wholesale'!D43 -> 40669.09821 | E44: 3.1942 | F44: 129905.2335 | H44: ='12. RTSR - Historical Wholesale'!H43 -> 40677.45907 | I44: 0.771 | J44: 31362.32094 | L44: ='12. RTSR - Historical Wholesale'!L43 -> 23133.78843 | M44: 1.7493 | N44: 40467.93611 | P44: 71830.25705
D45: ='12. RTSR - Historical Wholesale'!D44 -> 48400.50995 | E45: 3.1942 | F45: 154600.9089 | H45: ='12. RTSR - Historical Wholesale'!H44 -> 48408.87168 | I45: 0.771 | J45: 37323.24007 | L45: ='12. RTSR - Historical Wholesale'!L44 -> 26695.3491 | M45: 1.7493 | N45: 46698.17417 | P45: 84021.41424
D46: ='12. RTSR - Historical Wholesale'!D45 -> 47664.59365 | E46: 3.1942 | F46: 152250.245 | H46: ='12. RTSR - Historical Wholesale'!H45 -> 47735.72788 | I46: 0.771 | J46: 36804.2462 | L46: ='12. RTSR - Historical Wholesale'!L45 -> 26093.29559 | M46: 1.7493 | N46: 45645.00198 | P46: 82449.24818
D47: ='12. RTSR - Historical Wholesale'!D46 -> 47949.21896 | E47: 3.1942 | F47: 153159.3952 | H47: ='12. RTSR - Historical Wholesale'!H46 -> 47960.95951 | I47: 0.771 | J47: 36977.89978 | L47: ='12. RTSR - Historical Wholesale'!L46 -> 26788.18959 | M47: 1.7493 | N47: 46860.58005 | P47: 83838.47983
D48: ='12. RTSR - Historical Wholesale'!D47 -> 33954.92805 | E48: 3.1942 | F48: 108458.8312 | H48: ='12. RTSR - Historical Wholesale'!H47 -> 33996.34471 | I48: 0.771 | J48: 26211.18177 | L48: ='12. RTSR - Historical Wholesale'!L47 -> 19666.63337 | M48: 1.7493 | N48: 34402.84175 | P48: 60614.02352
D49: ='12. RTSR - Historical Wholesale'!D48 -> 36664.52038 | E49: 3.1942 | F49: 117113.811 | H49: ='12. RTSR - Historical Wholesale'!H48 -> 36664.50057 | I49: 0.771 | J49: 28268.32994 | L49: ='12. RTSR - Historical Wholesale'!L48 -> 21115.31802 | M49: 1.7493 | N49: 36937.0258 | P49: 65205.35574
D50: ='12. RTSR - Historical Wholesale'!D49 -> 37969.36784 | E50: 3.1942 | F50: 121281.7547 | H50: ='12. RTSR - Historical Wholesale'!H49 -> 38089.42759 | I50: 0.771 | J50: 29366.94867 | L50: ='12. RTSR - Historical Wholesale'!L49 -> 22088.74459 | M50: 1.7493 | N50: 38639.84091 | P50: 68006.78958
D52: =SUM(D39:D50) -> 482170.7937 | E52: =IF(D52<>0,F52/D52,0) -> 3.1942 | F52: =SUM(F39:F50) -> 1540149.949 | H52: =SUM(H39:H50) -> 485135.9774 | I52: =IF(H52<>0,J52/H52,0) -> 0.771 | J52: =SUM(J39:J50) -> 374039.8386 | L52: =SUM(L39:L50) -> 278236.4898 | M52: =IF(L52<>0,N52/L52,0) -> 1.7493 | N52: =SUM(N39:N50) -> 486719.0916 | P52: =SUM(P39:P50) -> 860758.9301
B54: ='12. RTSR - Historical Wholesale'!B53 -> Add Extra Host Here (I)
D58: 8833.03 | E58: ='11. RTSR - UTRs & Sub-Tx'!J50 -> 2.809 | F58: =D58*E58 -> 24811.98127 | H58: =L58 -> 8979.135593 | I58: ='11. RTSR - UTRs & Sub-Tx'!J52 -> 0.5083 | J58: =H58*I58 -> 4564.094622 | L58: ='12. RTSR - Historical Wholesale'!L57 -> 8979.135593 | M58: ='11. RTSR - UTRs & Sub-Tx'!J54 -> 0 | N58: =L58*M58 -> 0 | P58: =J58+N58 -> 4564.094622
D59: 15198.43 | E59: =E58 -> 2.809 | F59: 42692.38987 | H59: =L59 -> 15198.42938 | I59: =I58 -> 0.5083 | J59: 7725.361653 | L59: ='12. RTSR - Historical Wholesale'!L58 -> 15198.42938 | M59: =M58 -> 0 | N59: 0 | P59: 7725.361653
D60: 5059.28 | E60: 2.809 | F60: 14211.51752 | H60: 11364.71186 | I60: 0.5083 | J60: 5776.683041 | L60: ='12. RTSR - Historical Wholesale'!L59 -> 11364.71186 | M60: 0 | N60: 0 | P60: 5776.683041
D61: 6492.45 | E61: 2.809 | F61: 18237.29205 | H61: 8288.299435 | I61: 0.5083 | J61: 4212.942603 | L61: ='12. RTSR - Historical Wholesale'!L60 -> 8288.299435 | M61: 0 | N61: 0 | P61: 4212.942603
D62: 2542.35 | E62: 2.809 | F62: 7141.46115 | H62: 7065.457627 | I62: 0.5083 | J62: 3591.372112 | L62: ='12. RTSR - Historical Wholesale'!L61 -> 7065.457627 | M62: 0 | N62: 0 | P62: 3591.372112
D63: 8119.94 | E63: 2.809 | F63: 22808.91146 | H63: 9220.779661 | I63: 0.5083 | J63: 4686.922302 | L63: ='12. RTSR - Historical Wholesale'!L62 -> 9220.779661 | M63: 0 | N63: 0 | P63: 4686.922302
D64: 13210.93 | E64: 2.809 | F64: 37109.50237 | H64: 13210.9322 | I64: 0.5083 | J64: 6715.116839 | L64: ='12. RTSR - Historical Wholesale'!L63 -> 13210.9322 | M64: 0 | N64: 0 | P64: 6715.116839
D65: 9586.25 | E65: 2.809 | F65: 26927.77625 | H65: 10645.68927 | I65: 0.5083 | J65: 5411.203854 | L65: ='12. RTSR - Historical Wholesale'!L64 -> 10645.68927 | M65: 0 | N65: 0 | P65: 5411.203854
D66: 6922.8 | E66: 2.809 | F66: 19446.1452 | H66: 11214.9096 | I66: 0.5083 | J66: 5700.538552 | L66: ='12. RTSR - Historical Wholesale'!L65 -> 11214.9096 | M66: 0 | N66: 0 | P66: 5700.538552
D67: 7317.34 | E67: 2.809 | F67: 20554.40806 | H67: 8263.768362 | I67: 0.5083 | J67: 4200.473458 | L67: ='12. RTSR - Historical Wholesale'!L66 -> 8263.768362 | M67: 0 | N67: 0 | P67: 4200.473458
D68: 8076.36 | E68: 2.809 | F68: 22686.49524 | H68: 9501.59887 | I68: 0.5083 | J68: 4829.662706 | L68: ='12. RTSR - Historical Wholesale'!L67 -> 9501.59887 | M68: 0 | N68: 0 | P68: 4829.662706
D69: 8073.41 | E69: 2.809 | F69: 22678.20869 | H69: 9600.259887 | I69: 0.5083 | J69: 4879.812101 | L69: ='12. RTSR - Historical Wholesale'!L68 -> 9600.259887 | M69: 0 | N69: 0 | P69: 4879.812101
D71: =SUM(D58:D69) -> 99432.57 | E71: =IF(D71<>0,F71/D71,0) -> 2.809 | F71: =SUM(F58:F69) -> 279306.0891 | H71: =SUM(H58:H69) -> 122553.9718 | I71: =IF(H71<>0,J71/H71,0) -> 0.5083 | J71: =SUM(J58:J69) -> 62294.18384 | L71: =SUM(L58:L69) -> 122553.9718 | M71: =IF(L71<>0,N71/L71,0) -> 0 | N71: =SUM(N58:N69) -> 0 | P71: =SUM(P58:P69) -> 62294.18384
B73: ='12. RTSR - Historical Wholesale'!B72 -> Add Extra Host Here (II)
D77: ='12. RTSR - Historical Wholesale'!D76 -> 0 | E77: ='11. RTSR - UTRs & Sub-Tx'!J65 -> 0 | F77: =D77*E77 -> 0 | H77: ='12. RTSR - Historical Wholesale'!H76 -> 0 | I77: ='11. RTSR - UTRs & Sub-Tx'!J67 -> 0 | J77: =H77*I77 -> 0 | L77: ='12. RTSR - Historical Wholesale'!L76 -> 0 | M77: ='11. RTSR - UTRs & Sub-Tx'!J69 -> 0 | N77: =L77*M77 -> 0 | P77: =J77+N77 -> 0
D78: ='12. RTSR - Historical Wholesale'!D77 -> 0 | E78: =E77 -> 0 | F78: 0 | H78: ='12. RTSR - Historical Wholesale'!H77 -> 0 | I78: =I77 -> 0 | J78: 0 | L78: ='12. RTSR - Historical Wholesale'!L77 -> 0 | M78: =M77 -> 0 | N78: 0 | P78: 0
D79: ='12. RTSR - Historical Wholesale'!D78 -> 0 | E79: 0 | F79: 0 | H79: ='12. RTSR - Historical Wholesale'!H78 -> 0 | I79: 0 | J79: 0 | L79: ='12. RTSR - Historical Wholesale'!L78 -> 0 | M79: 0 | N79: 0 | P79: 0
D80: ='12. RTSR - Historical Wholesale'!D79 -> 0 | E80: 0 | F80: 0 | H80: ='12. RTSR - Historical Wholesale'!H79 -> 0 | I80: 0 | J80: 0 | L80: ='12. RTSR - Historical Wholesale'!L79 -> 0 | M80: 0 | N80: 0 | P80: 0
D81: ='12. RTSR - Historical Wholesale'!D80 -> 0 | E81: 0 | F81: 0 | H81: ='12. RTSR - Historical Wholesale'!H80 -> 0 | I81: 0 | J81: 0 | L81: ='12. RTSR - Historical Wholesale'!L80 -> 0 | M81: 0 | N81: 0 | P81: 0
D82: ='12. RTSR - Historical Wholesale'!D81 -> 0 | E82: 0 | F82: 0 | H82: ='12. RTSR - Historical Wholesale'!H81 -> 0 | I82: 0 | J82: 0 | L82: ='12. RTSR - Historical Wholesale'!L81 -> 0 | M82: 0 | N82: 0 | P82: 0
D83: ='12. RTSR - Historical Wholesale'!D82 -> 0 | E83: 0 | F83: 0 | H83: ='12. RTSR - Historical Wholesale'!H82 -> 0 | I83: 0 | J83: 0 | L83: ='12. RTSR - Historical Wholesale'!L82 -> 0 | M83: 0 | N83: 0 | P83: 0
D84: ='12. RTSR - Historical Wholesale'!D83 -> 0 | E84: 0 | F84: 0 | H84: ='12. RTSR - Historical Wholesale'!H83 -> 0 | I84: 0 | J84: 0 | L84: ='12. RTSR - Historical Wholesale'!L83 -> 0 | M84: 0 | N84: 0 | P84: 0
D85: ='12. RTSR - Historical Wholesale'!D84 -> 0 | E85: 0 | F85: 0 | H85: ='12. RTSR - Historical Wholesale'!H84 -> 0 | I85: 0 | J85: 0 | L85: ='12. RTSR - Historical Wholesale'!L84 -> 0 | M85: 0 | N85: 0 | P85: 0
D86: ='12. RTSR - Historical Wholesale'!D85 -> 0 | E86: 0 | F86: 0 | H86: ='12. RTSR - Historical Wholesale'!H85 -> 0 | I86: 0 | J86: 0 | L86: ='12. RTSR - Historical Wholesale'!L85 -> 0 | M86: 0 | N86: 0 | P86: 0
D87: ='12. RTSR - Historical Wholesale'!D86 -> 0 | E87: 0 | F87: 0 | H87: ='12. RTSR - Historical Wholesale'!H86 -> 0 | I87: 0 | J87: 0 | L87: ='12. RTSR - Historical Wholesale'!L86 -> 0 | M87: 0 | N87: 0 | P87: 0
D88: ='12. RTSR - Historical Wholesale'!D87 -> 0 | E88: 0 | F88: 0 | H88: ='12. RTSR - Historical Wholesale'!H87 -> 0 | I88: 0 | J88: 0 | L88: ='12. RTSR - Historical Wholesale'!L87 -> 0 | M88: 0 | N88: 0 | P88: 0
D90: =SUM(D77:D88) -> 0 | E90: =IF(D90<>0,F90/D90,0) -> 0 | F90: =SUM(F77:F88) -> 0 | H90: =SUM(H77:H88) -> 0 | I90: =IF(H90<>0,J90/H90,0) -> 0 | J90: =SUM(J77:J88) -> 0 | L90: =SUM(L77:L88) -> 0 | M90: =IF(L90<>0,N90/L90,0) -> 0 | N90: =SUM(N77:N88) -> 0 | P90: =SUM(P77:P88) -> 0
D96: =D20+D39+D58+D77 -> 195127.7876 | E96: =IF(D96<>0,F96/D96,0) -> 3.521582356 | F96: =F20+F39+F58+F77 -> 687158.574 | H96: =H20+H39+H58+H77 -> 199219.476 | I96: =IF(H96<>0,J96/H96,0) -> 0.8326698997 | J96: =J20+J39+J58+J77 -> 165884.0611 | L96: =L20+L39+L58+L77 -> 154020.0821 | M96: =IF(L96<>0,N96/L96,0) -> 1.858649616 | N96: =N20+N39+N58+N77 -> 286269.3664 | P96: =J96+N96 -> 452153.4275
D97: =D21+D40+D59+D78 -> 213521.3414 | E97: 3.505197735 | F97: =F21+F40+F59+F78 -> 748434.5223 | H97: =H21+H40+H59+H78 -> 215811.7841 | I97: 0.8245233363 | J97: =J21+J40+J59+J78 -> 177941.8522 | L97: =L21+L40+L59+L78 -> 171422.1331 | M97: 1.798732999 | N97: =N21+N40+N59+N78 -> 308342.6475 | P97: 486284.4997
D98: 182299.3702 | E98: 3.544847061 | F98: 646223.3867 | H98: 193576.0324 | I98: 0.8303609849 | J98: 160737.9849 | L98: 152420.1316 | M98: 1.831168289 | N98: 279106.9117 | P98: 439844.8966
D99: 158216.2215 | E99: 3.531593544 | F99: 558755.3865 | H99: 161696.7946 | I99: 0.8311473396 | J99: 134393.8607 | L99: 125168.8488 | M99: 1.845800644 | N99: 231036.7417 | P99: 365430.6024
D100: 185113.3703 | E100: 3.557021087 | F100: 658452.1616 | H100: 199584.5411 | I100: 0.8390809493 | J100: 167467.5862 | L100: 151667.0094 | M100: 1.888538349 | N100: 286428.9635 | P100: 453896.5498
D101: 196698.0374 | E101: 3.528561297 | F101: 694061.0819 | H101: 198680.2381 | I101: 0.8329443546 | J101: 165489.5827 | L101: 151183.5681 | M101: 1.855377007 | N101: 280502.5161 | P101: 445992.0988
D102: 251262.8115 | E102: 3.525529408 | F102: 885834.4313 | H102: 240081.4066 | I102: 0.8301348867 | J102: 199299.9512 | L102: 184937.1563 | M102: 1.836626822 | N102: 339660.5417 | P102: 538960.4929
D103: 240959.8423 | E103: 3.534003626 | F103: 851552.9565 | H103: 242193.4139 | I103: 0.8345887032 | J103: 202131.8873 | L103: 182320.9849 | M103: 1.8633107 | N103: 339720.642 | P103: 541852.5292
D104: 233792.0179 | E104: 3.539268551 | F104: 827452.7365 | H104: 244801.8665 | I104: 0.8340339025 | J104: 204173.0561 | L104: 186704.0992 | M104: 1.859823119 | N104: 347236.6 | P104: 551409.6561
D105: 149575.264 | E105: 3.512627626 | F105: 525402.2045 | H105: 157922.1122 | I105: 0.8297609033 | J105: 131037.5944 | L105: 122928.4017 | M105: 1.840899244 | N105: 226298.8017 | P105: 357336.3962
D106: 162854.9807 | E106: 3.512928563 | F106: 572097.9134 | H106: 169668.1052 | I106: 0.828350959 | J106: 140544.7377 | L106: 130434.9169 | M106: 1.829030075 | N106: 238569.3858 | P106: 379114.1235
D107: 163921.7779 | E107: 3.510193161 | F107: 575397.1036 | H107: 177648.6369 | I107: 0.829227003 | J107: 147311.0468 | L107: 136365.0045 | M107: 1.833940914 | N107: 250085.3609 | P107: 397396.4077
D109: =SUM(D96:D107) -> 2333342.823 | E109: =IF(D109<>0,F109/D109,0) -> 3.527480993 | F109: =SUM(F96:F107) -> 8230822.459 | H109: =SUM(H96:H107) -> 2400884.408 | I109: =IF(H109<>0,J109/H109,0) -> 0.8315324115 | J109: =SUM(J96:J107) -> 1996413.201 | L109: =SUM(L96:L107) -> 1849572.337 | M109: =IF(L109<>0,N109/L109,0) -> 1.845431191 | N109: =SUM(N96:N107) -> 3413258.479 | P109: =SUM(P96:P107) -> 5409671.68
P111: ='11. RTSR - UTRs & Sub-Tx'!J74 -> 0
P113: =P109+P111 -> 5409671.68

Sheet 15. RTSR Rates to Forecast
D17: 0.0071 | E17: 444628594.4 | F17: 0 | G17: =IF(ISERROR(D17*E17), 0, ROUND(D17*E17, 2)) -> 3156863.02 | H17: =G17/8394059.74 -> 0.3760829822 | I17: =H17*total_current_wholesale_network -> 3149644.242 | J17: =IF(ISERROR(I17/E17), 0, I17/E17) -> 0.007083764477
D18: 0.0064 | E18: 131807348.7 | F18: 0 | G18: =IF(ISERROR(D18*E18), 0, ROUND(D18*E18, 2)) -> 843567.03 | H18: =G18/8394059.74 -> 0.1004957144 | I18: =H18*total_current_wholesale_network -> 841638.0509 | J18: =IF(ISERROR(I18/E18), 0, I18/E18) -> 0.006385365152
D19: 2.6464 | F19: 1640396 | G19: =IF(ISERROR(D19*F19), 0, ROUND(D19*F19, 2)) -> 4341143.97 | H19: =G19/8394059.74 -> 0.5171685816 | I19: =H19*total_current_wholesale_network -> 4331217.105 | J19: =IF(ISERROR(I19/F19), 0, I19/F19) -> 2.640348492
D20: 0.0064 | E20: 1659208.184 | F20: 0 | G20: =IF(ISERROR(D20*E20), 0, ROUND(D20*E20, 2)) -> 10618.93 | H20: =G20/8394059.74 -> 0.001265052946 | I20: =H20*total_current_wholesale_network -> 10594.64776 | J20: =IF(ISERROR(I20/E20), 0, I20/E20) -> 0.006385363735
D21: 1.9593 | F21: 672 | G21: =IF(ISERROR(D21*F21), 0, ROUND(D21*F21, 2)) -> 1316.65 | H21: =G21/8394059.74 -> 0.0001568549713 | I21: =H21*total_current_wholesale_network -> 1313.639225 | J21: =IF(ISERROR(I21/F21), 0, I21/F21) -> 1.954820276
D22: 2.0005 | F22: 20270 | G22: =IF(ISERROR(D22*F22), 0, ROUND(D22*F22, 2)) -> 40550.14 | H22: =G22/8394059.74 -> 0.004830813844 | I22: =H22*total_current_wholesale_network -> 40457.41427 | J22: =IF(ISERROR(I22/F22), 0, I22/F22) -> 1.995925716
D27: 0.0053 | E27: 444628594.4 | F27: 0 | G27: =IF(ISERROR(D27*E27), 0, ROUND(D27*E27, 2)) -> 2356531.55 | H27: =G27/6048312.26 -> 0.389618037 | I27: =H27*Total_Current_Wholesale_Lineplus -> 2184513.274 | J27: =IF(ISERROR(I27/E27), 0, I27/E27) -> 0.004913119177
D28: 0.0046 | E28: 131807348.7 | F28: 0 | G28: =IF(ISERROR(D28*E28), 0, ROUND(D28*E28, 2)) -> 606313.8 | H28: =G28/6048312.26 -> 0.1002451219 | I28: =H28*Total_Current_Wholesale_Lineplus -> 562055.0865 | J28: =IF(ISERROR(I28/E28), 0, I28/E28) -> 0.004264216617
D29: 1.858 | F29: 1640396 | G29: =IF(ISERROR(D29*F29), 0, ROUND(D29*F29, 2)) -> 3047855.77 | H29: =G29/6048312.26 -> 0.503918389 | I29: =H29*Total_Current_Wholesale_Lineplus -> 2825373.327 | J29: =IF(ISERROR(I29/F29), 0, I29/F29) -> 1.722372724
D30: 0.0046 | E30: 1659208.184 | F30: 0 | G30: =IF(ISERROR(D30*E30), 0, ROUND(D30*E30, 2)) -> 7632.36 | H30: =G30/6048312.26 -> 0.001261899133 | I30: =H30*Total_Current_Wholesale_Lineplus -> 7075.225337 | J30: =IF(ISERROR(I30/E30), 0, I30/E30) -> 0.004264217961
D31: 1.5526 | F31: 672 | G31: =IF(ISERROR(D31*F31), 0, ROUND(D31*F31, 2)) -> 1043.35 | H31: =G31/6048312.26 -> 0.0001725026677 | I31: =H31*Total_Current_Wholesale_Lineplus -> 967.1892252 | J31: =IF(ISERROR(I31/F31), 0, I31/F31) -> 1.43926968
D32: 1.4275 | F32: 20270 | G32: =IF(ISERROR(D32*F32), 0, ROUND(D32*F32, 2)) -> 28935.43 | H32: =G32/6048312.26 -> 0.004784050286 | I32: =H32*Total_Current_Wholesale_Lineplus -> 26823.24831 | J32: =IF(ISERROR(I32/F32), 0, I32/F32) -> 1.323297894
D37: 0.007083764477 | E37: 444628594.4 | F37: 0 | G37: =IF(ISERROR(D37*E37), 0, ROUND(D37*E37, 2)) -> 3149644.24 | H37: =G37/8374865.1 -> 0.3760829819 | I37: =H37*forecast_wholesale_network -> 3095472.254 | J37: =IF(ISERROR(I37/E37), 0, I37/E37) -> 0.006961927985
D38: 0.006385365152 | E38: 131807348.7 | F38: 0 | G38: =IF(ISERROR(D38*E38), 0, ROUND(D38*E38, 2)) -> 841638.05 | H38: =G38/8374865.1 -> 0.1004957143 | I38: =H38*forecast_wholesale_network -> 827162.3819 | J38: =IF(ISERROR(I38/E38), 0, I38/E38) -> 0.006275540706
D39: 2.640348492 | F39: 1640396 | G39: =IF(ISERROR(D39*F39), 0, ROUND(D39*F39, 2)) -> 4331217.11 | H39: =G39/8374865.1 -> 0.5171685822 | I39: =H39*forecast_wholesale_network -> 4256722.781 | J39: =IF(ISERROR(I39/F39), 0, I39/F39) -> 2.59493609
D40: 0.006385363735 | E40: 1659208.184 | F40: 0 | G40: =IF(ISERROR(D40*E40), 0, ROUND(D40*E40, 2)) -> 10594.65 | H40: =G40/8374865.1 -> 0.001265053213 | I40: =H40*forecast_wholesale_network -> 10412.42839 | J40: =IF(ISERROR(I40/E40), 0, I40/E40) -> 0.006275540645
D41: 1.954820276 | F41: 672 | G41: =IF(ISERROR(D41*F41), 0, ROUND(D41*F41, 2)) -> 1313.64 | H41: =G41/8374865.1 -> 0.0001568550639 | I41: =H41*forecast_wholesale_network -> 1291.046182 | J41: =IF(ISERROR(I41/F41), 0, I41/F41) -> 1.921199676
D42: 1.995925716 | F42: 20270 | G42: =IF(ISERROR(D42*F42), 0, ROUND(D42*F42, 2)) -> 40457.41 | H42: =G42/8374865.1 -> 0.004830813335 | I42: =H42*forecast_wholesale_network -> 39761.56689 | J42: =IF(ISERROR(I42/F42), 0, I42/F42) -> 1.961596788
D47: 0.004913119177 | E47: 444628594.4 | F47: 0 | G47: =IF(ISERROR(D47*E47), 0, ROUND(D47*E47, 2)) -> 2184513.27 | H47: =G47/5606807.36 -> 0.3896180357 | I47: =H47*forecast_wholesale_lineplus -> 2107705.654 | J47: =IF(ISERROR(I47/E47), 0, I47/E47) -> 0.004740373607
D48: 0.004264216617 | E48: 131807348.7 | F48: 0 | G48: =IF(ISERROR(D48*E48), 0, ROUND(D48*E48, 2)) -> 562055.09 | H48: =G48/5606807.36 -> 0.1002451224 | I48: =H48*forecast_wholesale_lineplus -> 542293.1997 | J48: =IF(ISERROR(I48/E48), 0, I48/E48) -> 0.004114286534
D49: 1.722372724 | F49: 1640396 | G49: =IF(ISERROR(D49*F49), 0, ROUND(D49*F49, 2)) -> 2825373.33 | H49: =G49/5606807.36 -> 0.5039183886 | I49: =H49*forecast_wholesale_lineplus -> 2726033.036 | J49: =IF(ISERROR(I49/F49), 0, I49/F49) -> 1.661813999
D50: 0.004264217961 | E50: 1659208.184 | F50: 0 | G50: =IF(ISERROR(D50*E50), 0, ROUND(D50*E50, 2)) -> 7075.23 | H50: =G50/5606807.36 -> 0.001261899963 | I50: =H50*forecast_wholesale_lineplus -> 6826.464493 | J50: =IF(ISERROR(I50/E50), 0, I50/E50) -> 0.004114290516
D51: 1.43926968 | F51: 672 | G51: =IF(ISERROR(D51*F51), 0, ROUND(D51*F51, 2)) -> 967.19 | H51: =G51/5606807.36 -> 0.0001725028056 | I51: =H51*forecast_wholesale_lineplus -> 933.1835422 | J51: =IF(ISERROR(I51/F51), 0, I51/F51) -> 1.388665985
D52: 1.323297894 | F52: 20270 | G52: =IF(ISERROR(D52*F52), 0, ROUND(D52*F52, 2)) -> 26823.25 | H52: =G52/5606807.36 -> 0.00478405058 | I52: =H52*forecast_wholesale_lineplus -> 25880.14294 | J52: =IF(ISERROR(I52/F52), 0, I52/F52) -> 1.276770742

Sheet 16. Rev2Cost_GDPIPI
Y1: FALSE | Z1: 0
Y2: TRUE
B8: 0
B9: 0
B10: 0
B12: 0.019 | D12: 0 | F12: 47066.56337 | H12: 2016
D13: =B12-D12-B14 -> 0.016 | F13: 407092792.3 | H13: 4
B14: =IF(B13="I", 0%, IF(B13="II", 0.15%, IF(B13="III", 0.3%, IF(B13="IV", 0.45%, 0.6%)))) -> 0.003 | F14: 3
B17: 21.94 | D17: 0.0139 | F17: =D13 -> 0.016 | G17: =H26*(1+D13) -> 25.68448 | H17: =H27*(1+D13) -> 0.0094488
B18: 38.05 | D18: 0.0139 | F18: =D13 -> 0.016 | G18: =(B18+C18)*(1+D13) -> 38.6588 | H18: =(D18+E18)*(1+D13) -> 0.0141224
B19: 103.43 | D19: 3.3809 | F19: =D13 -> 0.016 | G19: =(B19+C19)*(1+D13) -> 105.08488 | H19: =(D19+E19)*(1+D13) -> 3.4349944
B20: 19.65 | D20: 0.0137 | F20: =D13 -> 0.016 | G20: =(B20+C20)*(1+D13) -> 19.9644 | H20: =(D20+E20)*(1+D13) -> 0.0139192
B21: 17.09 | D21: 21.3249 | F21: =D13 -> 0.016 | G21: =(B21+C21)*(1+D13) -> 17.36344 | H21: =(D21+E21)*(1+D13) -> 21.6660984
B22: 1.21 | D22: 4.7185 | F22: =D13 -> 0.016 | G22: =(B22+C22)*(1+D13) -> 1.22936 | H22: =(D22+E22)*(1+D13) -> 4.793996
B23: 5.4 | G23: =B23 -> 5.4
B26: =B17+C17 -> 21.94 | C26: =B26*COS_RES_CUSTOMERS*12 -> 12391684.8 | D26: =IF(ISERROR(C26/C28), 0, C26/C28) -> 0.686509489 | E26: =IF(ISERROR((1-D26)/YRS_LEFT), 0, (1-D26)/YRS_LEFT) -> 0.104496837 | F26: =IF(ISERROR(ROUND(E26*C28/COS_RES_CUSTOMERS/12, 2)), 0, ROUND(E26*C28/COS_RES_CUSTOMERS/12, 2)) -> 3.34 | G26: =E26+D26 -> 0.791006326 | H26: =IF(ISERROR(ROUND(G26*C28/COS_RES_CUSTOMERS/12, 2)), 0, ROUND(G26*C28/COS_RES_CUSTOMERS/12, 2)) -> 25.28 | I26: =ROUND(H26*COS_RES_CUSTOMERS*12, 2) -> 14278112.66
B27: =D17+E17 -> 0.0139 | C27: =B27*COS_RES_KWH -> 5658589.814 | D27: =IF(ISERROR(C27/C28), 0, C27/C28) -> 0.313490511 | G27: =1-G26 -> 0.208993674 | H27: =IF(ISERROR(ROUND(G27*C28/COS_RES_KWH, 4)), 0, ROUND(G27*C28/COS_RES_KWH, 4)) -> 0.0093 | I27: =ROUND(H27*COS_RES_KWH, 2) -> 3785962.97
C28: =SUM(C26+C27) -> 18050274.62 | I28: =SUM(I26+I27) -> 18064075.63
A31: =IF((H26-B26)>=4, "The Rate Design Transition has calculated a monthly fixed charge greater than or equal to $4. Please refer to Section 3.2.3 of the Chapter 3 Filing Requirements for mitigation instructions.", "") -> 

Sheet 17. Regulatory Charges
D14: 0.0036
D15: 0.0021
D16: 0.25
D17: 0

Sheet 18. Additional Rates
AA1: 3

Sheet 19. Final Tariff Schedule
J1: 8
E22: 25.68448
E23: 0.79 | Q23: 43404
E24: 0.0094488
E25: 0.0002
E26: 0.0005
E27: 0.007
E28: 0.0047
E32: 0.0036
E33: 0.0021
E34: 0
E35: 0.25
E50: -30
E54: -34
E58: -38
E62: -42
E66: -45
E71: -50
E75: -55
E79: -60
E83: -75
E99: 38.6588
E100: 0.79 | Q100: 43404
E101: 0.0141224
E102: 0.0012
E103: 0.0004
E104: 0.0063
E105: 0.0041
E109: 0.0036
E110: 0.0021
E111: 0
E112: 0.25
E128: 105.08488
E129: 3.4349944
E130: 0.16
E131: 0.1612
E132: 2.5949
E133: 1.6618
E137: 0.0036
E138: 0.0021
E139: 0
E140: 0.25
E156: 19.9644
E157: 0.0139192
E158: 0.0004
E159: 0.0063
E160: 0.0041
E164: 0.0036
E165: 0.0021
E166: 0
E167: 0.25
E183: 17.36344
E184: 21.6660984
E185: 0.1347
E186: 1.9212
E187: 1.3887
E191: 0.0036
E192: 0.0021
E193: 0
E194: 0.25
E210: 1.22936
E211: 4.793996
E212: 0.1239
E213: 1.9616
E214: 1.2768
E218: 0.0036
E219: 0.0021
E220: 0
E221: 0.25
E237: 5.4
E240: -0.6
E241: -1
E253: 20
E254: 15
E255: 30
E256: 30
E259: 1.5
E260: 19.56
E261: 30
E262: 165
E263: 65
E264: 185
E265: 185
E266: 415
E267: 65
E268: 185
E271: 30
E272: 165
E273: 500
E274: 300
E275: 1000
E276: 22.35
E293: 100
E294: 20
E295: 0.5
E296: 0.3
E297: -0.3
E299: 0.25
E300: 0.5
E305: 2
E310: 1.0479
E311: 1.0374

Sheet 20. Bill Impacts

Sheet 212_Total_Connection_RollUp (hidden)

Sheet 2.1.7 Filing (hidden)

Sheet 20. HIDDEN (hidden)
O2: =FIND("RESIDENTIAL", E2) -> 
A12: =$E2 -> 0 | G12: 1 | H12: =G12*F12 -> 0 | J12: =G12 -> 1 | K12: =J12*I12 -> 0 | L12: =K12-H12 -> 0 | M12: =IF(ISERROR(L12/H12), "", L12/H12) -> 
A13: =A12 -> 0 | G13: =IF($E5>0, $E5, $E4) -> 0 | H13: =G13*F13 -> 0 | J13: =IF($E5>0, $E5, $E4) -> 0 | K13: =J13*I13 -> 0 | L13: 0 | M13: =IF(ISERROR(L13/H13), "", L13/H13) -> 
A14: =A13 -> 0 | G14: 1 | H14: 0 | J14: =G14 -> 1 | K14: =J14*I14 -> 0 | L14: 0
A15: 0 | G15: =IF($E5>0, $E5, $E4) -> 0 | H15: 0 | J15: =IF($E5>0, $E5, $E4) -> 0 | K15: 0 | L15: 0
A16: 0 | H16: =SUM(H12:H15) -> 0 | K16: =SUM(K12:K15) -> 0 | L16: 0 | M16: =IF((H16)=0,"",(L16/H16)) -> 
A17: 0 | F17: =IF((E4*12>=150000), 0, IF(E3="RPP",(F31*0.65+F32*0.17+F33*0.18),IF(E3="Non-RPP (Retailer)",F34,F35))) -> 0.113 | G17: =IF(F17=0, 0, $E4*E6-E4) -> 0 | H17: =G17*F17 -> 0 | I17: =IF((E4*12>=150000), 0, IF(E3="RPP",(I31*0.65+I32*0.17+I33*0.18),IF(E3="Non-RPP (Retailer)",I34,I35))) -> 0.113 | J17: =IF(I17=0, 0, E4*E7-E4) -> 0 | K17: =J17*I17 -> 0 | L17: =K17-H17 -> 0 | M17: =IF(ISERROR(L17/H17), "", L17/H17) -> 
A18: 0 | G18: =IF($E5>0, $E5, $E4) -> 0 | H18: 0 | J18: =IF($E5>0, $E5, $E4) -> 0 | K18: 0 | L18: 0
A19: 0 | J19: =E4 -> 0 | K19: 0 | L19: 0
A20: 0 | G20: =IF($E5>0, $E5, $E4) -> 0 | H20: 0 | J20: =IF($E5>0, $E5, $E4) -> 0 | K20: 0 | L20: 0
A21: 0 | F21: =IF(OR(ISNUMBER(SEARCH("RESIDENTIAL", E2))=TRUE, ISNUMBER(SEARCH("GENERAL SERVICE LESS THAN 50", E2))=TRUE), 0.79, 0) -> 0 | G21: 1 | H21: =G21*F21 -> 0 | I21: =IF(OR(ISNUMBER(SEARCH("RESIDENTIAL", E2))=TRUE, ISNUMBER(SEARCH("GENERAL SERVICE LESS THAN 50", E2))=TRUE), 0.79, 0) -> 0 | J21: 1 | K21: =J21*I21 -> 0 | L21: =K21-H21 -> 0 | M21: =IF(ISERROR(L21/H21), "", L21/H21) -> 
A22: 0 | H22: =SUM(H16:H21) -> 0 | K22: =SUM(K16:K21) -> 0 | L22: 0 | M22: =IF((H22)=0,"",(L22/H22)) -> 
A23: 0 | G23: =IF($E5>0, $E5, $E4*$E6) -> 0 | H23: =G23*F23 -> 0 | J23: =IF($E5>0, $E5, $E4*$E7) -> 0 | K23: =J23*I23 -> 0 | L23: 0 | M23: =IF(ISERROR(L23/H23), "", L23/H23) -> 
A24: 0 | G24: =IF($E5>0, $E5, $E4*$E6) -> 0 | H24: =G24*F24 -> 0 | J24: =IF($E5>0, $E5, $E4*$E7) -> 0 | K24: =J24*I24 -> 0 | L24: 0 | M24: =IF(ISERROR(L24/H24), "", L24/H24) -> 
A25: 0 | H25: =SUM(H22:H24) -> 0 | K25: =SUM(K22:K24) -> 0 | L25: 0 | M25: =IF((H25)=0,"",(L25/H25)) -> 
A26: 0 | G26: =E4*E6 -> 0 | H26: =G26*F26 -> 0 | I26: ='17. Regulatory Charges'!$D$14 -> 0.0036 | J26: =E4*E7 -> 0 | K26: =J26*I26 -> 0 | L26: 0 | M26: =IF(ISERROR(L26/H26), "", L26/H26) -> 
A27: 0 | G27: =E4*E6 -> 0 | H27: 0 | I27: ='17. Regulatory Charges'!$D$15 -> 0.0021 | J27: =E4*E7 -> 0 | K27: 0 | L27: 0
A28: 0 | G28: 1 | H28: 0 | I28: ='17. Regulatory Charges'!$D$16 -> 0.25 | J28: 1 | K28: 0.25 | L28: 0.25
A29: 0 | F29: =IF('1. Information Sheet'!F26 = DATE(2016, 5, 1), (IF(ISERROR(FIND("RESIDENTIAL", UPPER(E2))), 0.007, 0)), 0.007) -> 0.007 | G29: =E4 -> 0 | H29: 0 | I29: =IF(ISERROR(FIND("RESIDENTIAL", UPPER(E2))), 0.007, 0) -> 0.007 | J29: =E4 -> 0 | K29: 0 | L29: 0
A30: 0 | F30: 0.0011 | G30: =E4*E7 -> 0 | H30: 0 | I30: =IF('17. Regulatory Charges'!$D$17= "N/A", 0, '17. Regulatory Charges'!$D$17) -> 0 | J30: =E4*E7 -> 0 | K30: =J30*I30 -> 0 | L30: =K30-H30 -> 0
A31: 0 | F31: 0.087 | G31: =IF(AND(E4*12>=150000),0.65*E4*E6,0.65*E4) -> 0 | H31: 0 | I31: 0.087 | J31: =IF(AND(E4*12>=150000),0.65*E4*E7,0.65*E4) -> 0 | K31: 0 | L31: 0
A32: 0 | F32: 0.132 | G32: =IF(AND(E4*12>=150000),0.17*E4*E6,0.17*E4) -> 0 | H32: 0 | I32: 0.132 | J32: =IF(AND(E4*12>=150000),0.17*E4*E7,0.17*E4) -> 0 | K32: 0 | L32: 0
A33: 0 | F33: 0.18 | G33: =IF(AND(E4*12>=150000),0.18*E4*E6,0.18*E4) -> 0 | H33: 0 | I33: 0.18 | J33: =IF(AND(E4*12>=150000),0.18*E4*E7,0.18*E4) -> 0 | K33: 0 | L33: 0
A34: 0 | F34: =0.113 -> 0.113 | G34: =IF(AND(E4*12>=150000),E4*E6,E4) -> 0 | H34: =G34*F34 -> 0 | I34: =F34 -> 0.113 | J34: =IF(AND(E4*12>=150000),E4*E7,E4) -> 0 | K34: =J34*I34 -> 0 | L34: 0
A35: 0 | F35: =0.113 -> 0.113 | G35: =IF(AND(E4*12>=150000),E4*E6,E4) -> 0 | H35: =G35*F35 -> 0 | I35: =F35 -> 0.113 | J35: =IF(AND(E4*12>=150000),E4*E7,E4) -> 0 | K35: =J35*I35 -> 0 | L35: 0
A36: 0
A37: 0 | H37: =SUM(H26:H33,H25) -> 0 | K37: =SUM(K26:K33,K25) -> 0.25 | L37: =K37-H37 -> 0.25 | M37: =IF((H37)=0,"",(L37/H37)) -> 
A38: 0 | F38: 0.13 | H38: =H37*F38 -> 0 | I38: 0.13 | K38: =K37*I38 -> 0.0325 | L38: =K38-H38 -> 0.0325 | M38: =IF((H38)=0,"",(L38/H38)) -> 
A39: 0 | H39: =SUM(H37,H38) -> 0 | K39: =K37+K38 -> 0.2825 | L39: =K39-H39 -> 0.2825 | M39: =IF((H39)=0,"",(L39/H39)) -> 
A40: 0
A41: 0 | H41: =SUM(H34,H26:H30,H25) -> 0 | K41: =SUM(K34,K26:K30,K25) -> 0.25 | L41: =K41-H41 -> 0.25 | M41: =IF((H41)=0,"",(L41/H41)) -> 
A42: 0 | F42: 0.13 | H42: =H41*F42 -> 0 | I42: 0.13 | K42: =K41*I42 -> 0.0325 | L42: =K42-H42 -> 0.0325 | M42: =IF((H42)=0,"",(L42/H42)) -> 
A43: 0 | H43: =SUM(H41,H42) -> 0 | K43: =SUM(K41,K42) -> 0.2825 | L43: =K43-H43 -> 0.2825 | M43: =IF((H43)=0,"",(L43/H43)) -> 
A44: 0
A45: 0 | H45: =SUM(H35,H26:H30,H25) -> 0 | K45: =SUM(K35,K26:K30,K25) -> 0.25 | L45: =K45-H45 -> 0.25 | M45: =IF((H45)=0,"",(L45/H45)) -> 
A46: 0 | F46: 0.13 | H46: =H45*F46 -> 0 | I46: 0.13 | K46: =K45*I46 -> 0.0325 | L46: =K46-H46 -> 0.0325 | M46: =IF((H46)=0,"",(L46/H46)) -> 
A47: 0 | H47: =SUM(H45,H46) -> 0 | K47: =SUM(K45,K46) -> 0.2825 | L47: =K47-H47 -> 0.2825 | M47: =IF((H47)=0,"",(L47/H47)) -> 
A48: 0

Sheet 20. Bill Impacts hidden (hidden)
E4: 800
E6: 1.05
A12: =$E2 -> 0
A13: =A12 -> 0
A14: =A13 -> 0
A15: 0 | F15: 1 | G15: =F15*E15 -> 0 | J15: =I15*H15 -> 0 | K15: =J15-G15 -> 0 | L15: =IF(ISERROR(K15/G15), "", K15/G15) -> 
A16: 0 | F16: =IF($E5>0, $E5, $E4) -> 800 | G16: =F16*E16 -> 0 | I16: =IF($E5>0, $E5, $E4) -> 800 | J16: =I16*H16 -> 0 | K16: =J16-G16 -> 0 | L16: =IF(ISERROR(K16/G16), "", K16/G16) -> 
A17: 0 | F17: 1 | G17: =F17*E17 -> 0 | J17: =I17*H17 -> 0 | K17: 0
A18: 0 | F18: =F16 -> 800 | G18: =F18*E18 -> 0 | I18: =I16 -> 800 | J18: =I18*H18 -> 0 | K18: 0
A19: 0 | G19: =SUM(G15:G18) -> 0 | J19: =SUM(J15:J18) -> 0 | K19: =SUM(K15:K18) -> 0
A20: 0 | E20: =IF(E3="RPP",(E32*0.64+E33*0.18+E34*0.18),IF(E3="Non-RPP (Retailer)",E35,E36)) -> 0.0906 | F20: =$E4*($E6) - ($E4) -> 40 | G20: =F20*E20 -> 3.624 | H20: =IF(E3="RPP",(H32*0.64+H33*0.18+H34*0.18),IF(E3="Non-RPP (Retailer)",H35,H36)) -> 0.0906 | I20: =$E4*($E6) - ($E4) -> 40 | J20: =I20*H20 -> 3.624 | K20: 0 | L20: 0
A21: 0 | F21: =F16 -> 800 | G21: =F21*E21 -> 0 | I21: =I16 -> 800 | J21: =I21*H21 -> 0 | K21: 0
A22: 0 | F22: =F16 -> 800 | G22: =F22*E22 -> 0 | I22: =I16 -> 800 | J22: =I22*H22 -> 0 | K22: 0
A23: 0 | F23: 1 | G23: =F23*E23 -> 0 | I23: 1 | J23: =I23*H23 -> 0 | K23: 0
A24: 0 | G24: =SUM(G19:G23) -> 3.624 | J24: =SUM(J19:J23) -> 3.624 | K24: =SUM(K19:K23) -> 0
A25: 0 | F25: =IF($E5>0, $E5, $E4*$E6) -> 840 | G25: =F25*E25 -> 0 | I25: =IF($E5>0, $E5, $E4*$E6) -> 840 | J25: =I25*H25 -> 0 | K25: 0
A26: 0 | F26: =IF($E5>0, $E5, $E4*$E6) -> 840 | G26: =F26*E26 -> 0 | I26: =IF($E5>0, $E5, $E4*$E6) -> 840 | J26: =I26*H26 -> 0 | K26: 0
A27: 0 | G27: =SUM(G24:G26) -> 3.624 | J27: =SUM(J24:J26) -> 3.624 | K27: =SUM(K24:K26) -> 0
A28: 0 | F28: =IF($E5>0, $E5, $E4*$E6) -> 840 | I28: =IF($E5>0, $E5, $E4*$E6) -> 840 | K28: 0
A29: 0 | F29: =IF($E5>0, $E5, $E4*$E6) -> 840 | I29: =IF($E5>0, $E5, $E4*$E6) -> 840 | K29: 0
A30: 0 | F30: 1 | I30: 1 | K30: 0
A31: 0 | F31: =IF($E5>0, $E5, $E4) -> 800 | I31: =IF($E5>0, $E5, $E4) -> 800 | K31: 0
A32: 0 | E32: 0.08 | F32: =0.64*$E4 -> 512 | G32: =F32*E32 -> 40.96 | H32: 0.08 | I32: =0.64*$E4 -> 512 | J32: =I32*H32 -> 40.96 | K32: 0 | L32: 0
A33: 0 | E33: 0.122 | F33: =0.18*$E4 -> 144 | G33: =F33*E33 -> 17.568 | H33: 0.122 | I33: =0.18*$E4 -> 144 | J33: =I33*H33 -> 17.568 | K33: 0 | L33: 0
A34: 0 | E34: 0.161 | F34: =0.18*$E4 -> 144 | G34: =F34*E34 -> 23.184 | H34: 0.161 | I34: =0.18*$E4 -> 144 | J34: =I34*H34 -> 23.184 | K34: 0 | L34: 0
A35: 0 | E35: 0.086 | F35: =$E4 -> 800 | G35: =F35*E35 -> 68.8 | H35: 0.086 | I35: =$E4 -> 800 | J35: =I35*H35 -> 68.8 | K35: 0 | L35: 0
A36: 0 | E36: =0.0906 -> 0.0906 | F36: =$E4 -> 800 | G36: =F36*E36 -> 72.48 | H36: =0.0906 -> 0.0906 | I36: =$E4 -> 800 | J36: =I36*H36 -> 72.48 | K36: 0 | L36: 0
A37: 0
A38: 0 | G38: =SUM(G27:G34) -> 85.336 | J38: =SUM(J27:J34) -> 85.336 | K38: 0 | L38: 0
A39: 0 | E39: 0.13 | G39: =E39*G38 -> 11.09368 | H39: 0.13 | J39: =H39*J38 -> 11.09368 | K39: 0 | L39: 0
A40: 0 | G40: =SUM(G38:G39) -> 96.42968 | J40: =SUM(J38:J39) -> 96.42968 | K40: 0 | L40: 0
A41: =#REF! ->  | G41: =SUM(G40:G40) -> 96.42968 | J41: =SUM(J40:J40) -> 96.42968 | K41: 0 | L41: 0
G43: =SUM(G27:G31,G35) -> 72.424 | J43: =SUM(J27:J31,J35) -> 72.424 | K43: 0 | L43: 0
E44: 0.13 | G44: =E44*G43 -> 9.41512 | H44: 0.13 | J44: =H44*J43 -> 9.41512 | K44: 0 | L44: 0
G45: =SUM(G43:G44) -> 81.83912 | J45: =SUM(J43:J44) -> 81.83912 | K45: 0 | L45: 0
A46: =#REF! ->  | G46: =SUM(G45:G45) -> 81.83912 | J46: =SUM(J45:J45) -> 81.83912 | K46: 0 | L46: 0
G48: =SUM(G27:G31,G36) -> 76.104 | J48: =SUM(J27:J31,J36) -> 76.104 | K48: 0 | L48: 0
E49: 0.13 | G49: =E49*G48 -> 9.89352 | H49: 0.13 | J49: =H49*J48 -> 9.89352 | K49: 0 | L49: 0
G50: =SUM(G48:G49) -> 85.99752 | J50: =SUM(J48:J49) -> 85.99752 | K50: 0 | L50: 0
A51: =#REF! ->  | G51: =SUM(G50:G50) -> 85.99752 | J51: =SUM(J50:J50) -> 85.99752 | K51: 0 | L51: 0

Sheet 2016 Database (hidden)
M2: 6 | V2: 17
V3: 27
S4: 42370 | V4: 49
V5: 52
V6: 53
V7: 12
V8: 39
V9: 591
V10: 250
V11: 11
V12: 280
V13: 411
V14: 387
V15: 275
V16: 46
H17: 51.52 | V17: 47
H18: 0.79 | T18: 43404 | V18: 78
H19: 0.0288 | V19: 88
H20: 0.0334 | V20: 89
H21: -0.0019 | T21: 43830 | V21: 86
H22: 0.007 | V22: 47
H23: 0.0051 | V23: 74
V24: 48
H25: 0.0036 | V25: 30
H26: 0.0013 | V26: 57
H27: 0.0011 | V27: 49
H28: 0.25 | V28: 64
V29: 39
V30: 276
V31: 11
V32: 280
V33: 411
V34: 387
V35: 275
V36: 46
H37: 611.64 | V37: 15
H38: 3.1691 | V38: 29
H39: -0.801 | T39: 43830 | V39: 86
H40: 2.6924 | V40: 48
H41: 1.9084 | V41: 75
V42: 48
H43: 0.0036 | V43: 30
H44: 0.0013 | V44: 57
H45: 0.0011 | V45: 49
H46: 0.25 | V46: 64
V47: 46
V48: 158
V49: 11
V50: 152
V51: 270
V52: 933
V53: 25
V54: 8
V55: 107
V56: 114
V57: 114
V58: 122
V59: 48
H60: -30 | V60: 12
V61: 8
V62: 102
V63: 113
V64: 113
V65: 48
H66: -34 | V66: 12
V67: 8
V68: 101
V69: 113
V70: 123
V71: 48
H72: -38 | V72: 12
V73: 8
V74: 101
V75: 112
V76: 48
H77: -42 | V77: 12
V78: 8
V79: 101
V80: 46
V81: 82
V82: 99
V83: 109
V84: 85
H85: -45 | V85: 12
V86: 8
V87: 108
V88: 106
V89: 19
V90: 105
V91: 28
V92: 80
V93: 98
V94: 110
V95: 85
H96: -50 | V96: 12
V97: 8
V98: 101
V99: 46
V100: 82
V101: 99
V102: 109
V103: 85
H104: -55 | V104: 12
V105: 8
V106: 101
V107: 46
V108: 82
V109: 99
V110: 109
V111: 85
H112: -60 | V112: 12
V113: 8
V114: 93
V115: 79
V116: 82
V117: 99
V118: 109
V119: 85
H120: -75 | V120: 12
V121: 41
V122: 345
V123: 11
V124: 280
V125: 411
V126: 387
V127: 275
V128: 46
H129: 34.27 | V129: 15
H130: 0.79 | T130: 43404 | V130: 78
H131: 3.57 | T131: 42735 | V131: 91
H132: 0.1435 | V132: 29
H133: 0.0307 | T133: 43646 | V133: 74
H134: -0.0019 | T134: 43830 | V134: 86
H135: 0.007 | V135: 48
H136: 0.0051 | V136: 75
V137: 48
H138: 0.0036 | V138: 30
H139: 0.0013 | V139: 57
H140: 0.0011 | V140: 49
H141: 0.25 | V141: 64
V142: 38
V143: 361
V144: 11
V145: 280
V146: 411
V147: 387
V148: 275
V149: 46
H150: 1.34 | V150: 31
H151: 0.2164 | V151: 29
H152: -0.0019 | T152: 43830 | V152: 86
H153: 1.9496 | V153: 48
H154: 1.3767 | V154: 75
V155: 48
H156: 0.0036 | V156: 30
H157: 0.0013 | V157: 57
H158: 0.0011 | V158: 49
H159: 0.25 | V159: 64
V160: 31
V161: 286
V162: 11
V163: 280
V164: 411
V165: 211
V166: 275
V167: 47
H168: 5.4 | V168: 15
V169: 10
H170: -0.6 | V170: 69
H171: -1 | V171: 90
V172: 24
V173: 11
V174: 280
V175: 353
V176: 275
V177: 23
H178: 15 | V178: 39
H179: 15 | V179: 21
H180: 15 | V180: 27
H181: 15 | V181: 40
H182: 15 | V182: 38
H183: 15 | V183: 16
H184: 15 | V184: 18
H185: 15 | V185: 20
H186: 15 | V186: 16
H187: 15 | V187: 57
H188: 30 | V188: 90
H189: 15 | V189: 43
H190: 15 | V190: 26
H191: 15 | V191: 20
H192: 30 | V192: 20
H193: 30 | V193: 75
V194: 22
H195: 1.5 | V195: 25
H196: 19.56 | V196: 25
H197: 30 | V197: 80
H198: 165 | V198: 70
H199: 65 | V199: 61
H200: 185 | V200: 60
H201: 185 | V201: 60
... 4299 more rows

Sheet lists (hidden)
C1: =COUNTA(B1:B17) -> 4
AW2: =AU2*AV2 -> 0 | AX2: =AU2 -> 0 | AY2: 0 | AZ2: =AX2*AY2 -> 0 | BB2: =AZ2-AW2 -> 0 | BC2: =BB2/AW2 -> 
AW3: =AU3*AV3 -> 0 | AX3: 0 | AY3: 0 | AZ3: =AX3*AY3 -> 0 | BB3: =AZ3-AW3 -> 0 | BC3: =BB3/AW3 -> 
AW4: =AU4*AV4 -> 0 | AX4: 0 | AY4: 0 | AZ4: =AX4*AY4 -> 0 | BB4: =AZ4-AW4 -> 0 | BC4: =BB4/AW4 -> 
AW5: =SUM(AW2:AW4) -> 0 | AZ5: =SUM(AZ2:BA4) -> 0 | BB5: =AZ5-AW5 -> 0 | BC5: =BB5/AW5 -> 
AW6: =AU6*AV6 -> 0 | AX6: =AU6 -> 0 | AY6: =AV6 -> 0 | AZ6: =AX6*AY6 -> 0 | BB6: =AZ6-AW6 -> 0 | BC6: =BB6/AW6 -> 
BB8: =AZ8-AW8 -> 0
AW9: =AV9*AW8 -> 0 | AY9: =AV9 -> 0 | AZ9: =AY9*AZ8 -> 0 | BB9: =AZ9-AW9 -> 0 | BC9: =BB9/AW9 -> 
AW10: =AW9+AW8 -> 0 | AZ10: =AZ9+AZ8 -> 0 | BB10: =AZ10-AW10 -> 0 | BC10: =BB10/AW10 -> 
AW11: =-0.1*AW10 -> 0 | AY11: =AV11 -> 0 | AZ11: =-0.1*AZ10 -> 0 | BB11: =AZ11-AW11 -> 0 | BC11: =BB11/AW11 -> 
AW12: =AW10+AW11 -> 0 | AZ12: =AZ10+AZ11 -> 0 | BB12: =AZ12-AW12 -> 0 | BC12: =BB12/AW12 -> 
BB14: =AZ14-AW14 -> 0
AW15: =AV15*AW14 -> 0 | AY15: =AV15 -> 0 | AZ15: =AY15*AZ14 -> 0 | BB15: =AZ15-AW15 -> 0 | BC15: =BB15/AW15 -> 
AW16: =AW15+AW14 -> 0 | AZ16: =AZ15+AZ14 -> 0 | BB16: =AZ16-AW16 -> 0 | BC16: =BB16/AW16 -> 
AW17: =-0.1*AW16 -> 0 | AY17: =AV17 -> 0 | AZ17: =-0.1*AZ16 -> 0 | BB17: =AZ17-AW17 -> 0 | BC17: =BB17/AW17 -> 
AW18: =AW16+AW17 -> 0 | AZ18: =AZ16+AZ17 -> 0 | BB18: =AZ18-AW18 -> 0 | BC18: =BB18/AW18 -> 

Sheet Sheet2 (hidden)
N1: =VLOOKUP(H1,A:A,1,0) -> Atikokan Hydro Inc.
N2: =VLOOKUP(H2,A:A,1,0) -> Bluewater Power Distribution Corporation
N3: Brant County Power Inc.
N4: Brantford Power Inc.
N5: Burlington Hydro Inc.
N6: Cambridge and North Dumfries Hydro Inc.
N7: Canadian Niagara Power Inc.
N8: Centre Wellington Hydro Ltd.
N9: Chapleau Public Utilities Corporation
N10: Collus PowerStream Corp.
N11: Cooperative Hydro Embrun Inc.
N12: E.L.K. Energy Inc.
N13: Enersource Hydro Mississauga Inc.
N14: Entegrus Powerlines Inc.
N15: EnWin Utilities Ltd.
N16: Erie Thames Powerlines Corporation
N17: Espanola Regional Hydro Distribution Corporation
N18: Essex Powerlines Corporation
N19: Festival Hydro Inc.
N20: Fort Frances Power Corporation
N21: Greater Sudbury Hydro Inc.
N22: Grimsby Power Incorporated
N23: Guelph Hydro Electric Systems Inc.
N24: Halton Hills Hydro Inc.
N25: Hydro 2000 Inc.
N26: Hydro Hawkesbury Inc.
N27: Hydro One Brampton Networks Inc.
N28: Hydro One Remote Communities Inc.
N29: Hydro Ottawa Limited
N30: Innpower Corporation
N31: Kenora Hydro Electric Corporation Ltd.
N32: Kingston Hydro Corporation
N33: Kitchener-Wilmot Hydro Inc.
N34: Lakefront Utilities Inc.
N35: Lakeland Power Distribution Ltd.
N36: London Hydro Inc.
N37: Midland Power Utility Corporation
N38: Milton Hydro Distribution Inc.
N39: Niagara-on-the-Lake Hydro Inc.
N40: Niagara Peninsula Energy Inc.
N41: Northern Ontario Wires Inc.
N42: Oakville Hydro Electricity Distribution Inc.
N43: Orangeville Hydro Limited
N44: Orillia Power Distribution Corporation
N45: Peterborough Distribution Incorporated
N46: PowerStream Inc.
N47: PUC Distribution Inc.
N48: Renfrew Hydro Inc.
N49: Rideau St. Lawrence Distribution Inc.
N50: Sioux Lookout Hydro Inc.
N51: Thunder Bay Hydro Electricity Distribution Inc.
N52: Tillsonburg Hydro Inc.
N53: Veridian Connections Inc.
N54: Wasaga Distribution Inc.
N55: Waterloo North Hydro Inc.
N56: Welland Hydro-Electric System Corp.
N57: Wellington North Power Inc.
N58: West Coast Huron Energy Inc.
N59: Westario Power Inc.
N60: Whitby Hydro Electric Corporation

Sheet Sheet3 (hidden)
